Workbook

Sheet Planilha1
A1: UNIDADE ORGANIZACIONAL | B1: NOME | C1: NOME | D1: SIAPE | E1: CARGO | F1: FUNCAO | G1: SETOR | H1: TIPO DE AÇÃO | I1: NIVEL DA ACAO | J1: MODALIDADE | K1: NOME DO CURSO | L1: NOME DO CURSO | M1: INSTITUICAO | N1: TIPO DE INSTITUICAO | O1: LOCAL DO EVENTO (CIDADE/PAÍS) | P1: PERIODO DO CURSO OU EVENTO | Q1: CARGA HORARIA | R1: TURMA EXCLUSIVA OU EVENTO ABERTO | S1: VALORES INVESTIDOS PELA REITORIA | T1: VALOR DE INSCRICAO | U1: VALORES DE DIARIAS | V1: VALORES DE TRANSPORTE | W1: VALOR RECEBIDO A TITULO DE BOLSA DE ESTUDO NO ANO | X1: VALOR TOTAL | Y1: CODIGO DA ACAO ORCAMENTARIA | Z1: CAPACITACAO PREVISTA NO LNC OU PAC | AA1: PROCESSO N° | AB1: APRESENTOU CERTIFICADO OU OUTRO DOCUMENTO COMPROBATORIO DE PARTICIPAÇÃO | AC1: SITUACAO DO PEDIDO | AD1: OBSERVACOES
A2: VACARIA | B2: ADAIR ADAMS | C2: =UPPER(Acento(B2)) -> ADAIR ADAMS | D2: 1190493 | E2: DOCENTE | F2: CD4 | G2: DIRETORIA DE ENSINO | H2: CAPACITACAO DE CURTA DURACAO NO BRASIL | I2: CURSO APERFEICOAMENTO PROFISSIONAL (CURSO DE CURTA DURACAO) | J2: PRESENCIAL | K2: ASPECTOS GERENCIAIS DA APURACAO DISCIPLINAR | L2: =UPPER(Acento(K2)) -> ASPECTOS GERENCIAIS DA APURACAO DISCIPLINAR | M2: IFRS - REITORIA | N2: PUBLICA | O2: BENTO GONÇALVES | P2: 25 E 26/09/2018 | Q2: 16 | R2: TURMA FECHADA PARA O IFRS | S2: 78.18 | T2: 0 | U2: 0 | V2: 0 | W2: 0 | X2: =SUM(S2:W2) -> 78.18 | Y2: 4572 | Z2: SIM | AA2: 23419.000805/2018-84 | AB2: SIM | AC2: CONCLUIDA | AD2: CERTIFICADOS EMITIDOS PELA DGP
A3: VACARIA | B3: ADAIR ADAMS | C3: ADAIR ADAMS | D3: 1190493 | E3: DOCENTE | F3: CD4 | G3: DIRETORIA DE ENSINO | H3: CAPACITACAO DE CURTA DURACAO NO BRASIL | I3: CURSO APERFEICOAMENTO PROFISSIONAL (CURSO DE CURTA DURACAO) | J3: PRESENCIAL | K3: AVALIACAO INSTITUCIONAL: O INSTRUMENTO DE AUTOAVALIACO | L3: AVALIACAO INSTITUCIONAL: O INSTRUMENTO DE AUTOAVALIACO | M3: IFRS - REITORIA | N3: PRIVADA | O3: PORTO ALEGRE | P3: 2018-07-13 | Q3: 8 | R3: TURMA FECHADA PARA O IFRS | S3: 7.83 | T3: 0 | U3: 328.88 | V3: 0 | W3: 0 | X3: 336.71 | Y3: 4572 | Z3: NAO | AA3: 23419.000573/2018-64 | AB3: SIM | AC3: CONCLUIDA | AD3: CERTFICADO EMITIDO PELA DGP
A4: VACARIA | B4: ADAIR ADAMS | C4: ADAIR ADAMS | D4: 1190493 | E4: DOCENTE | F4: CD4 | G4: DIRETORIA DE ENSINO | H4: CAPACITACAO DE CURTA DURACAO NO BRASIL | I4: CURSO APERFEICOAMENTO PROFISSIONAL (CURSO DE CURTA DURACAO) | J4: PRESENCIAL | K4: EAD NO IFRS | L4: EAD NO IFRS | M4: IFRS - REITORIA | N4: PUBLICA | O4: BENTO GONÇALVES | P4: 18 A 20/06/2018 | Q4: 16 | R4: TURMA FECHADA PARA O IFRS | S4: 0 | T4: 0 | U4: 456.11 | V4: 0 | W4: 0 | X4: 456.11 | Z4: NÃO | AA4: 23419.000609/2018-18 | AB4: SIM | AC4: CONCLUIDA | AD4: CERTIFICADOS EMITIDOS PELA DGP
A5: VACARIA | B5: ADAIR ADAMS | C5: ADAIR ADAMS | D5: 1190493 | E5: DOCENTE | F5: CD4 | G5: DIRETORIA DE ENSINO | H5: CAPACITACAO DE CURTA DURACAO NO BRASIL | I5: CURSO APERFEICOAMENTO PROFISSIONAL (CURSO DE CURTA DURACAO) | J5: PRESENCIAL | K5: EAD NOS CAMPI | L5: EAD NOS CAMPI | M5: IFRS - REITORIA | N5: PUBLICA | O5: VACARIA | P5: 2018-08-14 | Q5: 4 | R5: TURMA FECHADA PARA O IFRS | S5: 4.35 | T5: 0 | U5: 0 | V5: 0 | W5: 0 | X5: 4.35 | Y5: 20RL | Z5: SIM | AA5: 23419.000750/2018-11 | AB5: SIM | AC5: CONCLUIDA | AD5: CERTIFICADO EMITITIDO PELA DGP
A6: RIO GRANDE | B6: ADAO FELIPE OLIVEIRA SKONIESKI | C6: ADAO FELIPE OLIVEIRA SKONIESKI | D6: 1885152 | E6: DOCENTE | F6: NENHUM | G6: COORDENAÇÃO DO CURSO TÉCNICO EM FABRICAÇÃO MECÂNICA | H6: CAPACITACAO DE CURTA DURACAO NO BRASIL | I6: CURSO APERFEICOAMENTO PROFISSIONAL (CURSO DE CURTA DURACAO) | J6: PRESENCIAL | K6: V ENCONTRO DE AVALIACAO INSTITUCIONAL | L6: V ENCONTRO DE AVALIACAO INSTITUCIONAL | M6: IFRS - REITORIA | N6: PUBLICA | O6: BENTO GONÇALVES | P6: 2018-09-26 | Q6: 8 | R6: TURMA FECHADA PARA O IFRS | S6: 28.33 | T6: 0 | U6: 0 | V6: 0 | W6: 0 | X6: 28.33 | Y6: 4572 | Z6: NÃO | AA6: 23419.000867/2018-96 | AB6: SIM | AC6: CONCLUIDA | AD6: CERTIFICADOS EMITIDOS PELA DGP
A7: ALVORADA | B7: ADEMILDE IRENE PETZOLD PRADO | C7: ADEMILDE IRENE PETZOLD PRADO | D7: 1995996 | E7: TECNICO-ADMINISTRATIVO | F7: NENHUM | H7: CAPACITACAO DE CURTA DURACAO NO BRASIL | I7: CURSO APERFEICOAMENTO PROFISSIONAL (CURSO DE CURTA DURACAO) | J7: PRESENCIAL | K7: CAPACITACAO DAS EQUIPES DE ASSISTENCIA ESTUDANTIL | L7: CAPACITACAO DAS EQUIPES DE ASSISTENCIA ESTUDANTIL | M7: IFRS - REITORIA | N7: PUBLICA | O7: BENTO GONÇALVES | P7: 2018-09-27 | Q7: 8 | R7: TURMA FECHADA PARA O IFRS | S7: 61.9 | T7: 0 | U7: 0 | V7: 0 | W7: 0 | X7: 61.9 | Y7: 4572 | Z7: SIM | AA7: 23419.000873/2018-43 | AB7: SIM | AC7: CONCLUIDA | AD7: CERTIFICADOS EMITIDOS PELA DGP
A8: ALVORADA | B8: ADEMILDE IRENE PETZOLD PRADO | C8: ADEMILDE IRENE PETZOLD PRADO | D8: 1995996 | E8: TECNICO-ADMINISTRATIVO | F8: NENHUM | H8: CAPACITACAO DE CURTA DURACAO NO BRASIL | I8: CURSO APERFEICOAMENTO PROFISSIONAL (CURSO DE CURTA DURACAO) | J8: PRESENCIAL | K8: II FORUM DE ASSISTENCIA ESTUDANTIL E I SEMINARIO DE PERMANENCIA E EXITO | L8: II FORUM DE ASSISTENCIA ESTUDANTIL E I SEMINARIO DE PERMANENCIA E EXITO | M8: IFRS - REITORIA | N8: PUBLICA | O8: BENTO GONÇALVES | P8: 2018-09-28 | Q8: 8 | R8: TURMA FECHADA PARA O IFRS | S8: 54.21 | T8: 0 | W8: 0 | X8: 54.21 | Y8: 4572 | Z8: SIM | AA8: 23419.000872/2018-07 | AB8: SIM | AC8: CONCLUIDA | AD8: CERTIFICADO EMITIDO PELA DGP
A9: VERANOPOLIS | B9: ADEMILSON MARCOS TONIN | C9: ADEMILSON MARCOS TONIN | D9: 1844763 | E9: TECNICO-ADMINISTRATIVO | F9: NENHUM | G9: ENSINO | H9: CAPACITACAO DE CURTA DURACAO NO BRASIL | I9: CURSO APERFEICOAMENTO PROFISSIONAL (CURSO DE CURTA DURACAO) | J9: PRESENCIAL | K9: CAPACITACAO REDE REVALIDE - PLATAFORMA NILO PEÇANHA, SISTEC, CENSOS SUPERIOR E EDUCACAO BASICA | L9: CAPACITACAO REDE REVALIDE - PLATAFORMA NILO PECANHA, SISTEC, CENSOS SUPERIOR E EDUCACAO BASICA | M9: IFRS - REITORIA | N9: PUBLICA | O9: BENTO GONÇALVES | P9: 2018-02-06 | Q9: 6 | R9: TURMA FECHADA PARA O IFRS | S9: 0 | T9: 0 | U9: 0 | V9: 0 | W9: 0 | X9: 0 | Y9: NENHUM | Z9: SIM | AA9: 23419.000104/2018-45 | AB9: SIM | AC9: CONCLUIDA
A10: VERANOPOLIS | B10: ADEMILSON MARCOS TONIN | C10: ADEMILSON MARCOS TONIN | D10: 1844763 | E10: TECNICO-ADMINISTRATIVO | F10: NENHUM | G10: ENSINO | H10: CAPACITACAO DE CURTA DURACAO NO BRASIL | I10: CURSO APERFEICOAMENTO PROFISSIONAL (CURSO DE CURTA DURACAO) | J10: PRESENCIAL | K10: TREINAMENTO SIGAA | L10: TREINAMENTO SIGAA | M10: IFRS - REITORIA | N10: PUBLICA | O10: FARROUPILHA | P10: 2018-09-27 | Q10: 5 | R10: TURMA FECHADA PARA O IFRS | S10: 2.18 | T10: 0 | U10: 0 | V10: 0 | W10: 0 | X10: 2.18 | Y10: 4572 | Z10: NÃO | AA10: 23419.000798/2018-11 | AB10: SIM | AC10: CONCLUIDA | AD10: CERTIFICADOS EMITIDOS PELA DGP
A11: PORTO ALEGRE | B11: ADEMIR GAUTERIO TROINA JUNIOR | C11: ADEMIR GAUTERIO TROINA JUNIOR | D11: 1798912 | E11: TECNICO-ADMINISTRATIVO | F11: NENHUM | G11: COORDENADORIA DE ORÇAMENTO E FINANÇAS | H11: CAPACITACAO DE CURTA DURACAO NO BRASIL | I11: CURSO APERFEICOAMENTO PROFISSIONAL (CURSO DE CURTA DURACAO) | J11: PRESENCIAL | K11: ASPECTOS GERENCIAIS DA APURACAO DISCIPLINAR | L11: ASPECTOS GERENCIAIS DA APURACAO DISCIPLINAR | M11: IFRS - REITORIA | N11: PUBLICA | O11: BENTO GONCALVES/RS | P11: 25 A 26/09/2018 | Q11: 16 | R11: TURMA FECHADA PARA O IFRS | S11: 78.18 | T11: 0 | U11: 223.86 | V11: 0 | W11: 0 | X11: 302.04 | Y11: 4572 | Z11: SIM | AA11: 23419.000805/2018-84 | AB11: SIM | AC11: CONCLUIDA | AD11: certificados emitidos pela DGP
A12: PORTO ALEGRE | B12: ADEMIR GAUTERIO TROINA JUNIOR | C12: ADEMIR GAUTERIO TROINA JUNIOR | D12: 1798912 | E12: TECNICO-ADMINISTRATIVO | F12: NENHUM | G12: COORDENADORIA DE ORÇAMENTO E FINANÇAS | H12: CAPACITACAO DE CURTA DURACAO NO BRASIL | I12: CURSO APERFEICOAMENTO PROFISSIONAL (CURSO DE CURTA DURACAO) | J12: PRESENCIAL | K12: III ENCONTRO DO CONTADOR PUBLICO | L12: III ENCONTRO DO CONTADOR PUBLICO | M12: CRC - RS | N12: PUBLICA | O12: PORTO ALEGRE/RS | P12: 2018-12-11 | Q12: 7 | R12: TURMA ABERTA | S12: 0 | T12: 0 | U12: 0 | V12: 0 | W12: 0 | X12: 0 | Y12: NENHUM | AA12: 23368.002991/2018-39 | AB12: SIM | AC12: CONCLUIDA
A13: PORTO ALEGRE | B13: ADEMIR GAUTERIO TROINA JUNIOR | C13: ADEMIR GAUTERIO TROINA JUNIOR | D13: 1798912 | E13: TECNICO-ADMINISTRATIVO | F13: NENHUM | G13: COORDENADORIA DE ORÇAMENTO E FINANÇAS | H13: CAPACITACAO DE CURTA DURACAO NO BRASIL | I13: CURSO APERFEICOAMENTO PROFISSIONAL (CURSO DE CURTA DURACAO) | J13: PRESENCIAL | K13: PROCESSO ADMINISTRATIVO DISCIPLINAR- PAD 22º EDIÇÃO | L13: PROCESSO ADMINISTRATIVO DISCIPLINAR- PAD 22º EDICAO | M13: ESAF | N13: PUBLICA | O13: PORTO ALEGRE/RS | P13: 01 A 05/10/2018 | Q13: 40 | R13: TURMA FECHADA PARA O IFRS | S13: 0 | T13: 0 | U13: 0 | V13: 0 | W13: 0 | X13: 315.74 | Y13: 4572 | AA13: 23368.002328/2018-34 | AB13: SIM | AC13: CONCLUIDA | AD13: CAPACITACAO DESENVOLVIDA PELO CAMPUS PORTO ALEGRE
A14: IBIRUBA | B14: ADILSON BARBOSA | C14: ADILSON BARBOSA | D14: 1995120 | E14: DOCENTE | F14: NENHUM | G14: SALA DOS PROFESSORES | H14: CURSO INCLUIDO NO PLANO DE TRABALHO DOCENTE (RESOLUCAO CONSUP 82/2011) | I14: DOUTORADO | J14: PRESENCIAL | K14: DOUTORADO EM LETRAS | L14: DOUTORADO EM LETRAS | M14: UPF | N14: PRIVADA | O14: PASSO FUNDO | P14: 08/2014 A 08/2018 | R14: TURMA ABERTA | S14: 0 | T14: 0 | U14: 0 | V14: 0 | W14: 0 | X14: =SUM(S14:W14) -> 0 | Y14: NENHUM | Z14: SIM | AA14: 23366.000331.2014-18 | AB14: NÃO SE APLICA | AC14: EM TRAMITE
A15: IBIRUBA | B15: Adilson Barbosa | C15: ADILSON BARBOSA | D15: 1995120 | E15: DOCENTE | F15: NENHUM | G15: SALA DOS PROFESSORES | H15: CAPACITACAO DE CURTA DURACAO NO BRASIL | I15: CURSO APERFEICOAMENTO PROFISSIONAL (CURSO DE CURTA DURACAO) | J15: A DISTANCIA | K15: Abordagens Pedagógicas Modernas na Educação a Distância - Turma 2018B | L15: ABORDAGENS PEDAGOGICAS MODERNAS NA EDUCACAO A DISTANCIA - TURMA 2018B | M15: IFRS - EAD | N15: PUBLICA | O15: A DISTÂNCIA | P15: 19/10/2018 a 22/10/2018 | Q15: 20 | R15: TURMA ABERTA | S15: 0 | T15: 0 | U15: 0 | V15: 0 | W15: 0 | X15: 0 | Y15: NENHUM | Z15: SIM | AA15: SEM PROCESSO | AB15: SIM | AC15: CONCLUIDA | AD15: INFORMAÇÃO REPASSADA PELA PROEN EAD
A16: IBIRUBA | B16: Adilson Barbosa | C16: ADILSON BARBOSA | D16: 1995120 | E16: DOCENTE | F16: NENHUM | G16: SALA DOS PROFESSORES | H16: CAPACITACAO DE CURTA DURACAO NO BRASIL | I16: CURSO APERFEICOAMENTO PROFISSIONAL (CURSO DE CURTA DURACAO) | J16: A DISTANCIA | K16: Criação de Videoaulas - COMUNIDADE EXTERNA - Turma 2018B | L16: CRIACAO DE VIDEOAULAS - COMUNIDADE EXTERNA - TURMA 2018B | M16: IFRS - EAD | N16: PUBLICA | O16: A DISTÂNCIA | P16: 26/10/2018 a 01/11/2018 | Q16: 40 | R16: TURMA ABERTA | S16: 0 | T16: 0 | U16: 0 | V16: 0 | W16: 0 | X16: 0 | Y16: NENHUM | Z16: SIM | AA16: SEM PROCESSO | AB16: SIM | AC16: CONCLUIDA | AD16: INFORMAÇÃO REPASSADA PELA PROEN EAD
A17: IBIRUBA | B17: Adilson Barbosa | C17: ADILSON BARBOSA | D17: 1995120 | E17: DOCENTE | F17: NENHUM | G17: SALA DOS PROFESSORES | H17: CAPACITACAO DE CURTA DURACAO NO BRASIL | I17: CURSO APERFEICOAMENTO PROFISSIONAL (CURSO DE CURTA DURACAO) | J17: A DISTANCIA | K17: Educação a Distância - Turma 2018B | L17: EDUCACAO A DISTANCIA - TURMA 2018B | M17: IFRS - EAD | N17: PUBLICA | O17: A DISTÂNCIA | P17: 22/10/2018 a 24/10/2018 | Q17: 25 | R17: TURMA ABERTA | S17: 0 | T17: 0 | U17: 0 | V17: 0 | W17: 0 | X17: 0 | Y17: NENHUM | Z17: SIM | AA17: SEM PROCESSO | AB17: SIM | AC17: CONCLUIDA | AD17: INFORMAÇÃO REPASSADA PELA PROEN EAD
A18: IBIRUBA | B18: Adilson Barbosa | C18: ADILSON BARBOSA | D18: 1995120 | E18: DOCENTE | F18: NENHUM | G18: SALA DOS PROFESSORES | H18: CAPACITACAO DE CURTA DURACAO NO BRASIL | I18: CURSO APERFEICOAMENTO PROFISSIONAL (CURSO DE CURTA DURACAO) | J18: A DISTANCIA | K18: Moodle Básico para Professores - Elaboração de Curso - Turma 2018B | L18: MOODLE BASICO PARA PROFESSORES - ELABORACAO DE CURSO - TURMA 2018B | M18: IFRS - EAD | N18: PUBLICA | O18: A DISTÂNCIA | P18: 24/10/2018 a 25/10/2018 | Q18: 20 | R18: TURMA ABERTA | S18: 0 | T18: 0 | U18: 0 | V18: 0 | W18: 0 | X18: 0 | Y18: NENHUM | Z18: SIM | AA18: SEM PROCESSO | AB18: SIM | AC18: CONCLUIDA | AD18: INFORMAÇÃO REPASSADA PELA PROEN EAD
A19: IBIRUBA | B19: Adilson Barbosa | C19: ADILSON BARBOSA | D19: 1995120 | E19: DOCENTE | F19: NENHUM | G19: SALA DOS PROFESSORES | H19: CAPACITACAO DE CURTA DURACAO NO BRASIL | I19: CURSO APERFEICOAMENTO PROFISSIONAL (CURSO DE CURTA DURACAO) | J19: A DISTANCIA | K19: O Uso de Aplicativos Web na Construção de Materiais Educacionais - Turma 2018B | L19: O USO DE APLICATIVOS WEB NA CONSTRUCAO DE MATERIAIS EDUCACIONAIS - TURMA 2018B | M19: IFRS - EAD | N19: PUBLICA | O19: A DISTÂNCIA | P19: 17/10/2018 a 25/10/2018 | Q19: 20 | R19: TURMA ABERTA | S19: 0 | T19: 0 | U19: 0 | V19: 0 | W19: 0 | X19: 0 | Y19: NENHUM | Z19: SIM | AA19: SEM PROCESSO | AB19: SIM | AC19: CONCLUIDA | AD19: INFORMAÇÃO REPASSADA PELA PROEN EAD
A20: IBIRUBA | B20: Adilson Barbosa | C20: ADILSON BARBOSA | D20: 1995120 | E20: DOCENTE | F20: NENHUM | G20: SALA DOS PROFESSORES | H20: CAPACITACAO DE CURTA DURACAO NO BRASIL | I20: CURSO APERFEICOAMENTO PROFISSIONAL (CURSO DE CURTA DURACAO) | J20: A DISTANCIA | K20: Qualidade de Cursos em Educação a Distância - Turma 2018B | L20: QUALIDADE DE CURSOS EM EDUCACAO A DISTANCIA - TURMA 2018B | M20: IFRS - EAD | N20: PUBLICA | O20: A DISTÂNCIA | P20: 25/10/2018 a 25/10/2018 | Q20: 30 | R20: TURMA ABERTA | S20: 0 | T20: 0 | U20: 0 | V20: 0 | W20: 0 | X20: 0 | Y20: NENHUM | Z20: SIM | AA20: SEM PROCESSO | AB20: SIM | AC20: CONCLUIDA | AD20: INFORMAÇÃO REPASSADA PELA PROEN EAD
A21: IBIRUBA | B21: Adilson Barbosa | C21: ADILSON BARBOSA | D21: 1995120 | E21: DOCENTE | F21: NENHUM | G21: SALA DOS PROFESSORES | H21: CAPACITACAO DE CURTA DURACAO NO BRASIL | I21: CURSO APERFEICOAMENTO PROFISSIONAL (CURSO DE CURTA DURACAO) | J21: A DISTANCIA | K21: Repositórios de Materiais Didáticos Digitais e Direitos de Uso - Turma 2018B | L21: REPOSITORIOS DE MATERIAIS DIDATICOS DIGITAIS E DIREITOS DE USO - TURMA 2018B | M21: IFRS - EAD | N21: PUBLICA | O21: A DISTÂNCIA | P21: 25/10/2018 a 26/10/2018 | Q21: 20 | R21: TURMA ABERTA | S21: 0 | T21: 0 | U21: 0 | V21: 0 | W21: 0 | X21: 0 | Y21: NENHUM | Z21: SIM | AA21: SEM PROCESSO | AB21: SIM | AC21: CONCLUIDA | AD21: INFORMAÇÃO REPASSADA PELA PROEN EAD
A22: REITORIA | B22: ADRIANA DA SILVA MACHADO | C22: ADRIANA DA SILVA MACHADO | D22: 1552261 | E22: TECNICO-ADMINISTRATIVO | F22: NENHUM | G22: DGP | H22: CAPACITACAO DE CURTA DURACAO NO BRASIL | I22: CURSO APERFEICOAMENTO PROFISSIONAL (CURSO DE CURTA DURACAO) | J22: PRESENCIAL | K22: 13º CONGRESSO INTERNACIONAL DA REDE UNIDA | L22: 13º CONGRESSO INTERNACIONAL DA REDE UNIDA | M22: ASSOCIAÇAO BRASILEIRA DA REDE UNIDA | N22: PUBLICA | O22: MANAUS | P22: 30/05/2018 A 02/06/2018 | Q22: 40 | R22: TURMA ABERTA | S22: 0 | T22: 0 | U22: 0 | V22: 0 | W22: 0 | X22: 0 | Y22: NENHUM | Z22: SIM | AA22: 23419.000510/2018-16 | AB22: NÃO SE APLICA | AC22: CANCELADA | AD22: a servidora desistiu do pedido de participação da capacitação
A23: REITORIA | B23: ADRIANA DA SILVA MACHADO | C23: ADRIANA DA SILVA MACHADO | D23: 1552261 | E23: TECNICO-ADMINISTRATIVO | F23: NENHUM | G23: DGP | H23: CAPACITACAO DE CURTA DURACAO NO BRASIL | I23: CURSO APERFEICOAMENTO PROFISSIONAL (CURSO DE CURTA DURACAO) | J23: PRESENCIAL | K23: AGRICULTURE AND FOOD IN AN URBANIZING SOCIETY | L23: AGRICULTURE AND FOOD IN AN URBANIZING SOCIETY | M23: UFRGS | N23: PUBLICA | O23: PORTO ALEGRE | P23: 17 A 21/09/2018 | Q23: 35 | R23: TURMA ABERTA | S23: 0 | T23: 0 | U23: 851.7 | V23: 0 | W23: 0 | X23: 851.7 | Y23: 4572 | Z23: SIM | AA23: 23419.000850/2018-39 | AB23: SIM | AC23: CONCLUIDA | AD23: Finalizada
A24: REITORIA | B24: ADRIANA DA SILVA MACHADO | C24: ADRIANA DA SILVA MACHADO | D24: 1552261 | E24: TECNICO-ADMINISTRATIVO | F24: NENHUM | G24: DGP | H24: CAPACITACAO DE CURTA DURACAO NO BRASIL | I24: CURSO APERFEICOAMENTO PROFISSIONAL (CURSO DE CURTA DURACAO) | J24: PRESENCIAL | K24: APLICACAO DO BSC PARA GESTAO ESTRATEGICA DOS IFS | L24: APLICACAO DO BSC PARA GESTAO ESTRATEGICA DOS IFS | M24: IFRS - REITORIA | N24: PUBLICA | O24: BENTO GONÇALVES | P24: 20/03/2018 a 21/03/2018 | Q24: 13 | R24: TURMA FECHADA PARA O IFRS | S24: 12.24 | T24: 0 | U24: 0 | V24: 0 | W24: 0 | X24: 12.24 | Y24: 4572 | Z24: SIM | AA24: 23419.000116/2018-70 | AB24: SIM | AC24: CONCLUIDA
A25: REITORIA | B25: ADRIANA DA SILVA MACHADO | C25: ADRIANA DA SILVA MACHADO | D25: 1552261 | E25: TECNICO-ADMINISTRATIVO | F25: NENHUM | G25: PROEN | H25: CAPACITACAO DE CURTA DURACAO NO BRASIL | I25: CURSO APERFEICOAMENTO PROFISSIONAL (CURSO DE CURTA DURACAO) | J25: PRESENCIAL | K25: CAPACITACAO DAS EQUIPES DE ASSISTENCIA ESTUDANTIL | L25: CAPACITACAO DAS EQUIPES DE ASSISTENCIA ESTUDANTIL | M25: IFRS - REITORIA | N25: PUBLICA | O25: BENTO GONÇALVES | P25: 2018-09-27 | Q25: 8 | R25: TURMA FECHADA PARA O IFRS | S25: 61.9 | T25: 0 | U25: 0 | V25: 0 | W25: 0 | X25: 61.9 | Y25: 4572 | Z25: SIM | AA25: 23419.000873/2018-43 | AB25: SIM | AC25: CONCLUIDA
A26: REITORIA | B26: ADRIANA DA SILVA MACHADO | C26: ADRIANA DA SILVA MACHADO | D26: 1552261 | E26: TECNICO-ADMINISTRATIVO | F26: NENHUM | G26: PROEN | H26: CAPACITACAO DE CURTA DURACAO NO BRASIL | I26: CURSO APERFEICOAMENTO PROFISSIONAL (CURSO DE CURTA DURACAO) | J26: PRESENCIAL | K26: II FORUM DE ASSISTENCIA ESTUDANTIL E I SEMINARIO DE PERMANENCIA E EXITO | L26: II FORUM DE ASSISTENCIA ESTUDANTIL E I SEMINARIO DE PERMANENCIA E EXITO | M26: IFRS - REITORIA | N26: PUBLICA | O26: BENTO GONÇALVES | P26: 2018-09-28 | Q26: 8 | R26: TURMA FECHADA PARA O IFRS | S26: 54.21 | T26: 0 | U26: 0 | V26: 0 | W26: 0 | X26: 54.21 | Y26: 4572 | Z26: SIM | AA26: 23419.000872/2018-07 | AB26: SIM | AC26: CONCLUIDA
A27: PORTO ALEGRE | B27: ADRIANA DE FARIAS RAMOS | C27: ADRIANA DE FARIAS RAMOS | D27: 1031839 | E27: TECNICO-ADMINISTRATIVO | F27: NENHUM | G27: DIRETORIA DE ENSINO | H27: CAPACITACAO DE CURTA DURACAO NO BRASIL | I27: CURSO APERFEICOAMENTO PROFISSIONAL (CURSO DE CURTA DURACAO) | J27: PRESENCIAL | K27: GESTÃO E MAPEAMENTO DE PROCESSOS APLICADOS AO SETOR PÚBLICO - 1º EDIÇÃO | L27: GESTAO E MAPEAMENTO DE PROCESSOS APLICADOS AO SETOR PUBLICO - 1º EDICAO | M27: ESAF | N27: PUBLICA | O27: PORTO ALEGRE/RS | P27: 22 A 24/10/2018 | Q27: 24 | R27: TURMA FECHADA PARA O IFRS | S27: 0 | T27: 0 | U27: 0 | V27: 0 | W27: 0 | X27: 232.04 | Y27: 4572 | AA27: 23368.002329/2019-89 | AB27: SIM | AC27: CONCLUIDA | AD27: CAPACITACAO DESENVOLVIDA PELO CAMPUS PORTO ALEGRE
A28: PORTO ALEGRE | B28: ADRIANA DE FARIAS RAMOS | C28: ADRIANA DE FARIAS RAMOS | D28: 1031839 | E28: TECNICO-ADMINISTRATIVO | F28: NENHUM | G28: DIRETORIA DE ENSINO | H28: CAPACITACAO DE CURTA DURACAO NO BRASIL | I28: CURSO APERFEICOAMENTO PROFISSIONAL (CURSO DE CURTA DURACAO) | J28: PRESENCIAL | K28: GOVERNANCA NA ADMINISTRACAO PUBLICA | L28: GOVERNANCA NA ADMINISTRACAO PUBLICA | M28: ESAF | N28: PUBLICA | O28: PORTO ALEGRE/RS | P28: 11 A 13/06/2018 | Q28: 20 | R28: TURMA FECHADA PARA O IFRS | S28: 0 | T28: 0 | U28: 0 | V28: 0 | W28: 0 | X28: 24.19 | Y28: 4572 | Z28: NÃO | AA28: 23368.001218/2018-55 | AB28: NÃO | AC28: CONCLUIDA | AD28: CAPACITACAO DESENVOLVIDA PELO CAMPUS PORTO ALEGRE
A29: PORTO ALEGRE | B29: ADRIANA DE FARIAS RAMOS | C29: ADRIANA DE FARIAS RAMOS | D29: 1031839 | E29: TECNICO-ADMINISTRATIVO | F29: NENHUM | G29: DIRETORIA DE ENSINO | H29: CAPACITACAO DE CURTA DURACAO NO BRASIL | I29: CURSO APERFEICOAMENTO PROFISSIONAL (CURSO DE CURTA DURACAO) | J29: PRESENCIAL | K29: PROCESSO ADMINISTRATIVO DISCIPLINAR- PAD 22º EDIÇÃO | L29: PROCESSO ADMINISTRATIVO DISCIPLINAR- PAD 22º EDICAO | M29: ESAF | N29: PUBLICA | O29: PORTO ALEGRE/RS | P29: 01 A 05/10/2018 | Q29: 40 | R29: TURMA FECHADA PARA O IFRS | S29: 0 | T29: 0 | U29: 0 | V29: 0 | W29: 0 | X29: 315.74 | Y29: 4572 | AA29: 23368.002328/2018-34 | AB29: SIM | AC29: CONCLUIDA | AD29: CAPACITACAO DESENVOLVIDA PELO CAMPUS PORTO ALEGRE
A30: PORTO ALEGRE | B30: ADRIANA DE FARIAS RAMOS | C30: ADRIANA DE FARIAS RAMOS | D30: 1031839 | E30: TECNICO-ADMINISTRATIVO | F30: NENHUM | G30: DIRETORIA DE ENSINO | H30: CAPACITACAO DE CURTA DURACAO NO BRASIL | I30: CURSO APERFEICOAMENTO PROFISSIONAL (CURSO DE CURTA DURACAO) | J30: PRESENCIAL | K30: IX FORUM NACIONAL DAS COMISSOES INTERNAS DE SUPERVISAO | L30: IX FORUM NACIONAL DAS COMISSOES INTERNAS DE SUPERVISAO | M30: CIS/UFRGS | N30: PUBLICA | O30: GAROPABA | P30: 23 A 26/08/2018 | Q30: 31 | R30: TURMA ABERTA | S30: 0 | T30: 0 | U30: 884.74 | V30: 0 | W30: 0 | X30: =SUM(S30:W30) -> 884.74 | Y30: 4572 | Z30: NÃO | AA30: 23419.000793/2018-98 | AB30: SIM | AC30: CONCLUIDA | AD30: RECURSO DA REITORIA
A31: ROLANTE | B31: ADRIANA DE OLIVEIRA | C31: ADRIANA DE OLIVEIRA | D31: 2318612 | E31: TECNICO-ADMINISTRATIVO | F31: FG2 | G31: COORDENADORIA DE CONTRATOS | H31: CAPACITACAO DE CURTA DURACAO NO BRASIL | I31: CURSO APERFEICOAMENTO PROFISSIONAL (CURSO DE CURTA DURACAO) | J31: PRESENCIAL | K31: REDAÇAO OFICIAL, NOVO ACORDO ORTOGRAFICO E ATENDIMENTO AO PUBLICO | L31: REDACAO OFICIAL, NOVO ACORDO ORTOGRAFICO E ATENDIMENTO AO PUBLICO | M31: IFRS - REITORIA | N31: PUBLICA | O31: BENTO GONÇALVES | P31: 04 E 05 DE SETEMBRO DE 2018 | Q31: 10 | R31: TURMA FECHADA PARA O IFRS | S31: 33.83 | T31: 0 | U31: 223.86 | V31: 0 | W31: 0 | X31: 257.69 | Y31: 4572 | Z31: SIM | AA31: 23740.000289/2018-36 | AB31: SIM | AC31: CONCLUIDA | AD31: CERTIFICADOS EMITIDOS PELA DGP
A32: VACARIA | B32: ADRIANA FERREIRA BOEIRA | C32: ADRIANA FERREIRA BOEIRA | D32: 1295476 | E32: DOCENTE | F32: FUC1 | G32: COORDENADORIA DO CURSO SUPERIOR DE LICENCIATURA EM CIÊNCIAS BIOLÓGICAS | H32: CAPACITACAO DE CURTA DURACAO NO BRASIL | I32: CURSO APERFEICOAMENTO PROFISSIONAL (CURSO DE CURTA DURACAO) | J32: PRESENCIAL | K32: EAD NO IFRS | L32: EAD NO IFRS | M32: IFRS - REITORIA | N32: PUBLICA | O32: BENTO GONÇALVES | P32: 18 A 20/06/2018 | Q32: 16 | R32: TURMA FECHADA PARA O IFRS | S32: 0 | T32: 0 | U32: 0 | V32: 0 | W32: 0 | X32: 0 | Y32: NENHUM | Z32: NÃO | AA32: 23419.000609/2018-18 | AB32: SIM | AC32: CONCLUIDA | AD32: CERTIFICADOS EMITIDOS PELA DGP
A33: VACARIA | B33: ADRIANA FERREIRA BOEIRA | C33: ADRIANA FERREIRA BOEIRA | D33: 1295476 | E33: DOCENTE | F33: FUC1 | G33: DIRETORIA DE ENSINO | H33: CAPACITACAO DE CURTA DURACAO NO BRASIL | I33: CURSO APERFEICOAMENTO PROFISSIONAL (CURSO DE CURTA DURACAO) | J33: PRESENCIAL | K33: EAD NOS CAMPI | L33: EAD NOS CAMPI | M33: IFRS - REITORIA | N33: PUBLICA | O33: VACARIA | P33: 2018-08-14 | Q33: 4 | R33: TURMA FECHADA PARA O IFRS | S33: 4.35 | T33: 0 | U33: 0 | V33: 0 | W33: 0 | X33: 4.35 | Y33: 20RL | Z33: SIM | AA33: 23419.000750/2018-11 | AB33: SIM | AC33: CONCLUIDA | AD33: CERTIFICADO EMITITIDO PELA DGP
A34: PORTO ALEGRE | B34: ADRIANA MARIANO PEDROSO | C34: ADRIANA MARIANO PEDROSO | D34: 2176987 | E34: TECNICO-ADMINISTRATIVO | F34: NENHUM | G34: GABINETE | H34: CAPACITACAO DE CURTA DURACAO NO BRASIL | I34: CURSO APERFEICOAMENTO PROFISSIONAL (CURSO DE CURTA DURACAO) | J34: PRESENCIAL | K34: FORMACAO PEDAGOGICA 2018/1 | L34: FORMACAO PEDAGOGICA 2018/1 | M34: IFRS - POA | N34: PUBLICA | O34: PORTO ALEGRE/RS | P34: 2018-02-26 | Q34: 8 | R34: TURMA FECHADA PARA O IFRS | S34: 0 | T34: 0 | U34: 0 | V34: 0 | W34: 0 | X34: 0 | Y34: NENHUM | Z34: NÃO | AA34: 23368.000111/2018-90 | AC34: CONCLUIDA
A35: PORTO ALEGRE | B35: ADRIANA OLIVEIRA DE PINHO | C35: ADRIANA OLIVEIRA DE PINHO | D35: 1615732 | E35: DOCENTE | F35: NENHUM | G35: DIRETORIA DE ENSINO | H35: CAPACITACAO DE CURTA DURACAO NO BRASIL | I35: CURSO APERFEICOAMENTO PROFISSIONAL (CURSO DE CURTA DURACAO) | J35: PRESENCIAL | K35: FORMACAO PEDAGOGICA 2018/1 | L35: FORMACAO PEDAGOGICA 2018/1 | M35: IFRS - POA | N35: PUBLICA | O35: PORTO ALEGRE/RS | P35: 2018-02-26 | Q35: 8 | R35: TURMA FECHADA PARA O IFRS | S35: 0 | T35: 0 | U35: 0 | V35: 0 | W35: 0 | X35: 0 | Y35: NENHUM | Z35: NÃO | AA35: 23368.000111/2018-90 | AC35: CONCLUIDA
A36: OSORIO | B36: ADRIANA PANCOTTO | C36: ADRIANA PANCOTTO | D36: 2677854 | E36: DOCENTE | F36: NENHUM | G36: ENSINO | H36: CAPACITACAO DE CURTA DURACAO NO BRASIL | I36: CURSO APERFEICOAMENTO PROFISSIONAL (CURSO DE CURTA DURACAO) | J36: PRESENCIAL | K36: 2º ENCONTRO DE PESQUISADORES E EXTENSIONISTAS | L36: 2º ENCONTRO DE PESQUISADORES E EXTENSIONISTAS | M36: IFRS - REITORIA | N36: PUBLICA | O36: BENTO GONÇALVES | P36: 13/08/2018 A 14/08/2018 | Q36: 16 | R36: TURMA FECHADA PARA O IFRS | S36: 273.33 | T36: 0 | U36: 0 | V36: 0 | W36: 0 | X36: 273.33 | Y36: 4572 | Z36: SIM | AA36: 23419.000366/2018-18 | AB36: SIM | AC36: CONCLUIDA | AD36: CERTIFICADOS EMITIDOS PELA DGP
A37: OSORIO | B37: ADRIANA PANCOTTO | C37: ADRIANA PANCOTTO | D37: 2677854 | E37: DOCENTE | F37: NENHUM | G37: ENSINO | H37: AFASTAMENTO INTEGRAL | I37: DOUTORADO | J37: PRESENCIAL | K37: DOUTORADO EM ADMINISTRACAO | L37: DOUTORADO EM ADMINISTRACAO | M37: UFRGS | N37: PUBLICA | O37: PORTO ALEGRE | P37: 14/09/2018 A 16/06/2022 | R37: TURMA ABERTA | S37: 0 | T37: 0 | U37: 0 | V37: 0 | W37: 0 | X37: 0 | Y37: NENHUM | Z37: NÃO | AA37: 23367.000359/2018-61 | AB37: NÃO SE APLICA | AC37: EM TRAMITE | AD37: PORTARIA 336/2018
A38: VIAMAO | B38: ADRIANA PEREIRA DA SILVA | C38: ADRIANA PEREIRA DA SILVA | D38: 2222190 | E38: TECNICO-ADMINISTRATIVO | F38: FG2 | G38: GESTAO DE PESSOAS | H38: CAPACITACAO DE CURTA DURACAO NO BRASIL | I38: CURSO APERFEICOAMENTO PROFISSIONAL (CURSO DE CURTA DURACAO) | J38: PRESENCIAL | K38: CAPACITAÇÃO EM SIAPE E SIAPENET | L38: CAPACITACAO EM SIAPE E SIAPENET | M38: IFRS - REITORIA | N38: PUBLICA | O38: FARROUPILHA | P38: 2018-08-28 | Q38: 4 | R38: TURMA FECHADA PARA O IFRS | S38: 0 | T38: 0 | U38: 195.26 | V38: 0 | W38: 0 | X38: 195.26 | Y38: 4572 | Z38: NÃO | AA38: 23419.000551/2018-02 | AB38: SIM | AC38: CONCLUIDA | AD38: CERTIFICADOS EMITIDOS PELA DGP
A39: VIAMAO | B39: ADRIANA PEREIRA DA SILVA | C39: ADRIANA PEREIRA DA SILVA | D39: 2222190 | E39: TECNICO-ADMINISTRATIVO | F39: FG2 | G39: GESTAO DE PESSOAS | H39: BOLSA DE ESTUDOS | I39: ESPECIALIZACAO | J39: A DISTANCIA | K39: PÓS-GRADUAÇÃO LATU SENSU EM ADMINISTRAÇÃO DE PESSOAS | L39: POS-GRADUACAO LATU SENSU EM ADMINISTRACAO DE PESSOAS | M39: UNIASSELVI | N39: PRIVADA | O39: PORTO ALEGRE | P39: 01/04/2018 a 01/04/2019 | Q39: 400 | R39: TURMA ABERTA | S39: 0 | T39: 0 | U39: 0 | V39: 0 | W39: 1417.5 | X39: 1417.5 | Y39: 4572 | Z39: SIM | AA39: 23742.000171/2018-98 | AB39: SIM | AC39: EM TRAMITE
A40: VIAMAO | B40: ADRIANA PEREIRA DA SILVA | C40: ADRIANA PEREIRA DA SILVA | D40: 2222190 | E40: TECNICO-ADMINISTRATIVO | F40: FG2 | G40: GESTAO DE PESSOAS | H40: LIBERACAO DE CARGA HORARIA (TAE) | I40: ESPECIALIZACAO | J40: A DISTANCIA | K40: PÓS-GRADUAÇÃO LATU SENSU EM ADMINISTRAÇÃO DE PESSOAS | L40: POS-GRADUACAO LATU SENSU EM ADMINISTRACAO DE PESSOAS | M40: UNIASSELVI | N40: PRIVADA | O40: PORTO ALEGRE | P40: 01/04/2018 a 01/04/2019 | Q40: 400 | R40: TURMA ABERTA | S40: 0 | T40: 0 | U40: 0 | V40: 0 | W40: 0 | X40: 0 | Y40: NENHUM | Z40: SIM | AA40: 23742.000272/2018-69 | AB40: SIM | AC40: CONCLUIDA
A41: ROLANTE | B41: ADRIANA REGINA CORRENT | C41: ADRIANA REGINA CORRENT | D41: 1577989 | E41: DOCENTE | F41: NENHUM | G41: DIRETORIA DE ENSINO | H41: CAPACITACAO DE CURTA DURACAO NO BRASIL | I41: CURSO APERFEICOAMENTO PROFISSIONAL (CURSO DE CURTA DURACAO) | J41: PRESENCIAL | K41: III AGRICULTURE AND FOOD IN AN URBANIZING SOCIETY | L41: III AGRICULTURE AND FOOD IN AN URBANIZING SOCIETY | M41: UFRGS | N41: PUBLICA | O41: PORTO AEGRE | P41: 17 A 21/09/2018 | Q41: 40 | R41: TURMA ABERTA | S41: 0 | T41: 0 | U41: 426.9 | V41: 0 | W41: 0 | X41: =SUM(S41:W41) -> 426.9 | Y41: 4572 | Z41: NÃO | AA41: 23740.000272/2018-89 | AB41: NÃO | AC41: CONCLUIDA | AD41: AGUARDANDO certificado
A42: IBIRUBA | B42: ADRIANA RIGUER DELLA MEA | C42: ADRIANA RIGUER DELLA MEA | D42: 1929195 | E42: TECNICO-ADMINISTRATIVO | F42: NENHUM | G42: COORDENADORIA DE ENSINO | H42: CAPACITACAO DE CURTA DURACAO NO BRASIL | I42: CURSO APERFEICOAMENTO PROFISSIONAL (CURSO DE CURTA DURACAO) | J42: A DISTANCIA | K42: CAPACITAÇAO PARA OS MEMBROS DAS CISSPA DO IFRS 2018 | L42: CAPACITACAO PARA OS MEMBROS DAS CISSPA DO IFRS 2018 | M42: IFRS - REITORIA | N42: PUBLICA | O42: BENTO GONÇALVES | P42: 29/11/2018 A 23/12/2018 | Q42: 20 | R42: TURMA FECHADA PARA O IFRS | S42: 0 | T42: 0 | U42: 0 | V42: 0 | W42: 0 | X42: 0 | Y42: NENHUM | Z42: SIM | AA42: 23419.000853/2018-72 | AB42: SIM | AC42: CONCLUIDA
A43: BENTO GONCALVES | B43: ADRIANA ROMERO LOPES | C43: ADRIANA ROMERO LOPES | D43: 1813413 | E43: TECNICO-ADMINISTRATIVO | F43: NENHUM | G43: DEN | H43: CAPACITACAO DE CURTA DURACAO NO BRASIL | I43: CURSO APERFEICOAMENTO PROFISSIONAL (CURSO DE CURTA DURACAO) | J43: PRESENCIAL | K43: ASPECTOS GERENCIAIS DA APURACAO DISCIPLINAR | L43: ASPECTOS GERENCIAIS DA APURACAO DISCIPLINAR | M43: IFRS - REITORIA | N43: PUBLICA | O43: BENTO GONÇALVES | P43: 25 E 26/09/2018 | Q43: 16 | R43: TURMA FECHADA PARA O IFRS | S43: 78.18 | T43: 0 | U43: 0 | V43: 0 | W43: 0 | X43: 78.18 | Y43: 4572 | Z43: SIM | AA43: 23419.000805/2018-84 | AB43: SIM | AC43: CONCLUIDA | AD43: CERTIFICADOS EMITIDOS PELA DGP
A44: BENTO GONCALVES | B44: ADRIANA ROMERO LOPES | C44: ADRIANA ROMERO LOPES | D44: 1813413 | E44: TECNICO-ADMINISTRATIVO | F44: NENHUM | G44: DEN | H44: CAPACITACAO DE CURTA DURACAO NO BRASIL | I44: CURSO APERFEICOAMENTO PROFISSIONAL (CURSO DE CURTA DURACAO) | J44: PRESENCIAL | K44: II FORUM EMI E IV ENCONTRO PROEJA IFRS | L44: II FORUM EMI E IV ENCONTRO PROEJA IFRS | M44: IFRS - REITORIA | N44: PUBLICA | O44: PORTO ALEGRE | P44: 16 E 17 DE AGOSTO DE 2018 | Q44: 12 | R44: TURMA FECHADA PARA O IFRS | S44: 286.05 | T44: 0 | U44: 126 | V44: 0 | W44: 0 | X44: 412.05 | Y44: 4572 | Z44: NÃO | AA44: 23419.000742/2018-66 | AB44: SIM | AC44: CONCLUIDA | AD44: CAMPUS RECEBEU R$ 1000,00 EM DESCENTRALIZAÇÃO ORÇAMENTÁRIA PARA AUXILIAR NAS DESPESAS DE DIÁRIAS E PASSAGENS - CERTIFICADOS EMITIDOS PELA DGP
A45: BENTO GONCALVES | B45: ADRIANA ROMERO LOPES | C45: ADRIANA ROMERO LOPES | D45: 1813413 | E45: TECNICO-ADMINISTRATIVO | F45: NENHUM | G45: DEN | H45: CAPACITACAO DE CURTA DURACAO NO BRASIL | I45: CURSO APERFEICOAMENTO PROFISSIONAL (CURSO DE CURTA DURACAO) | J45: PRESENCIAL | K45: TREINAMENTO SIGAA | L45: TREINAMENTO SIGAA | M45: IFRS - REITORIA | N45: PUBLICA | O45: FARROUPILHA | P45: 2018-09-27 | Q45: 5 | R45: TURMA FECHADA PARA O IFRS | S45: 2.18 | T45: 0 | U45: 0 | V45: 0 | W45: 0 | X45: 2.18 | Y45: 4572 | Z45: NÃO | AA45: 23419.000798/2018-11 | AB45: SIM | AC45: CONCLUIDA | AD45: CERTIFICADOS EMITIDOS PELA DGP
A46: BENTO GONCALVES | B46: ADRIANA ROMERO LOPES | C46: ADRIANA ROMERO LOPES | D46: 1813413 | E46: TECNICO-ADMINISTRATIVO | F46: NENHUM | G46: DEN | H46: CAPACITACAO DE CURTA DURACAO NO BRASIL | I46: CURSO APERFEICOAMENTO PROFISSIONAL (CURSO DE CURTA DURACAO) | J46: PRESENCIAL | K46: VI Congresso Internacional de Educação - Desafios e Soluções para um modelo Hibrido | L46: VI CONGRESSO INTERNACIONAL DE EDUCACAO - DESAFIOS E SOLUCOES PARA UM MODELO HIBRIDO | M46: CIEDU | N46: PRIVADA | O46: FOZ DO IGUACÚ | P46: 05 A 07/12/2018 | Q46: 30 | R46: TURMA ABERTA | S46: 0 | T46: 0 | U46: 796.5 | V46: 1219.91 | W46: 0 | X46: 2016.41
A47: ALVORADA | B47: ADRIANA SILVA MARTINS | C47: ADRIANA SILVA MARTINS | D47: 2233241 | E47: TECNICO-ADMINISTRATIVO | F47: FG2 | G47: GABINETE | H47: CAPACITACAO DE CURTA DURACAO NO BRASIL | I47: CURSO APERFEICOAMENTO PROFISSIONAL (CURSO DE CURTA DURACAO) | J47: PRESENCIAL | K47: CAPACITACAO DOS PRESIDENTES DAS COMISSOES DE HETEROIDENTIFICACAO | L47: CAPACITACAO DOS PRESIDENTES DAS COMISSOES DE HETEROIDENTIFICACAO | M47: IFRS - REITORIA | N47: PUBLICA | O47: PORTO ALEGRE | P47: 2018-12-11 | Q47: 8 | R47: TURMA FECHADA PARA O IFRS | S47: 0 | X47: 0 | Y47: NENHUM | Z47: NÃO | AA47: 23419.0001103/2018-18 | AB47: SIM | AC47: CONCLUIDA | AD47: CERTIFICADO EMITITIDO PELA DGP
A48: ALVORADA | B48: ADRIANA SILVA MARTINS | C48: ADRIANA SILVA MARTINS | D48: 2233241 | E48: TECNICO-ADMINISTRATIVO | F48: FG2 | G48: GABINETE | H48: CAPACITACAO DE CURTA DURACAO NO BRASIL | I48: CURSO APERFEICOAMENTO PROFISSIONAL (CURSO DE CURTA DURACAO) | J48: PRESENCIAL | K48: CAPACITACAO MEMBROS DAS COMISSOES DE HETEROIDENTIFICACAO | L48: CAPACITACAO MEMBROS DAS COMISSOES DE HETEROIDENTIFICACAO | M48: IFRS - REITORIA | N48: PUBLICA | O48: PORTO ALEGRE | P48: 2018-12-10 | Q48: 8 | R48: TURMA FECHADA PARA O IFRS | S48: 56.4 | T48: 0 | U48: 0 | V48: 0 | W48: 0 | X48: 56.4 | Y48: 4572 | Z48: NÃO | AA48: 23419.001102/2018-73 | AB48: SIM | AC48: CONCLUIDA | AD48: CERTIFICADO EMITITIDO PELA DGP
A49: ALVORADA | B49: ADRIANA SILVA MARTINS | C49: ADRIANA SILVA MARTINS | D49: 2233241 | E49: TECNICO-ADMINISTRATIVO | F49: FG2 | G49: GABINETE | H49: BOLSA DE ESTUDOS | I49: GRADUACAO | J49: A DISTANCIA | K49: LICENCIATURA EM CIENCIAS BIOLOGICAS | L49: LICENCIATURA EM CIENCIAS BIOLOGICAS | M49: UNIVERSIDADE CRUZEIRO DO SUL | N49: PRIVADA | O49: SAO PAULO | P49: 16/08/2018 A DEZ/2020 | R49: TURMA ABERTA | W49: 654.99 | X49: 654.99 | Y49: 4572 | Z49: SIM | AA49: 23739.000233/2018-11 | AB49: SIM | AC49: CONCLUIDA
A50: VERANOPOLIS | B50: ADRIANA TEDESCO | C50: ADRIANA TEDESCO | D50: 1321826 | E50: DOCENTE | F50: FG5 | G50: ENSINO | H50: CAPACITACAO DE CURTA DURACAO NO BRASIL | I50: CURSO APERFEICOAMENTO PROFISSIONAL (CURSO DE CURTA DURACAO) | J50: PRESENCIAL | K50: 2º ENCONTRO DE PESQUISADORES E EXTENSIONISTAS | L50: 2º ENCONTRO DE PESQUISADORES E EXTENSIONISTAS | M50: IFRS - REITORIA | N50: PUBLICA | O50: BENTO GONÇALVES | P50: 13/08/2018 A 14/08/2018 | Q50: 16 | R50: TURMA FECHADA PARA O IFRS | S50: 273.33 | T50: 0 | U50: 0 | V50: 0 | W50: 0 | X50: 273.33 | Y50: 4572 | Z50: SIM | AA50: 23419.000366/2018-18 | AB50: SIM | AC50: CONCLUIDA | AD50: CERTIFICADOS EMITIDOS PELA DGP
A51: VERANOPOLIS | B51: ADRIANA TEDESCO | C51: ADRIANA TEDESCO | D51: 1321826 | E51: DOCENTE | F51: NENHUM | G51: ENSINO | H51: CAPACITACAO DE CURTA DURACAO NO BRASIL | I51: CURSO APERFEICOAMENTO PROFISSIONAL (CURSO DE CURTA DURACAO) | J51: PRESENCIAL | K51: FORMACAO PARA ACOES AFIRMATIVAS DE INCLUSAO E DIVERSIDADE | L51: FORMACAO PARA ACOES AFIRMATIVAS DE INCLUSAO E DIVERSIDADE | M51: IFRS - CAMPUS VERANOPOLIS | N51: PUBLICA | O51: VERANOPOLIS | P51: 03/10/18 A 20/11/18 | Q51: 20 | R51: TURMA FECHADA PARA O IFRS | S51: 0 | T51: 0 | U51: 0 | V51: 0 | W51: 0 | X51: 0 | Y51: NENHUM | Z51: NÃO | AA51: 23743.000213/2018-81 | AB51: SIM | AC51: CONCLUIDA | AD51: CERTIFICADO EMITITIDO PELA DGP
A52: VERANOPOLIS | B52: ADRIANA TEDESCO | C52: ADRIANA TEDESCO | D52: 1321826 | E52: DOCENTE | F52: NENHUM | G52: ENSINO | H52: CAPACITACAO DE CURTA DURACAO NO BRASIL | I52: CURSO APERFEICOAMENTO PROFISSIONAL (CURSO DE CURTA DURACAO) | J52: PRESENCIAL | K52: JORNADA DE CAPACITAÇÃO PARA PENSAR O ENSINO MÉDIO INTEGRADO NO CAMPUS VERANOPOLIS | L52: JORNADA DE CAPACITACAO PARA PENSAR O ENSINO MEDIO INTEGRADO NO CAMPUS VERANOPOLIS | M52: IFRS - CAMPUS VERANOPOLIS | N52: PUBLICA | O52: VERANOPOLIS | P52: 05/04/18 A 03/05/2018 | Q52: 20 | R52: TURMA FECHADA PARA O IFRS | S52: 0 | T52: 0 | U52: 0 | V52: 0 | W52: 0 | X52: 0 | Y52: NENHUM | Z52: NÃO | AA52: 23743.000066/2018-49 | AB52: SIM | AC52: CONCLUIDA
A53: VERANOPOLIS | B53: ADRIANA TEDESCO | C53: ADRIANA TEDESCO | D53: 1321826 | E53: DOCENTE | F53: FG5 | G53: ENSINO | H53: CAPACITACAO DE CURTA DURACAO NO BRASIL | I53: CURSO APERFEICOAMENTO PROFISSIONAL (CURSO DE CURTA DURACAO) | J53: PRESENCIAL | K53: OFICINA DE MOODLE PARA O PRÉ-IFRS | L53: OFICINA DE MOODLE PARA O PRE-IFRS | M53: IFRS - REITORIA | N53: PUBLICA | O53: VERANOPOLIS | P53: 2018-07-30 | Q53: 3 | R53: TURMA FECHADA PARA O IFRS | S53: 0 | T53: 0 | U53: 0 | V53: 0 | W53: 0 | X53: 0 | Y53: NENHUM | Z53: NÃO | AA53: 23419.000749/2018-88 | AB53: SIM | AC53: CONCLUIDA | AD53: CERTIFICADOS EMITIDOS PELA DGP
A54: ERECHIM | B54: ADRIANA TROCZINSKI STORTI | C54: ADRIANA TROCZINSKI STORTI | D54: 2386074 | E54: DOCENTE | F54: FG1 | G54: COORDENAÇÃO DE PESQUISA | H54: CAPACITACAO DE CURTA DURACAO NO BRASIL | I54: CURSO APERFEICOAMENTO PROFISSIONAL (CURSO DE CURTA DURACAO) | J54: PRESENCIAL | K54: 2º ENCONTRO DE PESQUISADORES E EXTENSIONISTAS | L54: 2º ENCONTRO DE PESQUISADORES E EXTENSIONISTAS | M54: IFRS - REITORIA | N54: PUBLICA | O54: BENTO GONÇALVES | P54: 13/08/2018 A 14/08/2018 | Q54: 16 | R54: TURMA FECHADA PARA O IFRS | S54: 273.33 | T54: 0 | U54: 0 | V54: 0 | W54: 0 | X54: 273.33 | Y54: 4572 | Z54: SIM | AA54: 23419.000366/2018-18 | AB54: SIM | AC54: CONCLUIDA | AD54: CERTIFICADOS EMITIDOS PELA DGP
A55: ERECHIM | B55: ADRIANA TROCZINSKI STORTI | C55: ADRIANA TROCZINSKI STORTI | D55: 2386074 | E55: DOCENTE | F55: FG1 | G55: PESQUISA | H55: CAPACITACAO DE CURTA DURACAO NO EXTERIOR (AFASTAMENTO PARA EVENTO NO EXTERIOR) | I55: CURSO APERFEICOAMENTO PROFISSIONAL (CURSO DE CURTA DURACAO) | J55: PRESENCIAL | K55: CONGRESSO LATINO AMERICANO DE ADMINISTRAÇAO | L55: CONGRESSO LATINO AMERICANO DE ADMINISTRACAO | M55: UNIVERSIDAD NACIONAL DE MISIONES | O55: ARGENTINA | P55: 09 A 12/09/2018 | R55: TURMA ABERTA | S55: 0 | T55: 0 | U55: 0 | V55: 0 | W55: 0 | X55: 0 | Y55: NENHUM | Z55: NÃO | AA55: 23363000331/2018-63 | AB55: SIM | AC55: CANCELADA | AD55: CANCELADA
A56: FARROUPILHA | B56: ADRIANE REGINATTO | C56: ADRIANE REGINATTO | D56: 1037462 | E56: TECNICO-ADMINISTRATIVO | F56: NENHUM | G56: GESTAO DE PESSOAS | H56: CAPACITACAO DE CURTA DURACAO NO BRASIL | I56: CURSO APERFEICOAMENTO PROFISSIONAL (CURSO DE CURTA DURACAO) | J56: PRESENCIAL | K56: 3º WORKSHOP DA DIVERSIDADE E INCLUSÃO DO IFRS | L56: 3º WORKSHOP DA DIVERSIDADE E INCLUSAO DO IFRS | M56: IFRS PROEX | N56: PUBLICA | O56: BENTO GONÇALVES | P56: 30/10/2018 a 31/10/2018 | Q56: 20 | R56: TURMA FECHADA PARA O IFRS | S56: 0 | T56: 0 | U56: 0 | V56: 0 | W56: 0 | X56: 0 | Y56: NENHUM | Z56: PARCIALMENTE | AA56: 23364.000395/2018-54 | AB56: SIM | AC56: EM TRAMITE
A57: FARROUPILHA | B57: ADRIANE REGINATTO | C57: ADRIANE REGINATTO | D57: 1037462 | E57: TECNICO-ADMINISTRATIVO | F57: NENHUM | G57: GESTAO DE PESSOAS | H57: CAPACITACAO DE CURTA DURACAO NO BRASIL | I57: CURSO APERFEICOAMENTO PROFISSIONAL (CURSO DE CURTA DURACAO) | J57: PRESENCIAL | K57: CAPACITAÇÃO EM SIAPE E SIAPENET | L57: CAPACITACAO EM SIAPE E SIAPENET | M57: IFRS - REITORIA | N57: PUBLICA | O57: FARROUPILHA | P57: 2018-08-28 | Q57: 4 | R57: TURMA FECHADA PARA O IFRS | S57: 0 | T57: 0 | U57: 0 | V57: 0 | W57: 0 | X57: 0 | Y57: NENHUM | Z57: NÃO | AA57: 23419.000551/2018-02 | AB57: SIM | AC57: CONCLUIDA | AD57: CERTIFICADOS EMITIDOS PELA DGP
A58: FARROUPILHA | B58: ADRIANE REGINATTO | C58: ADRIANE REGINATTO | D58: 1037462 | E58: TECNICO-ADMINISTRATIVO | F58: NENHUM | G58: GESTAO DE PESSOAS | H58: CAPACITACAO DE CURTA DURACAO NO BRASIL | I58: CURSO APERFEICOAMENTO PROFISSIONAL (CURSO DE CURTA DURACAO) | J58: A DISTANCIA | K58: PLANEJAMENTO ESTRATEGICO PARA ORGANIZACOES PUBLICAS | L58: PLANEJAMENTO ESTRATEGICO PARA ORGANIZACOES PUBLICAS | M58: ENAP | N58: PUBLICA | O58: FARROUPILHA | P58: 12/04 A 17/05/2018 | Q58: 40 | R58: TURMA ABERTA | S58: 0 | T58: 0 | U58: 0 | V58: 0 | W58: 0 | X58: 0 | Y58: NENHUM | Z58: NÃO | AA58: SEM PROCESSO | AB58: SIM | AC58: CONCLUIDA
A59: FARROUPILHA | B59: ADRIANE REGINATTO | C59: ADRIANE REGINATTO | D59: 1037462 | E59: TECNICO-ADMINISTRATIVO | F59: NENHUM | G59: GESTAO DE PESSOAS | H59: CAPACITACAO DE CURTA DURACAO NO BRASIL | I59: CURSO APERFEICOAMENTO PROFISSIONAL (CURSO DE CURTA DURACAO) | J59: PRESENCIAL | K59: XXXVIII ENDP - ENCONTRO NACIONAL DE DIRIGENTES DE PESSOAL E REC HUMANOS DAS INST FED DE ENSINO | L59: XXXVIII ENDP - ENCONTRO NACIONAL DE DIRIGENTES DE PESSOAL E REC HUMANOS DAS INST FED DE ENSINO | M59: IFAL | N59: PUBLICA | O59: MACEIO | P59: 18 A 21/09/2018 | Q59: 20 | R59: TURMA ABERTA | S59: 0 | T59: 0 | U59: 1066.35 | V59: 2049.84 | W59: 0 | X59: 3116.19 | Y59: 4572 | Z59: SIM | AA59: 23364.000263.2018-22 | AB59: SIM | AC59: CONCLUIDA
A60: VIAMAO | B60: ADRIANO ANDREJEW FERREIRA | C60: ADRIANO ANDREJEW FERREIRA | D60: 1817131 | E60: DOCENTE | F60: NENHUM | G60: ENSINO-VIAMÃO | H60: CAPACITACAO DE CURTA DURACAO NO BRASIL | I60: CURSO APERFEICOAMENTO PROFISSIONAL (CURSO DE CURTA DURACAO) | J60: PRESENCIAL | K60: V ENCONTRO DE AVALIACAO INSTITUCIONAL | L60: V ENCONTRO DE AVALIACAO INSTITUCIONAL | M60: IFRS - REITORIA | N60: PUBLICA | O60: BENTO GONÇALVES | P60: 2018-09-26 | Q60: 8 | R60: TURMA FECHADA PARA O IFRS | S60: 28.33 | T60: 0 | U60: 223.86 | V60: 0 | W60: 0 | X60: 252.19 | Y60: 4572 | Z60: NÃO | AA60: 23419.000867/2018-96 | AB60: SIM | AC60: CONCLUIDA | AD60: CERTIFICADOS EMITIDOS PELA DGP
A61: VIAMAO | B61: ADRIANO BELUCO | C61: ADRIANO BELUCO | D61: 1292554 | E61: DOCENTE | F61: NENHUM | H61: CAPACITACAO DE CURTA DURACAO NO BRASIL | I61: CURSO APERFEICOAMENTO PROFISSIONAL (CURSO DE CURTA DURACAO) | J61: A DISTANCIA | K61: CAPACITAÇAO PARA OS MEMBROS DAS CISSPA DO IFRS 2018 | L61: CAPACITACAO PARA OS MEMBROS DAS CISSPA DO IFRS 2018 | M61: IFRS - REITORIA | N61: PUBLICA | O61: BENTO GONÇALVES | P61: 29/11/2018 A 23/12/2018 | Q61: 20 | R61: TURMA FECHADA PARA O IFRS | S61: 0 | T61: 0 | U61: 0 | V61: 0 | W61: 0 | X61: 0 | Y61: NENHUM | Z61: SIM | AA61: 23419.000853/2018-72 | AB61: SIM | AC61: CONCLUIDA
A62: CAXIAS DO SUL | B62: ADRIANO BRAGA BARRETO | C62: ADRIANO BRAGA BARRETO | D62: 1115879 | E62: DOCENTE | F62: FG1 | G62: Departamento de Ensino | H62: CAPACITACAO DE CURTA DURACAO NO BRASIL | I62: CURSO APERFEICOAMENTO PROFISSIONAL (CURSO DE CURTA DURACAO) | J62: PRESENCIAL | K62: 1º ENCONTRO DOS HABITATS DE INOVACAO E EMPREENDEDORISMO DO IFRS | L62: 1º ENCONTRO DOS HABITATS DE INOVACAO E EMPREENDEDORISMO DO IFRS | M62: IFRS - REITORIA | N62: PUBLICA | O62: BENTO GONCALVES | P62: 2018-10-02 | Q62: 8 | R62: TURMA FECHADA PARA O IFRS | S62: 0 | T62: 0 | U62: 0 | V62: 0 | W62: 0 | X62: 0 | Y62: NENHUM | Z62: SIM | AA62: 23419.000869/2018-85 | AB62: SIM | AC62: CONCLUIDA | AD62: CERTIFICADO EMITIDO PELA REITORIA
A63: CAXIAS DO SUL | B63: Adriano Freritas Escouto | C63: ADRIANO FRERITAS ESCOUTO | D63: 1727743 | E63: TECNICO-ADMINISTRATIVO | F63: NENHUM | G63: Infraestrutura | H63: BOLSA DE ESTUDOS | I63: ESPECIALIZACAO | J63: A DISTANCIA | K63: Geoprocessamento | L63: GEOPROCESSAMENTO | M63: PUC-MG | N63: PRIVADA | O63: EAD | P63: 04/09/2017 à 31/03/2019 | Q63: 360 | R63: TURMA ABERTA | S63: 0 | T63: 0 | U63: 0 | V63: 0 | W63: 3480 | X63: 3480 | Y63: 4572 | Z63: NÃO | AA63: 23362.000334/2018-15 | AB63: NÃO | AC63: EM TRAMITE | AD63: Certificado ao final do curso
A64: PORTO ALEGRE | B64: ADRIANO RODRIGUES JOSE | C64: ADRIANO RODRIGUES JOSE | D64: 1755645 | E64: TECNICO-ADMINISTRATIVO | F64: FG1 | G64: COORDENADORIA DE GESTAO ACADEMICA | H64: CAPACITACAO DE CURTA DURACAO NO BRASIL | I64: CURSO APERFEICOAMENTO PROFISSIONAL (CURSO DE CURTA DURACAO) | J64: PRESENCIAL | K64: BRIGADA DE INCENDIO | L64: BRIGADA DE INCENDIO | M64: CENTRO DE TREINAMENTO PADRE REUS | N64: PRIVADA | O64: ALVORADA/RS | P64: 2018-06-20 | Q64: 4 | R64: TURMA FECHADA PARA O IFRS | S64: 0 | T64: 0 | U64: 0 | V64: 0 | W64: 0 | X64: 33.48 | Y64: 4572 | Z64: SIM | AA64: 23368.001067/2018-35 | AB64: SIM | AC64: CONCLUIDA | AD64: CAPACITACAO DESENVOLVIDA PELO CAMPUS PORTO ALEGRE
A65: PORTO ALEGRE | B65: ADRIANO RODRIGUES JOSE | C65: ADRIANO RODRIGUES JOSE | D65: 1755645 | E65: TECNICO-ADMINISTRATIVO | F65: FG1 | G65: COORDENDORIA DE GESTAO ACADEMICA | H65: CAPACITACAO DE CURTA DURACAO NO BRASIL | I65: CURSO APERFEICOAMENTO PROFISSIONAL (CURSO DE CURTA DURACAO) | J65: PRESENCIAL | K65: CAPACITACAO DOS PRESIDENTES DAS COMISSOES DE HETEROIDENTIFICACAO | L65: CAPACITACAO DOS PRESIDENTES DAS COMISSOES DE HETEROIDENTIFICACAO | M65: IFRS - REITORIA | N65: PUBLICA | O65: PORTO ALEGRE | P65: 2018-12-11 | Q65: 8 | R65: TURMA FECHADA PARA O IFRS | S65: 0 | T65: 0 | U65: 0 | V65: 0 | W65: 0 | X65: 0 | Y65: NENHUM | Z65: NÃO | AA65: 23419.0001103/2018-18 | AB65: SIM | AC65: CONCLUIDA | AD65: CERTIFICADO EMITITIDO PELA DGP
A66: PORTO ALEGRE | B66: ADRIANO RODRIGUES JOSE | C66: =UPPER(Acento(B66)) -> ADRIANO RODRIGUES JOSE | D66: 1755645 | E66: TECNICO-ADMINISTRATIVO | F66: FG1 | G66: COORDENDORIA DE GESTAO ACADEMICA | H66: CAPACITACAO DE CURTA DURACAO NO BRASIL | I66: CURSO APERFEICOAMENTO PROFISSIONAL (CURSO DE CURTA DURACAO) | J66: PRESENCIAL | K66: FORMACAO PEDAGOGICA 2018/1 | L66: =UPPER(Acento(K66)) -> FORMACAO PEDAGOGICA 2018/1 | M66: IFRS - POA | N66: PUBLICA | O66: PORTO ALEGRE/RS | P66: 2018-02-26 | Q66: 8 | R66: TURMA FECHADA PARA O IFRS | S66: 0 | T66: 0 | U66: 0 | V66: 0 | W66: 0 | X66: =SUM(S66:W66) -> 0 | Y66: NENHUM | Z66: NÃO | AA66: 23368.000111/2018-90 | AC66: CONCLUIDA
A67: PORTO ALEGRE | B67: ADRIANO RODRIGUES JOSE | C67: ADRIANO RODRIGUES JOSE | D67: 1755645 | E67: TECNICO-ADMINISTRATIVO | F67: FG1 | G67: COORDENACAO DE ENSINO | H67: CAPACITACAO DE CURTA DURACAO NO BRASIL | I67: CURSO APERFEICOAMENTO PROFISSIONAL (CURSO DE CURTA DURACAO) | J67: PRESENCIAL | K67: GESTÃO E MAPEAMENTO DE PROCESSOS APLICADOS AO SETOR PÚBLICO - 1º EDIÇÃO | L67: GESTAO E MAPEAMENTO DE PROCESSOS APLICADOS AO SETOR PUBLICO - 1º EDICAO | M67: ESAF | N67: PUBLICA | O67: PORTO ALEGRE/RS | P67: 22 A 24/10/2018 | Q67: 24 | R67: TURMA FECHADA PARA O IFRS | S67: 0 | T67: 0 | U67: 0 | V67: 0 | W67: 0 | X67: 232.04 | Y67: 4572 | AA67: 23368.002329/2019-89 | AB67: SIM | AC67: CONCLUIDA | AD67: CAPACITACAO DESENVOLVIDA PELO CAMPUS PORTO ALEGRE
A68: PORTO ALEGRE | B68: ADRIANO RODRIGUES JOSE | C68: ADRIANO RODRIGUES JOSE | D68: 1755645 | E68: TECNICO-ADMINISTRATIVO | F68: FG1 | G68: COORDENADORIA DE GESTAO ACADEMICA | H68: CAPACITACAO DE CURTA DURACAO NO BRASIL | I68: CURSO APERFEICOAMENTO PROFISSIONAL (CURSO DE CURTA DURACAO) | J68: PRESENCIAL | K68: GOVERNANCA NA ADMINISTRACAO PUBLICA | L68: GOVERNANCA NA ADMINISTRACAO PUBLICA | M68: ESAF | N68: PUBLICA | O68: PORTO ALEGRE/RS | P68: 11 A 13/06/2018 | Q68: 20 | R68: TURMA FECHADA PARA O IFRS | S68: 0 | T68: 0 | U68: 0 | V68: 0 | W68: 0 | X68: 24.19 | Y68: 4572 | Z68: NÃO | AA68: 23368.001218/2018-55 | AB68: NÃO | AC68: CONCLUIDA | AD68: CAPACITACAO DESENVOLVIDA PELO CAMPUS PORTO ALEGRE
A69: PORTO ALEGRE | B69: ADRIANO RODRIGUES JOSE | C69: ADRIANO RODRIGUES JOSE | D69: 1755645 | E69: TECNICO-ADMINISTRATIVO | F69: FG1 | G69: COORDENDORIA DE GESTAO DE ENSINO | H69: CAPACITACAO DE CURTA DURACAO NO BRASIL | I69: CURSO APERFEICOAMENTO PROFISSIONAL (CURSO DE CURTA DURACAO) | J69: PRESENCIAL | K69: II FORUM EMI E IV ENCONTRO PROEJA IFRS | L69: II FORUM EMI E IV ENCONTRO PROEJA IFRS | M69: IFRS - REITORIA | N69: PUBLICA | O69: PORTO ALEGRE/RS | P69: 16 E 17 DE AGOSTO DE 2018 | Q69: 12 | R69: TURMA FECHADA PARA O IFRS | S69: 286.05 | T69: 0 | U69: 0 | V69: 0 | W69: 0 | X69: =SUM(S69:W69) -> 286.05 | Y69: 4572 | Z69: NÃO | AA69: 23419.000742/2018-66 | AB69: SIM | AC69: CONCLUIDA | AD69: CERTIFICADOS EMITIDOS PELA DGP
A70: PORTO ALEGRE | B70: ADRIANO RODRIGUES JOSE | C70: ADRIANO RODRIGUES JOSE | D70: 1755645 | E70: TECNICO-ADMINISTRATIVO | F70: FG1 | G70: COORDENADORIA DE GESTAO DE ENSINO | H70: CAPACITACAO DE CURTA DURACAO NO BRASIL | I70: CURSO APERFEICOAMENTO PROFISSIONAL (CURSO DE CURTA DURACAO) | J70: PRESENCIAL | K70: NOVEMBRO NEGRO DIA DA CONSCIENCIA NEGRA | L70: NOVEMBRO NEGRO DIA DA CONSCIENCIA NEGRA | M70: IFRS - CAMPUS FELIZ | N70: PUBLICA | O70: FELIZ/RS | P70: 2018-11-20 | Q70: 1 | R70: TURMA FECHADA PARA O IFRS | S70: 0 | T70: 0 | U70: 0 | V70: 0 | W70: 0 | X70: =SUM(S70:W70) -> 0 | Y70: NENHUM | AA70: 23368.002888/2018-99 | AB70: SIM | AC70: CONCLUIDA
A71: PORTO ALEGRE | B71: ADRIANO RODRIGUES JOSE | C71: ADRIANO RODRIGUES JOSE | D71: 1755645 | E71: TECNICO-ADMINISTRATIVO | F71: FG1 | G71: COORDENADORIA DE GESTÃO DE ENSINO | H71: CAPACITACAO DE CURTA DURACAO NO BRASIL | I71: CURSO APERFEICOAMENTO PROFISSIONAL (CURSO DE CURTA DURACAO) | J71: PRESENCIAL | K71: PROCESSO ADMINISTRATIVO DISCIPLINAR- PAD 22º EDIÇÃO | L71: PROCESSO ADMINISTRATIVO DISCIPLINAR- PAD 22º EDICAO | M71: ESAF | N71: PUBLICA | O71: PORTO ALEGRE/RS | P71: 01 A 05/10/2018 | Q71: 40 | R71: TURMA FECHADA PARA O IFRS | S71: 0 | T71: 0 | U71: 0 | V71: 0 | W71: 0 | X71: 315.74 | Y71: 4572 | AA71: 23368.002328/2018-34 | AB71: SIM | AC71: CONCLUIDA | AD71: CAPACITACAO DESENVOLVIDA PELO CAMPUS PORTO ALEGRE
A72: PORTO ALEGRE | B72: ADRIANO RODRIGUES JOSE | C72: ADRIANO RODRIGUES JOSE | D72: 1755645 | E72: TECNICO-ADMINISTRATIVO | F72: FG1 | G72: COORDENADORIA DE GESTÃO DE ENSINO | H72: CAPACITACAO DE CURTA DURACAO NO BRASIL | I72: CURSO APERFEICOAMENTO PROFISSIONAL (CURSO DE CURTA DURACAO) | J72: PRESENCIAL | K72: TREINAMENTO SIGAA | L72: TREINAMENTO SIGAA | M72: IFRS - REITORIA | N72: PUBLICA | O72: FARROUPILHA/RS | P72: 2018-09-27 | Q72: 5 | R72: TURMA FECHADA PARA O IFRS | S72: 2.18 | T72: 0 | U72: 67.68 | V72: 0 | W72: 0 | X72: =SUM(S72:W72) -> 69.86 | Y72: 4572 | Z72: NÃO | AA72: 23368.002691/2018-50 | AB72: SIM | AC72: CONCLUIDA | AD72: CERTIFICADO EMITIDO PELA DGP
A73: ERECHIM | B73: AIRTON CAMPANHOLA BORTOLUZZI | C73: AIRTON CAMPANHOLA BORTOLUZZI | D73: 1737018 | E73: DOCENTE | F73: NENHUM | G73: DEPARTAMENTO DE ENSINO | H73: CAPACITACAO DE CURTA DURACAO NO BRASIL | I73: CURSO APERFEICOAMENTO PROFISSIONAL (CURSO DE CURTA DURACAO) | J73: PRESENCIAL | K73: CURSO DE GERENCIAMENTO DE PROJETOS | L73: CURSO DE GERENCIAMENTO DE PROJETOS | M73: IFRS - CAMPUS ERECHIM | N73: PUBLICA | O73: ERECHIM | P73: 6,7,13 E 14/04/2018 | Q73: 24 | R73: TURMA FECHADA PARA O IFRS | S73: 0 | T73: 0 | U73: 619.5 | V73: 0 | W73: 0 | X73: 619.5 | Y73: 4572 | Z73: NÃO | AA73: 23363.000090/2018-52 | AB73: SIM | AC73: CONCLUIDA
A74: ERECHIM | B74: AIRTON CAMPANHOLA BORTOLUZZI | C74: AIRTON CAMPANHOLA BORTOLUZZI | D74: 1737018 | E74: DOCENTE | F74: NENHUM | G74: DEPARTAMENTO DE ENSINO | H74: CAPACITACAO DE CURTA DURACAO NO BRASIL | I74: CURSO APERFEICOAMENTO PROFISSIONAL (CURSO DE CURTA DURACAO) | J74: PRESENCIAL | K74: ELABORAÇAO DE PLANO DE PREVENÇAO CONTRA INCENDIO - PPCI | L74: ELABORACAO DE PLANO DE PREVENCAO CONTRA INCENDIO - PPCI | M74: IFRS - REITORIA | N74: PUBLICA | O74: BENTO GONÇALVES | P74: 04/06/2018 A 07/06/2018 | Q74: 30 | R74: TURMA FECHADA PARA O IFRS | S74: 163.46 | T74: 0 | U74: 0 | V74: 0 | W74: 0 | X74: 163.46 | Y74: 4572 | Z74: SIM | AA74: 23419.000214/2018-15 | AB74: SIM | AC74: CONCLUIDA
A75: REITORIA | B75: ALANA BLUM SARAIVA NUNES | C75: ALANA BLUM SARAIVA NUNES | D75: 3020868 | E75: TECNICO-ADMINISTRATIVO | F75: NENHUM | G75: DLC | H75: CAPACITACAO DE CURTA DURACAO NO BRASIL | I75: CURSO APERFEICOAMENTO PROFISSIONAL (CURSO DE CURTA DURACAO) | J75: PRESENCIAL | K75: BRIGADA DE INCENDIO | L75: BRIGADA DE INCENDIO | M75: IFRS- REITORIA | N75: PUBLICA | O75: BENTO GONÇALVES | P75: 26/11/2018 A 28/11/2018 | Q75: 20 | R75: TURMA FECHADA PARA O IFRS | S75: 206.25 | T75: 0 | U75: 0 | V75: 0 | W75: 0 | X75: 206.25 | Y75: 4572 | Z75: SIM | AA75: 23419.000989/2018-82 | AB75: SIM | AC75: CONCLUIDA
A76: SERTAO | B76: ALANA BLUM SARAIVA NUNES | C76: ALANA BLUM SARAIVA NUNES | D76: 3020868 | E76: TECNICO-ADMINISTRATIVO | F76: NENHUM | G76: COORDENADORIA DE REGISTROS ACADEMICOS | H76: LIBERACAO DE CARGA HORARIA (TAE) | I76: ESPECIALIZACAO | J76: PRESENCIAL | K76: ESPECIALIZAÇÃO EM MATEMATICA | L76: ESPECIALIZACAO EM MATEMATICA | M76: IFRS | N76: PUBLICA | O76: BENTO GONÇALVES | P76: 16/04/2018 A 07/07/2018 | Q76: 420 | R76: TURMA ABERTA | S76: 0 | T76: 0 | U76: 0 | V76: 0 | W76: 0 | X76: 0 | Y76: NENHUM | Z76: NÃO | AA76: 23371.000186/2018-11 | AB76: SIM | AC76: CONCLUIDA | AD76: PORTARIA SRT 158 DE 16 DE ABRIL DE 2018
A77: ALVORADA | B77: ALAOR RIBEIRO DE SOUZA | C77: ALAOR RIBEIRO DE SOUZA | D77: 1166752 | E77: TECNICO-ADMINISTRATIVO | F77: FG2 | G77: DAP | H77: CAPACITACAO DE CURTA DURACAO NO BRASIL | I77: CURSO APERFEICOAMENTO PROFISSIONAL (CURSO DE CURTA DURACAO) | J77: PRESENCIAL | K77: GESTAO DE RISCOS NAS CONTRATACOES PUBLICAS | L77: GESTAO DE RISCOS NAS CONTRATACOES PUBLICAS | M77: ESAF | N77: PRIVADA | O77: PORTO ALEGRE | P77: 22/03/2018 A 23/03/2018 | Q77: 16 | R77: TURMA ABERTA | X77: 0 | Z77: NÃO | AA77: 23739.000018/2018-10 | AB77: SIM | AC77: CONCLUIDA
A78: REITORIA | B78: ALBERT CARAVACA | C78: ALBERT CARAVACA | D78: 1437304 | E78: TECNICO-ADMINISTRATIVO | F78: CD3 | G78: PROCURADORIA | H78: CAPACITACAO DE CURTA DURACAO NO BRASIL | I78: CURSO APERFEICOAMENTO PROFISSIONAL (CURSO DE CURTA DURACAO) | J78: PRESENCIAL | K78: CURSO INTRODUTORIO DE GESTAO DE LIDERANÇAS DA PROCURADORIA GERAL FEDERALÇ | L78: CURSO INTRODUTORIO DE GESTAO DE LIDERANCAS DA PROCURADORIA GERAL FEDERALC | M78: PROCURADORIA-GERAL FEDERAL | N78: PUBLICA | O78: BRASILIA | P78: 11/09 A 14/09/2018 | Q78: 32 | R78: TURMA ABERTA | S78: 0 | T78: 0 | U78: 0 | V78: 0 | W78: 0 | X78: 0 | Y78: NENHUM | Z78: NÃO | AA78: 23419.000859/2018-40 | AB78: NÃO SE APLICA | AC78: INDEFERIDA | AD78: NÃO É SERVIDOR DO IFRS - ART 6º DO PROGRAMA DE CAPACITAÇÃO
A79: VERANOPOLIS | B79: ALCIONE MORAES JACQUES | C79: ALCIONE MORAES JACQUES | D79: 1823571 | E79: DOCENTE | F79: NENHUM | G79: ENSINO | H79: CAPACITACAO DE CURTA DURACAO NO EXTERIOR (AFASTAMENTO PARA EVENTO NO EXTERIOR) | I79: CURSO APERFEICOAMENTO PROFISSIONAL (CURSO DE CURTA DURACAO) | J79: PRESENCIAL | K79: CURSO DE ESPãNOL PARA EXTRANJEROS | L79: CURSO DE ESPANOL PARA EXTRANJEROS | M79: SPANISH LANGUAGE LEARNING DON QUIJOTE | N79: PRIVADA | O79: QUITO - EQUADOR | P79: 17/09/2018 A 28/09/2018 | Q79: 40 | R79: TURMA ABERTA | S79: 0 | T79: 0 | U79: 0 | V79: 0 | W79: 0 | X79: 0 | Y79: NENHUM | Z79: NÃO | AA79: 23743.000100/2018-85 | AB79: NÃO | AC79: CONCLUIDA
A80: VERANOPOLIS | B80: ALCIONE MORAES JACQUES | C80: ALCIONE MORAES JACQUES | D80: 1823571 | E80: DOCENTE | F80: NENHUM | G80: ENSINO | H80: CAPACITACAO DE CURTA DURACAO NO BRASIL | I80: CURSO APERFEICOAMENTO PROFISSIONAL (CURSO DE CURTA DURACAO) | J80: PRESENCIAL | K80: JORNADA DE CAPACITAÇÃO PARA PENSAR O ENSINO MÉDIO INTEGRADO NO CAMPUS VERANOPOLIS | L80: JORNADA DE CAPACITACAO PARA PENSAR O ENSINO MEDIO INTEGRADO NO CAMPUS VERANOPOLIS | M80: IFRS - CAMPUS VERANOPOLIS | N80: PUBLICA | O80: VERANOPOLIS | P80: 05/04/18 A 03/05/2018 | Q80: 20 | R80: TURMA FECHADA PARA O IFRS | S80: 0 | T80: 0 | U80: 0 | V80: 0 | W80: 0 | X80: 0 | Y80: NENHUM | Z80: NÃO | AA80: 23743.000066/2018-50 | AB80: SIM | AC80: CONCLUIDA
A81: ROLANTE | B81: ALCIONE ROSA DE MORAIS | C81: ALCIONE ROSA DE MORAIS | D81: 1702209 | E81: TECNICO-ADMINISTRATIVO | F81: NENHUM | G81: COORDENADORIA DE TECNOLOGIA DA INFORMAÇÃO | H81: CAPACITACAO DE CURTA DURACAO NO BRASIL | I81: CURSO APERFEICOAMENTO PROFISSIONAL (CURSO DE CURTA DURACAO) | J81: A DISTANCIA | K81: CAPACITAÇAO PARA OS MEMBROS DAS CISSPA DO IFRS 2018 | L81: CAPACITACAO PARA OS MEMBROS DAS CISSPA DO IFRS 2018 | M81: IFRS - REITORIA | N81: PUBLICA | O81: BENTO GONÇALVES | P81: 29/11/2018 A 23/12/2018 | Q81: 20 | R81: TURMA FECHADA PARA O IFRS | S81: 0 | T81: 0 | U81: 0 | V81: 0 | W81: 0 | X81: 0 | Y81: NENHUM | Z81: SIM | AA81: 23419.000853/2018-72 | AB81: SIM | AC81: CONCLUIDA
A82: VACARIA | B82: ALENCAR OLIVEIRA DE MATOS | C82: ALENCAR OLIVEIRA DE MATOS | D82: 2358755 | E82: TECNICO-ADMINISTRATIVO | F82: NENHUM | G82: DIRETORIA DE ENSINO | H82: CAPACITACAO DE CURTA DURACAO NO BRASIL | I82: CURSO APERFEICOAMENTO PROFISSIONAL (CURSO DE CURTA DURACAO) | J82: PRESENCIAL | K82: CURSO DE CONSERVAÇÃO E RESTAURAÇÃO DE ACERVOS BIBLIOGRÁFICOS | L82: CURSO DE CONSERVACAO E RESTAURACAO DE ACERVOS BIBLIOGRAFICOS | M82: IFRS | N82: PUBLICA | O82: SERTÃO | P82: 14/05/2018 A 18/05/2018 | Q82: 30 | R82: TURMA ABERTA | T82: 0 | U82: 471.87 | V82: 0 | W82: 0 | X82: 471.87 | Y82: 4572 | Z82: SIM | AA82: 23741.000175/2018-86 | AB82: SIM | AC82: CONCLUIDA | AD82: 2018-05-23
A83: VACARIA | B83: ALENCAR OLIVEIRA DE MATOS | C83: ALENCAR OLIVEIRA DE MATOS | D83: 2358755 | E83: TECNICO-ADMINISTRATIVO | F83: NENHUM | G83: DIRETORIA DE ENSINO | H83: BOLSA DE ESTUDOS | I83: GRADUACAO | J83: A DISTANCIA | K83: LICENCIATURA EM FILOSOFIA | L83: LICENCIATURA EM FILOSOFIA | M83: UNINTER | N83: PRIVADA | O83: NÃO SE APLICA | P83: 31/03/2017 a 31/03/2020 | R83: TURMA ABERTA | T83: 0 | U83: 0 | V83: 0 | W83: 0 | X83: 0 | Y83: 4572 | Z83: SIM | AA83: 23741.000169/2017-48 | AB83: NÃO SE APLICA | AC83: EM TRAMITE | AD83: RENOVAÇÃO DE BOLSA DE ESTUDOS
A84: VIAMAO | B84: ALESSANDRA ARAGON NEVADO | C84: ALESSANDRA ARAGON NEVADO | D84: 1866512 | E84: TECNICO-ADMINISTRATIVO | F84: NENHUM | G84: COMUNICAÇÃO | H84: CAPACITACAO DE CURTA DURACAO NO BRASIL | I84: CURSO APERFEICOAMENTO PROFISSIONAL (CURSO DE CURTA DURACAO) | J84: PRESENCIAL | K84: 3º WORKSHOP DE COMUNICAÇAO - COMUNICAÇAO DE CRISE | L84: 3º WORKSHOP DE COMUNICACAO - COMUNICACAO DE CRISE | M84: IFRS - REITORIA | N84: PUBLICA | O84: CANOAS | P84: 27 E 28 DE AGOSTO DE 2018 | Q84: 10 | R84: TURMA FECHADA PARA O IFRS | S84: 0 | T84: 0 | U84: 0 | V84: 0 | W84: 0 | X84: 0 | Y84: NENHUM | Z84: SIM | AA84: 23419.000213/2018-62 | AB84: SIM | AC84: CONCLUIDA | AD84: CERTIFICADOS EMITIDOS PELA DGP
A85: VACARIA | B85: ALESSANDRA DOS SANTOS PAIM | C85: ALESSANDRA DOS SANTOS PAIM | D85: 3062408 | E85: TECNICO-ADMINISTRATIVO | F85: NENHUM | G85: COORDENADORIA DE ASSISTÊNCIA ESTUDANTIL | H85: CAPACITACAO DE CURTA DURACAO NO BRASIL | I85: CURSO APERFEICOAMENTO PROFISSIONAL (CURSO DE CURTA DURACAO) | J85: PRESENCIAL | K85: CAPACITACAO DAS EQUIPES DE ASSISTENCIA ESTUDANTIL | L85: CAPACITACAO DAS EQUIPES DE ASSISTENCIA ESTUDANTIL | M85: IFRS - REITORIA | N85: PUBLICA | O85: BENTO GONÇALVES | P85: 2018-09-27 | Q85: 8 | R85: TURMA FECHADA PARA O IFRS | S85: 61.9 | T85: 0 | U85: 0 | V85: 0 | W85: 0 | X85: 61.9 | Y85: 4572 | Z85: SIM | AA85: 23419.000873/2018-43 | AB85: SIM | AC85: CONCLUIDA | AD85: CERTIFICADOS EMITIDOS PELA DGP
A86: VACARIA | B86: ALESSANDRA DOS SANTOS PAIM | C86: ALESSANDRA DOS SANTOS PAIM | D86: 3062408 | E86: TECNICO-ADMINISTRATIVO | F86: NENHUM | G86: COORDENADORIA DE ASSISTÊNCIA ESTUDANTIL | H86: CAPACITACAO DE CURTA DURACAO NO BRASIL | I86: CURSO APERFEICOAMENTO PROFISSIONAL (CURSO DE CURTA DURACAO) | J86: PRESENCIAL | K86: CAPACITACAO DOS PRESIDENTES DAS COMISSOES DE HETEROIDENTIFICACAO | L86: CAPACITACAO DOS PRESIDENTES DAS COMISSOES DE HETEROIDENTIFICACAO | M86: IFRS - REITORIA | N86: PUBLICA | O86: PORTO ALEGRE | P86: 2018-12-11 | Q86: 8 | R86: TURMA FECHADA PARA O IFRS | S86: 0 | T86: 0 | U86: 0 | V86: 0 | W86: 0 | X86: 0 | Y86: NENHUM | Z86: NÃO | AA86: 23419.001103/2018-18 | AB86: SIM | AC86: CONCLUIDA | AD86: CERTIFICADO EMITITIDO PELA DGP
A87: VACARIA | B87: ALESSANDRA DOS SANTOS PAIM | C87: ALESSANDRA DOS SANTOS PAIM | D87: 3062408 | E87: TECNICO-ADMINISTRATIVO | F87: NENHUM | G87: COORDENADORIA DE ASSISTÊNCIA ESTUDANTIL | H87: CAPACITACAO DE CURTA DURACAO NO BRASIL | I87: CURSO APERFEICOAMENTO PROFISSIONAL (CURSO DE CURTA DURACAO) | J87: PRESENCIAL | K87: CAPACITACAO MEMBROS DAS COMISSOES DE HETEROIDENTIFICACAO | L87: CAPACITACAO MEMBROS DAS COMISSOES DE HETEROIDENTIFICACAO | M87: IFRS - REITORIA | N87: PUBLICA | O87: PORTO ALEGRE | P87: 2018-12-10 | Q87: 8 | R87: TURMA FECHADA PARA O IFRS | S87: 56.4 | T87: 0 | U87: 0 | V87: 0 | W87: 0 | X87: 56.4 | Y87: 4572 | Z87: NÃO | AA87: 23419.001102/2018-73 | AB87: SIM | AC87: CONCLUIDA | AD87: CERTIFICADO EMITITIDO PELA DGP
A88: VACARIA | B88: ALESSANDRA DOS SANTOS PAIM | C88: ALESSANDRA DOS SANTOS PAIM | D88: 3062408 | E88: TECNICO-ADMINISTRATIVO | F88: NENHUM | G88: COORDENADORIA DE ASSISTÊNCIA ESTUDANTIL | H88: CAPACITACAO DE CURTA DURACAO NO BRASIL | I88: CURSO APERFEICOAMENTO PROFISSIONAL (CURSO DE CURTA DURACAO) | J88: PRESENCIAL | K88: II FORUM DE ASSISTENCIA ESTUDANTIL E I SEMINARIO DE PERMANENCIA E EXITO | L88: II FORUM DE ASSISTENCIA ESTUDANTIL E I SEMINARIO DE PERMANENCIA E EXITO | M88: IFRS - REITORIA | N88: PUBLICA | O88: BENTO GONÇALVES | P88: 2018-09-28 | Q88: 8 | R88: TURMA FECHADA PARA O IFRS | S88: 54.21 | T88: 0 | U88: 223.86 | V88: 0 | W88: 0 | X88: 278.07 | Y88: 4572 | Z88: SIM | AA88: 23419.000872/2018-07 | AB88: SIM | AC88: CONCLUIDA | AD88: CERTIFICADO EMITIDO PELA DGP
A89: BENTO GONCALVES | B89: ALESSANDRA ISNARDI LEMONS | C89: ALESSANDRA ISNARDI LEMONS | D89: 14438534 | E89: TECNICO-ADMINISTRATIVO | F89: NENHUM | G89: DEN | H89: CAPACITACAO DE CURTA DURACAO NO BRASIL | I89: CURSO APERFEICOAMENTO PROFISSIONAL (CURSO DE CURTA DURACAO) | J89: PRESENCIAL | K89: FORMAÇÃO PEDAGÓGICA 01/2018 | L89: FORMACAO PEDAGOGICA 01/2018 | M89: IFRS-CAMPUS BENTO GONÇALVES | N89: PUBLICA | O89: BENTO GONÇALVES | P89: 15/02 A 16/02 | Q89: 16 | R89: TURMA FECHADA PARA O IFRS | S89: 0 | T89: 0 | U89: 0 | V89: 0 | W89: 0 | X89: 0 | Y89: 4572 | Z89: SIM | AA89: 23360.000026/2018-00 | AB89: NÃO SE APLICA | AC89: CONCLUIDA | AD89: VALOR TOTAL INVESTIDO PELO CAMPUS: R$ 2.760,00
A90: BENTO GONCALVES | B90: ALESSANDRA ISNARDI LEMONS | C90: ALESSANDRA ISNARDI LEMONS | D90: 1443853 | E90: TECNICO-ADMINISTRATIVO | F90: NENHUM | H90: CAPACITACAO DE CURTA DURACAO NO BRASIL | I90: CURSO APERFEICOAMENTO PROFISSIONAL (CURSO DE CURTA DURACAO) | J90: PRESENCIAL | K90: PROCESSO ADMINISTRATIVO DISCIPLINAR- PAD 22º EDIÇÃO | L90: PROCESSO ADMINISTRATIVO DISCIPLINAR- PAD 22º EDICAO | M90: ESAF | N90: PUBLICA | O90: PORTO ALEGRE/RS | P90: 01 A 05/10/2018 | Q90: 40 | R90: TURMA FECHADA PARA O IFRS | S90: 0 | T90: 0 | U90: 0 | V90: 0 | W90: 0 | X90: 315.74 | Y90: 4572 | AA90: 23368.002328/2018-34 | AB90: SIM | AC90: CONCLUIDA | AD90: CAPACITACAO DESENVOLVIDA PELO CAMPUS PORTO ALEGRE
A91: RIO GRANDE | B91: ALESSANDRA RUIZ TREVISOL | C91: ALESSANDRA RUIZ TREVISOL | D91: 1618641 | E91: TECNICO-ADMINISTRATIVO | F91: NENHUM | G91: DEPARTAMENTO DE EXECUÇÃO ORÇAMENTÁRIA E FINANCEIRA | H91: AFASTAMENTO INTEGRAL | I91: MESTRADO | J91: PRESENCIAL | K91: MESTRADO DIREITO E JUSTIÇA SOCIAL | L91: MESTRADO DIREITO E JUSTICA SOCIAL | M91: UNIVERSIDADE FEDERAL DO RIO GRANDE (FURG) | N91: PUBLICA | O91: RIO GRANDE | P91: 2017-2019 | R91: TURMA ABERTA | S91: 0 | T91: 0 | U91: 0 | V91: 0 | W91: 0 | X91: =SUM(S91:W91) -> 0 | Y91: NENHUM | Z91: NÃO | AA91: 23370.000159.2017-78 | AB91: NÃO SE APLICA | AC91: CONCLUIDA | AD91: PORTARIA IFRS 999/2017
A92: FELIZ | B92: ALESSANDRA SMANIOTTO | C92: ALESSANDRA SMANIOTTO | D92: 1017829 | E92: DOCENTE | F92: FG1 | H92: CAPACITACAO DE CURTA DURACAO NO BRASIL | I92: CURSO APERFEICOAMENTO PROFISSIONAL (CURSO DE CURTA DURACAO) | J92: PRESENCIAL | K92: 2º ENCONTRO DE PESQUISADORES E EXTENSIONISTAS | L92: 2º ENCONTRO DE PESQUISADORES E EXTENSIONISTAS | M92: IFRS - REITORIA | N92: PUBLICA | O92: BENTO GONÇALVES | P92: 13/08/2018 A 14/08/2018 | Q92: 16 | R92: TURMA FECHADA PARA O IFRS | S92: 273.33 | T92: 0 | U92: 0 | V92: 0 | W92: 0 | X92: =SUM(S92:W92) -> 273.33 | Y92: 4572 | Z92: SIM | AA92: 23419.000366/2018-18 | AB92: SIM | AC92: CONCLUIDA | AD92: CERTIFICADOS EMITIDOS PELA DGP
A93: PORTO ALEGRE | B93: ALEX DIAS GONSALES | C93: ALEX DIAS GONSALES | D93: 1785689 | E93: DOCENTE | F93: NENHUM | G93: DIRETORIA DE ENSINO | H93: CAPACITACAO DE CURTA DURACAO NO BRASIL | I93: CURSO APERFEICOAMENTO PROFISSIONAL (CURSO DE CURTA DURACAO) | J93: PRESENCIAL | K93: BRIGADA DE INCENDIO | L93: BRIGADA DE INCENDIO | M93: CENTRO DE TREINAMENTO PADRE REUS | N93: PRIVADA | O93: ALVORADA/RS | P93: 2018-06-21 | Q93: 4 | R93: TURMA FECHADA PARA O IFRS | S93: 0 | T93: 0 | U93: 0 | V93: 0 | W93: 0 | X93: 33.48 | Y93: 4572 | Z93: SIM | AA93: 23368.001067/2018-35 | AB93: SIM | AC93: CONCLUIDA | AD93: CAPACITACAO DESENVOLVIDA PELO CAMPUS PORTO ALEGRE
A94: PORTO ALEGRE | B94: ALEX DIAS GONSALES | C94: ALEX DIAS GONSALES | D94: 1785689 | E94: DOCENTE | F94: NENHUM | G94: DIRETORIA DE ENSINO | H94: CAPACITACAO DE CURTA DURACAO NO BRASIL | I94: CURSO APERFEICOAMENTO PROFISSIONAL (CURSO DE CURTA DURACAO) | J94: PRESENCIAL | K94: FORMACAO PEDAGOGICA 2018/1 | L94: FORMACAO PEDAGOGICA 2018/1 | M94: IFRS - POA | N94: PUBLICA | O94: PORTO ALEGRE/RS | P94: 2018-02-26 | Q94: 8 | R94: TURMA FECHADA PARA O IFRS | S94: 0 | T94: 0 | U94: 0 | V94: 0 | W94: 0 | X94: =SUM(S94:W94) -> 0 | Y94: NENHUM | Z94: NÃO | AA94: 23368.000111/2018-90 | AC94: CONCLUIDA
A95: PORTO ALEGRE | B95: ALEX MARTINS DE OLIVEIRA | C95: ALEX MARTINS DE OLIVEIRA | D95: 1191577 | E95: DOCENTE | F95: FUC1 | G95: DIRETORIA DE ENSINO | H95: BOLSA DE ESTUDOS | I95: DOUTORADO | J95: PRESENCIAL | K95: DOUTORADO EM EDUCAÇAO | L95: DOUTORADO EM EDUCACAO | M95: UNISINOS | N95: PRIVADA | O95: SAO LEOPOLDO/RS | R95: TURMA ABERTA | S95: 0 | T95: 0 | U95: 0 | V95: 0 | W95: 5000 | X95: 5000 | Y95: 4572 | Z95: NÃO | AA95: 23368.000405.2015-79 | AB95: NÃO | AC95: EM TRAMITE | AD95: RENOVADO PELO EDITAL 20/2018
A96: PORTO ALEGRE | B96: ALEX MARTINS DE OLIVEIRA | C96: ALEX MARTINS DE OLIVEIRA | D96: 1191577 | E96: DOCENTE | F96: FUC1 | G96: DIRETORIA DE ENSINO | H96: CAPACITACAO DE CURTA DURACAO NO BRASIL | I96: CURSO APERFEICOAMENTO PROFISSIONAL (CURSO DE CURTA DURACAO) | J96: PRESENCIAL | K96: FORMACAO PEDAGOGICA 2018/1 | L96: FORMACAO PEDAGOGICA 2018/1 | M96: IFRS - POA | N96: PUBLICA | O96: PORTO ALEGRE/RS | P96: 2018-02-26 | Q96: 8 | R96: TURMA FECHADA PARA O IFRS | S96: 0 | T96: 0 | U96: 0 | V96: 0 | W96: 0 | X96: 0 | Y96: NENHUM | Z96: NÃO | AA96: 23368.000111/2018-90 | AC96: CONCLUIDA
A97: PORTO ALEGRE | B97: ALEX MARTINS DE OLIVEIRA | C97: ALEX MARTINS DE OLIVEIRA | D97: 1191577 | E97: DOCENTE | F97: FUC1 | G97: DIRETORIA DE ENSINO | H97: CAPACITACAO DE CURTA DURACAO NO BRASIL | I97: CURSO APERFEICOAMENTO PROFISSIONAL (CURSO DE CURTA DURACAO) | J97: PRESENCIAL | K97: II CONGRESSO NACIONAL DE EDUCAÇÃO | L97: II CONGRESSO NACIONAL DE EDUCACAO | N97: PUBLICA | O97: POCOS DE CALDAS/MG | P97: 08/06/2018 A 09/06/2018 | Q97: 16 | R97: TURMA ABERTA | S97: 0 | T97: 0 | U97: 0 | V97: 0 | W97: 0 | X97: 0 | Y97: NENHUM | Z97: NÃO | AA97: 23368.001226/2018-00 | AB97: SIM | AC97: CONCLUIDA
A98: PORTO ALEGRE | B98: ALEX MARTINS DE OLIVEIRA | C98: ALEX MARTINS DE OLIVEIRA | D98: 1191577 | E98: DOCENTE | F98: FUC1 | G98: COORDENAÇÃO DO CURSO TÉCNICO EM REDES DE COMPUTADORES | H98: CAPACITACAO DE CURTA DURACAO NO BRASIL | I98: CURSO APERFEICOAMENTO PROFISSIONAL (CURSO DE CURTA DURACAO) | J98: PRESENCIAL | K98: TREINAMENTO SIGAA | L98: TREINAMENTO SIGAA | M98: IFRS - REITORIA | N98: PUBLICA | O98: FARROUPILHA/RS | P98: 2018-09-27 | Q98: 5 | R98: TURMA FECHADA PARA O IFRS | S98: 2.18 | T98: 0 | U98: 0 | V98: 0 | W98: 0 | X98: 2.18 | Y98: 4572 | Z98: NÃO | AA98: 23368.002691/2018-50 | AB98: SIM | AC98: CONCLUIDA | AD98: CERTIFICADO EMITIDO PELA DGP
A99: ALVORADA | B99: ALEX REIS DERZETE | C99: ALEX REIS DERZETE | D99: 2331425 | E99: TECNICO-ADMINISTRATIVO | F99: NENHUM | G99: DAP | H99: BOLSA DE ESTUDOS | I99: GRADUACAO | J99: A DISTANCIA | K99: TECNOLOGIA EM ANALISE E DESENVOLVIMENTO DE SISTEMAS | L99: TECNOLOGIA EM ANALISE E DESENVOLVIMENTO DE SISTEMAS | M99: UNIVERSIDADE ESTACIO DE SA | N99: PRIVADA | O99: PORTO ALEGRE | P99: SET/2016 A DEZ/2018 | R99: TURMA ABERTA | W99: 3798.83 | X99: 3798.83 | Y99: 4572 | Z99: SIM | AA99: 23739.000148/2018-52 | AB99: SIM | AC99: CONCLUIDA
A100: CAXIAS DO SUL | B100: Alexandra de Souza Fonseca | C100: ALEXANDRA DE SOUZA FONSECA | D100: 1728775 | E100: DOCENTE | F100: NENHUM | G100: Departamento de Ensino | H100: CAPACITACAO DE CURTA DURACAO NO BRASIL | I100: CURSO APERFEICOAMENTO PROFISSIONAL (CURSO DE CURTA DURACAO) | J100: PRESENCIAL | K100: 38° EDEC - Encontro de Debates sobre Ensino de Química | L100: 38° EDEC - ENCONTRO DE DEBATES SOBRE ENSINO DE QUIMICA | M100: Ulbra - Canoas | N100: PRIVADA | O100: Canoas | P100: 18/10/2018 à 19/10/2018 | Q100: 18 | R100: TURMA ABERTA | S100: 0 | T100: 0 | U100: 442.5 | V100: 200 | W100: 0 | X100: 642.5 | Y100: 4572 | Z100: SIM | AA100: 23362.000355/2018-22 | AB100: SIM | AC100: CONCLUIDA
A101: RESTINGA | B101: ALEXANDRA DOMINGUES | C101: ALEXANDRA DOMINGUES | D101: 1330518 | E101: TECNICO-ADMINISTRATIVO | F101: NENHUM | G101: ENSINO | H101: CAPACITACAO DE CURTA DURACAO NO BRASIL | I101: CURSO APERFEICOAMENTO PROFISSIONAL (CURSO DE CURTA DURACAO) | J101: PRESENCIAL | K101: CAPACITACAO DAS EQUIPES DE ASSISTENCIA ESTUDANTIL | L101: CAPACITACAO DAS EQUIPES DE ASSISTENCIA ESTUDANTIL | M101: IFRS - REITORIA | N101: PUBLICA | O101: BENTO GONÇALVES | P101: 2018-09-27 | Q101: 8 | R101: TURMA FECHADA PARA O IFRS | S101: 61.9 | T101: 0 | U101: 88.5 | V101: 0 | W101: 0 | X101: 150.4 | Y101: 4572 | Z101: SIM | AA101: 23419.000873/2018-43 | AB101: SIM | AC101: CONCLUIDA | AD101: CERTIFICADOS EMITIDOS PELA DGP
A102: RESTINGA | B102: ALEXANDRA DOMINGUES | C102: ALEXANDRA DOMINGUES | D102: 1330518 | E102: TECNICO-ADMINISTRATIVO | F102: NENHUM | G102: ENSINO | H102: CAPACITACAO DE CURTA DURACAO NO BRASIL | I102: CURSO APERFEICOAMENTO PROFISSIONAL (CURSO DE CURTA DURACAO) | J102: PRESENCIAL | K102: II FORUM DE ASSISTENCIA ESTUDANTIL E I SEMINARIO DE PERMANENCIA E EXITO | L102: II FORUM DE ASSISTENCIA ESTUDANTIL E I SEMINARIO DE PERMANENCIA E EXITO | M102: IFRS - REITORIA | N102: PUBLICA | O102: BENTO GONÇALVES | P102: 2018-09-28 | Q102: 8 | R102: TURMA FECHADA PARA O IFRS | S102: 54.21 | T102: 0 | U102: 135.36 | V102: 0 | W102: 0 | X102: 189.57 | Y102: 4572 | Z102: SIM | AA102: 23419.000872/2018-07 | AB102: SIM | AC102: CONCLUIDA | AD102: CERTIFICADO EMITIDO PELA DGP
A103: RESTINGA | B103: ALEXANDRA DOMINGUES | C103: ALEXANDRA DOMINGUES | D103: 1330518 | E103: TECNICO-ADMINISTRATIVO | F103: NENHUM | G103: ENSINO | H103: CAPACITACAO DE CURTA DURACAO NO BRASIL | I103: CURSO APERFEICOAMENTO PROFISSIONAL (CURSO DE CURTA DURACAO) | J103: PRESENCIAL | K103: V ENCONTROINTERNACIONAL DE ALFABETIZAÇÃO | L103: V ENCONTROINTERNACIONAL DE ALFABETIZACAO | M103: UFRGS | N103: PUBLICA | O103: PORTO ALEGRE | P103: 12/11/2018 A 14/11/2018 | Q103: 4 | R103: TURMA ABERTA | S103: 0 | T103: 0 | U103: 0 | V103: 0 | W103: 0 | X103: 0 | Y103: 4572 | Z103: SIM | AA103: 23369.000382/2018-35 | AB103: SIM | AC103: CONCLUIDA
A104: RESTINGA | B104: ALEXANDRA DOMINGUES | C104: ALEXANDRA DOMINGUES | D104: 1330518 | E104: TECNICO-ADMINISTRATIVO | F104: NENHUM | G104: ENSINO | H104: CAPACITACAO DE CURTA DURACAO NO BRASIL | I104: CURSO APERFEICOAMENTO PROFISSIONAL (CURSO DE CURTA DURACAO) | J104: PRESENCIAL | K104: XX ENPÓS | L104: XX ENPOS | M104: UFPEL | N104: PUBLICA | O104: PELOTAS | P104: 2018-10-25 | Q104: 4 | R104: TURMA ABERTA | S104: 0 | T104: 0 | U104: 0 | V104: 0 | W104: 0 | X104: 0 | Y104: 4572 | Z104: SIM | AA104: 23369.000383/2018-80 | AB104: SIM | AC104: CONCLUIDA
A105: RESTINGA | B105: ALEXANDRE ADRIANO DOS SANTOS LIMA | C105: ALEXANDRE ADRIANO DOS SANTOS LIMA | D105: 1328780 | E105: DOCENTE | F105: NENHUM | H105: CAPACITACAO DE CURTA DURACAO NO EXTERIOR (AFASTAMENTO PARA EVENTO NO EXTERIOR) | I105: CURSO APERFEICOAMENTO PROFISSIONAL (CURSO DE CURTA DURACAO) | J105: PRESENCIAL | K105: Entrepeneurial Opportunities in Post-Oil Economies | L105: ENTREPENEURIAL OPPORTUNITIES IN POST-OIL ECONOMIES | M105: NORD UNIVERSITY BUSINESS SCHOOL | O105: NORUEGA | P105: 02/08/2018 A 11/08/2018 | R105: TURMA ABERTA | S105: 0 | T105: 0 | U105: 0 | V105: 0 | W105: 0 | X105: 0 | Y105: NENHUM | Z105: NÃO | AA105: 23369.000271/2018-29 | AB105: NÃO | AC105: EM TRAMITE | AD105: PORTARIA 975/2018
A106: BENTO GONCALVES | B106: ALEXANDRE DA SILVA | C106: ALEXANDRE DA SILVA | D106: 2062128 | E106: DOCENTE | F106: FUC1 | G106: DEN | H106: CAPACITACAO DE CURTA DURACAO NO BRASIL | I106: CURSO APERFEICOAMENTO PROFISSIONAL (CURSO DE CURTA DURACAO) | J106: PRESENCIAL | K106: FORMAÇÃO PEDAGÓGICA 01/2018 | L106: FORMACAO PEDAGOGICA 01/2018 | M106: IFRS-CAMPUS BENTO GONÇALVES | N106: PUBLICA | O106: BENTO GONÇALVES | P106: 15/02 A 16/02 | Q106: 16 | R106: TURMA FECHADA PARA O IFRS | S106: 0 | T106: 0 | U106: 0 | V106: 0 | W106: 0 | X106: =SUM(S106:W106) -> 0 | Y106: 4572 | Z106: SIM | AA106: 23360.000026/2018-00 | AB106: NÃO SE APLICA | AC106: CONCLUIDA | AD106: VALOR TOTAL INVESTIDO PELO CAMPUS: R$ 2.760,00
A107: BENTO GONCALVES | B107: ALEXANDRE DA SILVA | C107: ALEXANDRE DA SILVA | D107: 2062128 | E107: DOCENTE | F107: FUC1 | G107: DEN | H107: CAPACITACAO DE CURTA DURACAO NO BRASIL | I107: CURSO APERFEICOAMENTO PROFISSIONAL (CURSO DE CURTA DURACAO) | J107: PRESENCIAL | K107: I CONGRESSO INTERNACIONAL DE PRATICAS INTEGRATIVAS E COMPLEMENTARES E SAÚDE PUBLICA | L107: I CONGRESSO INTERNACIONAL DE PRATICAS INTEGRATIVAS E COMPLEMENTARES E SAUDE PUBLICA | M107: MINISTERIO DA SAUDE | N107: PUBLICA | O107: RIO DE JANEIRO | P107: 12/03 A 15/03/2018 | Q107: 40 | R107: TURMA ABERTA | S107: 0 | T107: 0 | U107: 1227.72 | V107: 840.25 | W107: 0 | X107: =SUM(S107:W107) -> 2067.97 | Y107: 4572 | Z107: SIM | AA107: 23360.000070/2018-10 | AB107: SIM | AC107: CONCLUIDA
A108: ERECHIM | B108: ALEXANDRE ESTIVE MALINOWSKI | C108: ALEXANDRE ESTIVE MALINOWSKI | D108: 1827491 | E108: TECNICO-ADMINISTRATIVO | F108: NENHUM | G108: AUDITORIA | H108: CAPACITACAO DE CURTA DURACAO NO BRASIL | I108: CURSO APERFEICOAMENTO PROFISSIONAL (CURSO DE CURTA DURACAO) | J108: PRESENCIAL | K108: CURSO DE GERENCIAMENTO DE PROJETOS | L108: CURSO DE GERENCIAMENTO DE PROJETOS | M108: IFRS - CAMPUS ERECHIM | N108: PUBLICA | O108: ERECHIM | P108: 6,7,13 E 14/04/2018 | Q108: 24 | R108: TURMA FECHADA PARA O IFRS | S108: 0 | T108: 0 | U108: 0 | V108: 0 | W108: 0 | X108: =SUM(S108:W108) -> 0 | Y108: NENHUM | Z108: NÃO | AA108: 23363.000090/2018-52 | AB108: SIM | AC108: CONCLUIDA
A109: FARROUPILHA | B109: ALEXANDRE JOSE BUHLER | C109: ALEXANDRE JOSE BUHLER | D109: 2925260 | E109: DOCENTE | F109: NENHUM | H109: AFASTAMENTO INTEGRAL | I109: POS-DOUTORADO | J109: PRESENCIAL | K109: POS-DOUTORADO | L109: POS-DOUTORADO | M109: SCUOLA UNIVERSITARIO PROFESSIONALE DELLA SVIZZERA | N109: PRIVADA | O109: ITALIA | P109: 21/06/2017 A 08/02/2018 | R109: TURMA ABERTA | S109: 0 | T109: 0 | U109: 0 | V109: 0 | W109: 0 | X109: 0 | Y109: NENHUM | Z109: SIM | AA109: 23364.000101/2017-11 | AB109: SIM | AC109: CONCLUIDA | AD109: PORTARIA 899/2017
A110: FELIZ | B110: Alexandre Rodrigues Soares | C110: ALEXANDRE RODRIGUES SOARES | D110: 2037609 | E110: TECNICO-ADMINISTRATIVO | F110: NENHUM | H110: CAPACITACAO DE CURTA DURACAO NO BRASIL | I110: CURSO APERFEICOAMENTO PROFISSIONAL (CURSO DE CURTA DURACAO) | J110: A DISTANCIA | K110: [PROFEAD] Professor para a Educação a Distância - RESTRITO AOS SERVIDORES DO IFRS | L110: [PROFEAD] PROFESSOR PARA A EDUCACAO A DISTANCIA - RESTRITO AOS SERVIDORES DO IFRS | M110: IFRS - EAD | N110: PUBLICA | O110: A DISTÂNCIA | P110: 28/02/2018 a 18/10/2018 | Q110: 150 | R110: TURMA ABERTA | S110: 0 | T110: 0 | U110: 0 | V110: 0 | W110: 0 | X110: =SUM(S110:W110) -> 0 | Y110: NENHUM | Z110: SIM | AA110: SEM PROCESSO | AB110: SIM | AC110: CONCLUIDA | AD110: INFORMAÇÃO REPASSADA PELA PROEN EAD
A111: FELIZ | B111: Alexandre Rodrigues Soares | C111: ALEXANDRE RODRIGUES SOARES | D111: 2037609 | E111: TECNICO-ADMINISTRATIVO | F111: NENHUM | H111: CAPACITACAO DE CURTA DURACAO NO BRASIL | I111: CURSO APERFEICOAMENTO PROFISSIONAL (CURSO DE CURTA DURACAO) | J111: A DISTANCIA | K111: O Uso de Aplicativos Web na Construção de Materiais Educacionais - Turma 2018A | L111: O USO DE APLICATIVOS WEB NA CONSTRUCAO DE MATERIAIS EDUCACIONAIS - TURMA 2018A | M111: IFRS - EAD | N111: PUBLICA | O111: A DISTÂNCIA | P111: 07/05/2018 a 08/06/2018 | Q111: 20 | R111: TURMA ABERTA | S111: 0 | T111: 0 | U111: 0 | V111: 0 | W111: 0 | X111: 0 | Y111: NENHUM | Z111: SIM | AA111: SEM PROCESSO | AB111: SIM | AC111: CONCLUIDA | AD111: INFORMAÇÃO REPASSADA PELA PROEN EAD
A112: CAXIAS DO SUL | B112: ALEXANDRE VASCONCELOS LEITE | C112: ALEXANDRE VASCONCELOS LEITE | D112: 409048 | E112: DOCENTE | F112: NENHUM | G112: Departamento de Ensino | H112: CAPACITACAO DE CURTA DURACAO NO BRASIL | I112: CURSO APERFEICOAMENTO PROFISSIONAL (CURSO DE CURTA DURACAO) | J112: PRESENCIAL | K112: APLICACAO DO BSC PARA GESTAO ESTRATEGICA DOS IFS | L112: APLICACAO DO BSC PARA GESTAO ESTRATEGICA DOS IFS | M112: IFRS - REITORIA | N112: PUBLICA | O112: BENTO GONÇALVES | P112: 20/03/2018 a 21/03/2018 | Q112: 13 | R112: TURMA FECHADA PARA O IFRS | S112: 12.24 | T112: 0 | U112: 0 | V112: 0 | W112: 0 | X112: 12.24 | Y112: 4572 | Z112: SIM | AA112: 23419.000116/2018-70 | AB112: SIM | AC112: CONCLUIDA
A113: CAXIAS DO SUL | B113: ALEXANDRE VASCONCELOS LEITE | C113: ALEXANDRE VASCONCELOS LEITE | D113: 6409048 | E113: DOCENTE | F113: NENHUM | G113: Departamento de Ensino | H113: CAPACITACAO DE CURTA DURACAO NO BRASIL | I113: CURSO APERFEICOAMENTO PROFISSIONAL (CURSO DE CURTA DURACAO) | J113: PRESENCIAL | K113: EAD NO IFRS | L113: EAD NO IFRS | M113: IFRS - REITORIA | N113: PUBLICA | O113: BENTO GONÇALVES | P113: 18 A 20/06/2018 | Q113: 16 | R113: TURMA FECHADA PARA O IFRS | S113: 0 | T113: 0 | U113: 0 | V113: 0 | W113: 0 | X113: 0 | Y113: NENHUM | Z113: NÃO | AA113: 23419.000609/2018-18 | AB113: SIM | AC113: CONCLUIDA | AD113: CERTIFICADOS EMITIDOS PELA DGP
A114: CAXIAS DO SUL | B114: ALEXANDRE VASCONCELOS LEITE | C114: ALEXANDRE VASCONCELOS LEITE | D114: 6409048 | E114: DOCENTE | F114: NENHUM | G114: Departamento de Ensino | H114: CAPACITACAO DE CURTA DURACAO NO BRASIL | I114: CURSO APERFEICOAMENTO PROFISSIONAL (CURSO DE CURTA DURACAO) | J114: PRESENCIAL | K114: EAD NOS CAMPI | L114: EAD NOS CAMPI | M114: IFRS - REITORIA | N114: PUBLICA | O114: CAXIAS DO SUL | P114: 2018-08-08 | Q114: 2.5 | R114: TURMA FECHADA PARA O IFRS | S114: 4.35 | T114: 0 | U114: 0 | V114: 0 | W114: 0 | X114: 4.35 | Y114: 20RL | Z114: SIM | AA114: 23419.000750/2018-11 | AB114: SIM | AC114: CONCLUIDA | AD114: CERTIFICADOS EMITIDOS PELA DGP
A115: CAXIAS DO SUL | B115: ALEXANDRE VASCONCELOS LEITE | C115: ALEXANDRE VASCONCELOS LEITE | D115: 6409048 | E115: DOCENTE | F115: NENHUM | G115: Departamento de Ensino | H115: CAPACITACAO DE CURTA DURACAO NO BRASIL | I115: CURSO APERFEICOAMENTO PROFISSIONAL (CURSO DE CURTA DURACAO) | J115: PRESENCIAL | K115: TREINAMENTO SIGAA | L115: TREINAMENTO SIGAA | M115: IFRS - REITORIA | N115: PUBLICA | O115: FARROUPILHA | P115: 2018-09-27 | Q115: 5 | R115: TURMA FECHADA PARA O IFRS | S115: 2.18 | T115: 0 | U115: 0 | V115: 0 | W115: 0 | X115: 2.18 | Y115: 4572 | Z115: NÃO | AA115: 23419.000798/2018-11 | AB115: SIM | AC115: CONCLUIDA | AD115: CERTIFICADOS EMITIDOS PELA DGP
A116: ERECHIM | B116: ALEXANDRO MAGNO DOS SANTOS ADARIO | C116: ALEXANDRO MAGNO DOS SANTOS ADARIO | D116: 1358614 | E116: DOCENTE | F116: FG1 | G116: DESENVOLVIMENTO INSTITUCIONAL | H116: CAPACITACAO DE CURTA DURACAO NO BRASIL | I116: CURSO APERFEICOAMENTO PROFISSIONAL (CURSO DE CURTA DURACAO) | J116: PRESENCIAL | K116: APLICAÇÃO DO BALANCED SCORECARD PARA GESTÃO ESTRATÉGICA DOS IFS | L116: APLICACAO DO BALANCED SCORECARD PARA GESTAO ESTRATEGICA DOS IFS | M116: IFRS - REITORIA | N116: PUBLICA | O116: BENTO GONÇALVES | P116: 20/03/2018 A 21/03/2018 | Q116: 13 | R116: TURMA FECHADA PARA O IFRS | S116: 12.24 | T116: 0 | U116: 0 | V116: 0 | W116: 0 | X116: 12.24 | Y116: 4572 | Z116: NÃO | AA116: 23363.000100/2018-50 | AB116: SIM | AC116: CONCLUIDA
A117: ERECHIM | B117: ALEXANDRO MAGNO DOS SANTOS ADARIO | C117: ALEXANDRO MAGNO DOS SANTOS ADARIO | D117: 1358614 | E117: DOCENTE | F117: FG1 | G117: DEPARTAMENTO DE ENSINO | H117: CAPACITACAO DE CURTA DURACAO NO BRASIL | I117: CURSO APERFEICOAMENTO PROFISSIONAL (CURSO DE CURTA DURACAO) | J117: PRESENCIAL | K117: CURSO DE GERENCIAMENTO DE PROJETOS | L117: CURSO DE GERENCIAMENTO DE PROJETOS | M117: IFRS - CAMPUS ERECHIM | N117: PUBLICA | O117: ERECHIM | P117: 6,7,13 E 14/04/2018 | Q117: 24 | R117: TURMA FECHADA PARA O IFRS | S117: 0 | T117: 0 | U117: 0 | V117: 0 | W117: 0 | X117: 0 | Y117: NENHUM | Z117: SIM | AA117: 23363.000090/2018-52 | AB117: SIM | AC117: CONCLUIDA
A118: ERECHIM | B118: ALEXANDRO MAGNO DOS SANTOS ADARIO | C118: ALEXANDRO MAGNO DOS SANTOS ADARIO | D118: 1358614 | E118: TECNICO-ADMINISTRATIVO | F118: FG1 | G118: DESENVOLVIMENTO INSTITUCIONAL | H118: CAPACITACAO DE CURTA DURACAO NO BRASIL | I118: CURSO APERFEICOAMENTO PROFISSIONAL (CURSO DE CURTA DURACAO) | J118: PRESENCIAL | K118: OFICINA DE PLANEJAMENTO ESTRATÉGICO PDI 2019-2023 | L118: OFICINA DE PLANEJAMENTO ESTRATEGICO PDI 2019-2023 | M118: IFRS | N118: PUBLICA | O118: FARROUPILHA | P118: 2018-05-23 | Q118: 6 | R118: TURMA FECHADA PARA O IFRS | S118: 0 | T118: 0 | U118: 0 | V118: 0 | W118: 0 | X118: 0 | Y118: NENHUM | Z118: NÃO | AA118: 23363.000262/2018-98 | AB118: SIM | AC118: CONCLUIDA
A119: VIAMAO | B119: ALEXSANDER LEMOS FERREIRA | C119: ALEXSANDER LEMOS FERREIRA | D119: 2219140 | E119: TECNICO-ADMINISTRATIVO | F119: CD4 | G119: DAP | H119: CAPACITACAO DE CURTA DURACAO NO BRASIL | I119: CURSO APERFEICOAMENTO PROFISSIONAL (CURSO DE CURTA DURACAO) | J119: PRESENCIAL | K119: AVALIACAO INSTITUCIONAL: O INSTRUMENTO DE AUTOAVALIACO | L119: AVALIACAO INSTITUCIONAL: O INSTRUMENTO DE AUTOAVALIACO | M119: IFRS - REITORIA | N119: PRIVADA | O119: PORTO ALEGRE | P119: 2018-07-13 | Q119: 8 | R119: TURMA FECHADA PARA O IFRS | S119: 7.83 | T119: 0 | U119: 0 | V119: 0 | W119: 0 | X119: 7.83 | Y119: 4572 | Z119: NAO | AA119: 23419.000573/2018-64 | AB119: SIM | AC119: CONCLUIDA | AD119: CERTFICADO EMITIDO PELA DGP
A120: VIAMAO | B120: ALEXSANDER LEMOS FERREIRA | C120: ALEXSANDER LEMOS FERREIRA | D120: 2219140 | E120: TECNICO-ADMINISTRATIVO | F120: CD4 | G120: DAP | H120: BOLSA DE ESTUDOS | I120: MESTRADO | J120: PRESENCIAL | K120: MESTRADO ACADÊMICO EM DIVERSIDADE CULTURA E INCLUSÃO SOCIAL | L120: MESTRADO ACADEMICO EM DIVERSIDADE CULTURA E INCLUSAO SOCIAL | M120: FEEVAALE | N120: PRIVADA | O120: NOVO HAMBURGO | P120: 01/03/2018 a 01/12/2019 | Q120: 360 | R120: TURMA ABERTA | S120: 0 | T120: 0 | U120: 0 | V120: 0 | W120: 9000 | X120: 9000 | Y120: 4572 | Z120: SIM | AA120: 23742.000168/2018-74 | AB120: SIM | AC120: EM TRAMITE
A121: VIAMAO | B121: ALEXSANDER LEMOS FERREIRA | C121: ALEXSANDER LEMOS FERREIRA | D121: 2219140 | E121: TECNICO-ADMINISTRATIVO | F121: CD4 | G121: DAP | H121: LIBERACAO DE CARGA HORARIA (TAE) | I121: MESTRADO | J121: PRESENCIAL | K121: MESTRADO ACADÊMICO EM DIVERSIDADE CULTURA E INCLUSÃO SOCIAL | L121: MESTRADO ACADEMICO EM DIVERSIDADE CULTURA E INCLUSAO SOCIAL | M121: FEEVAALE | N121: PRIVADA | O121: NOVO HAMBURGO | P121: 01/03/2018 a 01/12/2019 | Q121: 360 | R121: TURMA ABERTA | S121: 0 | T121: 0 | U121: 0 | V121: 0 | W121: 0 | X121: 0 | Y121: NENHUM | Z121: SIM | AA121: 23742.000059/2018-57 | AB121: SIM | AC121: CONCLUIDA
A122: VIAMAO | B122: ALEXSANDER LEMOS FERREIRA | C122: ALEXSANDER LEMOS FERREIRA | D122: 2219140 | E122: TECNICO-ADMINISTRATIVO | F122: CD4 | G122: DAP - VIAMAO | H122: CAPACITACAO DE CURTA DURACAO NO BRASIL | I122: CURSO APERFEICOAMENTO PROFISSIONAL (CURSO DE CURTA DURACAO) | J122: PRESENCIAL | K122: I ENCONTRO NACIONAL DAS COMISSOES DE HETEROIDENTIFICAÇAO: DESAFIOS E PERSPECTIVAS DAS AÇOES AFIRMATIVAS NAS UNIVERSIDADES BRASILEIRAS | L122: I ENCONTRO NACIONAL DAS COMISSOES DE HETEROIDENTIFICACAO: DESAFIOS E PERSPECTIVAS DAS ACOES AFIRMATIVAS NAS UNIVERSIDADES BRASILEIRAS | M122: UFPEL | N122: PUBLICA | O122: PELOTAS | P122: 22 /10/2018 A 24/10/2018 | Q122: 30 | R122: TURMA ABERTA | S122: 0 | T122: 0 | U122: 567.14 | V122: 156 | W122: 0 | X122: =SUM(S122:W122) -> 723.14 | Y122: 4572 | Z122: NÃO | AA122: 23419.001023/2018-62 | AB122: SIM | AC122: CONCLUIDA | AD122: RECURSO DA REITORIA
A123: CANOAS | B123: ALEXSANDRA ALVES DE BRITO | C123: ALEXSANDRA ALVES DE BRITO | D123: 1442656 | E123: TECNICO-ADMINISTRATIVO | F123: NENHUM | G123: GESTAO DE PESSOAS | H123: CAPACITACAO DE CURTA DURACAO NO BRASIL | I123: CURSO APERFEICOAMENTO PROFISSIONAL (CURSO DE CURTA DURACAO) | J123: PRESENCIAL | K123: SEMINARIO ESPECIAL - O GESTOR ESTRUTURANTE QUE REVELA A ESCRITA INVENTIVA | L123: SEMINARIO ESPECIAL - O GESTOR ESTRUTURANTE QUE REVELA A ESCRITA INVENTIVA | M123: UFRGS | N123: PUBLICA | O123: PORTO ALEGRE/RS | P123: 16/04/2018 E 17/04/2018 - 23/04/2018 E 24/04/2018 E 30/04/2018 | Q123: 30 | R123: TURMA ABERTA | S123: 0 | T123: 0 | U123: 0 | V123: 0 | W123: 0 | X123: =SUM(S123:W123) -> 0 | Y123: NENHUM | Z123: SIM | AA123: 23361.000200/2018-04 | AB123: SIM | AC123: CONCLUIDA
A124: RESTINGA | B124: ALEXSANDRO CRISTOVAO BONATTO | C124: ALEXSANDRO CRISTOVAO BONATTO | D124: 1827542 | E124: DOCENTE | F124: FG1 | G124: PESQUISA | H124: CAPACITACAO DE CURTA DURACAO NO BRASIL | I124: CURSO APERFEICOAMENTO PROFISSIONAL (CURSO DE CURTA DURACAO) | J124: PRESENCIAL | K124: 2º ENCONTRO DE PESQUISADORES E EXTENSIONISTAS | L124: 2º ENCONTRO DE PESQUISADORES E EXTENSIONISTAS | M124: IFRS - REITORIA | N124: PUBLICA | O124: BENTO GONÇALVES | P124: 13/08/2018 A 14/08/2018 | Q124: 16 | R124: TURMA FECHADA PARA O IFRS | S124: 273.33 | T124: 0 | U124: 0 | V124: 0 | W124: 0 | X124: 273.33 | Y124: 4572 | Z124: SIM | AA124: 23419.000366/2018-18 | AB124: SIM | AC124: CONCLUIDA | AD124: CERTIFICADOS EMITIDOS PELA DGP
A125: ROLANTE | B125: ALINE BEATRIZ SCHUH | C125: ALINE BEATRIZ SCHUH | D125: 1248015 | E125: DOCENTE | F125: FUC1 | G125: COORDENAÇÃO DO CURSO SUPERIOR PROCESSOS GERENCIAIS | H125: CAPACITACAO DE CURTA DURACAO NO BRASIL | I125: CURSO APERFEICOAMENTO PROFISSIONAL (CURSO DE CURTA DURACAO) | J125: PRESENCIAL | K125: V ENCONTRO DE AVALIACAO INSTITUCIONAL | L125: V ENCONTRO DE AVALIACAO INSTITUCIONAL | M125: IFRS - REITORIA | N125: PUBLICA | O125: BENTO GONÇALVES | P125: 2018-09-26 | Q125: 8 | R125: TURMA FECHADA PARA O IFRS | S125: 28.33 | T125: 0 | U125: 0 | V125: 0 | W125: 0 | X125: =SUM(S125:W125) -> 28.33 | Y125: 4572 | Z125: NÃO | AA125: 23419.000867/2018-96 | AB125: SIM | AC125: CONCLUIDA | AD125: CERTIFICADOS EMITIDOS PELA DGP
A126: RIO GRANDE | B126: ALINE CARDOSO DE OLIVEIRA MACEDO | C126: ALINE CARDOSO DE OLIVEIRA MACEDO | D126: 1279533 | E126: DOCENTE | F126: NENHUM | G126: COORDENACAO DE ENSINO MEDIO | H126: AFASTAMENTO INTEGRAL | I126: DOUTORADO | J126: PRESENCIAL | K126: DOUTORADO EM EDUCACAO EM CIENCIAS (QUIMICA DA VIDA E SAUDE) | L126: DOUTORADO EM EDUCACAO EM CIENCIAS (QUIMICA DA VIDA E SAUDE) | M126: FUNDAÇÃO UNIVERSIDADE FEDERAL DE RIO GRANDE (FURG) | N126: PUBLICA | O126: RIO GRANDE | P126: 2014-2018 | R126: TURMA ABERTA | S126: 0 | T126: 0 | U126: 0 | V126: 0 | W126: 0 | X126: 0 | Y126: NENHUM | Z126: SIM | AA126: 23370.000266.2015-34 | AB126: NÃO SE APLICA | AC126: CONCLUIDA | AD126: PORTARIAS 402/2015; 748/2016; 542/2017 IFRS-REITORIA. AFASTAMENTO ENCERRADO EM 31/03/2018
A127: CANOAS | B127: ALINE DA SILVEIRA MUNIZ | C127: ALINE DA SILVEIRA MUNIZ | D127: 2158855 | E127: TECNICO-ADMINISTRATIVO | F127: NENHUM | G127: REGISTRO ESCOLAR | H127: LIBERACAO DE CARGA HORARIA (TAE) | I127: GRADUACAO | J127: PRESENCIAL | K127: PSICOLOGIA | L127: PSICOLOGIA | M127: UNISINOS | N127: PRIVADA | O127: SAO LEOPOLDO/RS | P127: 26/02/2018 A 07/07/2018 | R127: TURMA ABERTA | S127: 0 | T127: 0 | U127: 0 | V127: 0 | W127: 0 | X127: 0 | Y127: NENHUM | Z127: NÃO | AA127: 23361.000114.2018-93 | AB127: NÃO SE APLICA | AC127: EM TRAMITE
A128: CANOAS | B128: ALINE DA SILVEIRA MUNIZ | C128: ALINE DA SILVEIRA MUNIZ | D128: 2158855 | E128: TECNICO-ADMINISTRATIVO | F128: NENHUM | G128: REGISTRO ESCOLAR | H128: CAPACITACAO DE CURTA DURACAO NO BRASIL | I128: CURSO APERFEICOAMENTO PROFISSIONAL (CURSO DE CURTA DURACAO) | J128: PRESENCIAL | K128: TREINAMENTO SIGAA | L128: TREINAMENTO SIGAA | M128: IFRS - REITORIA | N128: PUBLICA | O128: FARROUPILHA | P128: 2018-09-27 | Q128: 5 | R128: TURMA FECHADA PARA O IFRS | S128: 2.18 | T128: 0 | U128: 67.68 | V128: 0 | W128: 0 | X128: 69.86 | Y128: 4572 | Z128: NÃO | AA128: 23419.000798/2018-11 | AB128: SIM | AC128: CONCLUIDA | AD128: CERTIFICADOS EMITIDOS PELA DGP
A129: BENTO GONCALVES | B129: ALINE DALPIAZ TROIAN | C129: ALINE DALPIAZ TROIAN | D129: 2340663 | E129: DOCENTE | F129: NENHUM | G129: DEN | H129: CAPACITACAO DE CURTA DURACAO NO BRASIL | I129: CURSO APERFEICOAMENTO PROFISSIONAL (CURSO DE CURTA DURACAO) | J129: PRESENCIAL | K129: FORMAÇÃO PEDAGÓGICA 01/2018 | L129: FORMACAO PEDAGOGICA 01/2018 | M129: IFRS-CAMPUS BENTO GONÇALVES | N129: PUBLICA | O129: BENTO GONÇALVES | P129: 15/02 A 16/02 | Q129: 16 | R129: TURMA FECHADA PARA O IFRS | S129: 0 | T129: 0 | U129: 0 | V129: 0 | W129: 0 | X129: 0 | Y129: 4572 | Z129: SIM | AA129: 23360.000026/2018-00 | AB129: NÃO SE APLICA | AC129: CONCLUIDA | AD129: VALOR TOTAL INVESTIDO PELO CAMPUS: R$ 2.760,00
A130: BENTO GONCALVES | B130: ALINE DALPIAZ TROIAN | C130: =UPPER(Acento(B130)) -> ALINE DALPIAZ TROIAN | D130: 2340663 | E130: DOCENTE | F130: NENHUM | G130: DEN | H130: CAPACITACAO DE CURTA DURACAO NO BRASIL | I130: CURSO APERFEICOAMENTO PROFISSIONAL (CURSO DE CURTA DURACAO) | J130: PRESENCIAL | K130: TECNOLOGIAS DIGITAIS NA PRATICA PEDAGOGICA | L130: =UPPER(Acento(K130)) -> TECNOLOGIAS DIGITAIS NA PRATICA PEDAGOGICA | M130: IFRS- cAMPUS BENTO | N130: PUBLICA | O130: BENTO GONÇALVES | P130: ´08/05/2018 | Q130: 2 | R130: TURMA FECHADA PARA O IFRS | S130: 0 | T130: 0 | U130: 0 | V130: 0 | W130: 0 | X130: 0 | Y130: NENHUM | Z130: NÃO | AB130: NÃO SE APLICA | AC130: CONCLUIDA
A131: BENTO GONCALVES | B131: ALINE DELIAS DE SOUZA | C131: ALINE DELIAS DE SOUZA | D131: 2147790 | E131: TECNICO-ADMINISTRATIVO | F131: NENHUM | H131: CAPACITACAO DE CURTA DURACAO NO BRASIL | I131: CURSO APERFEICOAMENTO PROFISSIONAL (CURSO DE CURTA DURACAO) | J131: PRESENCIAL | K131: CAPACITACAO DAS EQUIPES DA ASSITENCIA ESTUDANTIL | L131: CAPACITACAO DAS EQUIPES DA ASSITENCIA ESTUDANTIL | M131: IFRS - REITORIA | N131: PUBLICA | O131: BENTO GONCALVES | P131: 2018-09-27 | Q131: 8 | R131: TURMA FECHADA PARA O IFRS | S131: 61.9 | T131: 0 | U131: 0 | V131: 0 | W131: 0 | X131: 61.9 | Y131: 4572 | Z131: SIM | AA131: 23419.000873/2018-43 | AB131: SIM | AC131: CONCLUIDA | AD131: CERTIFICADO EMITIDO PELA REITORIA
A132: BENTO GONCALVES | B132: ALINE DELIAS DE SOUZA | C132: ALINE DELIAS DE SOUZA | D132: 2147790 | E132: TECNICO-ADMINISTRATIVO | F132: NENHUM | H132: CAPACITACAO DE CURTA DURACAO NO BRASIL | I132: CURSO APERFEICOAMENTO PROFISSIONAL (CURSO DE CURTA DURACAO) | J132: PRESENCIAL | K132: II FORUM DE ASSISTENCIA ESTUDANTIL E I SEMINARIO DE PERMANENCIA E EXITO | L132: II FORUM DE ASSISTENCIA ESTUDANTIL E I SEMINARIO DE PERMANENCIA E EXITO | M132: IFRS - REITORIA | N132: PUBLICA | O132: BENTO GONÇALVES | P132: 2018-09-28 | Q132: 8 | R132: TURMA FECHADA PARA O IFRS | S132: 54.21 | T132: 0 | U132: 0 | V132: 0 | W132: 0 | X132: 54.21 | Y132: 4572 | Z132: SIM | AA132: 23419.000872/2018-07 | AB132: SIM | AC132: CONCLUIDA | AD132: CERTIFICADO EMITIDO PELA DGP
A133: PORTO ALEGRE | B133: ALINE FERRAZ DA SILVA | C133: ALINE FERRAZ DA SILVA | D133: 1840396 | E133: DOCENTE | F133: NENHUM | G133: DIRETORIA DE ENSINO | H133: CAPACITACAO DE CURTA DURACAO NO BRASIL | I133: CURSO APERFEICOAMENTO PROFISSIONAL (CURSO DE CURTA DURACAO) | J133: PRESENCIAL | K133: FORMACAO PEDAGOGICA 2018/1 | L133: FORMACAO PEDAGOGICA 2018/1 | M133: IFRS - POA | N133: PUBLICA | O133: PORTO ALEGRE/RS | P133: 2018-02-26 | Q133: 8 | R133: TURMA FECHADA PARA O IFRS | S133: 0 | T133: 0 | U133: 0 | V133: 0 | W133: 0 | X133: 0 | Y133: NENHUM | Z133: NÃO | AA133: 23368.000111/2018-90 | AC133: CONCLUIDA
A134: PORTO ALEGRE | B134: ALINE GRUNEWALD NICHELE | C134: ALINE GRUNEWALD NICHELE | D134: 1342871 | E134: DOCENTE | F134: NENHUM | G134: DIRETORIA DE ENSINO | H134: CAPACITACAO DE CURTA DURACAO NO BRASIL | I134: CURSO APERFEICOAMENTO PROFISSIONAL (CURSO DE CURTA DURACAO) | J134: PRESENCIAL | K134: FORMACAO PEDAGOGICA 2018/1 | L134: FORMACAO PEDAGOGICA 2018/1 | M134: IFRS - POA | N134: PUBLICA | O134: PORTO ALEGRE/RS | P134: 2018-02-26 | Q134: 8 | R134: TURMA FECHADA PARA O IFRS | S134: 0 | T134: 0 | U134: 0 | V134: 0 | W134: 0 | X134: 0 | Y134: NENHUM | Z134: NÃO | AA134: 23368.000111/2018-90 | AC134: CONCLUIDA
A135: PORTO ALEGRE | B135: ALINE GRUNEWALD NICHELE | C135: ALINE GRUNEWALD NICHELE | D135: 1342871 | E135: DOCENTE | F135: NENHUM | G135: DIRETORIA DE ENSINO | H135: CAPACITACAO DE CURTA DURACAO NO EXTERIOR (AFASTAMENTO PARA EVENTO NO EXTERIOR) | I135: CURSO APERFEICOAMENTO PROFISSIONAL (CURSO DE CURTA DURACAO) | J135: PRESENCIAL | K135: 10th International Conference on Education and New Learning Technologies | L135: 10TH INTERNATIONAL CONFERENCE ON EDUCATION AND NEW LEARNING TECHNOLOGIES | O135: ESPANHA | P135: 29/06/2018 A 07/07/2018 | R135: TURMA ABERTA | S135: 0 | T135: 0 | U135: 0 | V135: 0 | W135: 0 | X135: 0 | Y135: NENHUM | Z135: NÃO | AA135: 23368.001172/2018-74 | AB135: SIM | AC135: CONCLUIDA | AD135: PORTARIA 801/2018
A136: PORTO ALEGRE | B136: ALINE GRUNEWALD NICHELE | C136: ALINE GRUNEWALD NICHELE | D136: 1342871 | E136: DOCENTE | F136: NENHUM | G136: DIRETORIA DE ENSINO | H136: CAPACITACAO DE CURTA DURACAO NO EXTERIOR (AFASTAMENTO PARA EVENTO NO EXTERIOR) | I136: CURSO APERFEICOAMENTO PROFISSIONAL (CURSO DE CURTA DURACAO) | J136: PRESENCIAL | K136: 11th International Conference of Education, Research and Innovation- ICERI 2018 | L136: 11TH INTERNATIONAL CONFERENCE OF EDUCATION, RESEARCH AND INNOVATION- ICERI 2018 | O136: ESPANHA | P136: 10/11/2018 A 17/11/2018 | R136: TURMA ABERTA | S136: 0 | T136: 0 | U136: 0 | V136: 0 | W136: 0 | X136: 0 | Y136: NENHUM | Z136: NÃO | AA136: 23368.002718/2018-12 | AB136: SIM | AC136: CONCLUIDA | AD136: PORTARIA 1.301/2018
A137: PORTO ALEGRE | B137: ALINE HENTZ | C137: ALINE HENTZ | D137: 1223533 | E137: DOCENTE | F137: NENHUM | G137: DIRETORIA DE ENSINO | H137: CAPACITACAO DE CURTA DURACAO NO BRASIL | I137: CURSO APERFEICOAMENTO PROFISSIONAL (CURSO DE CURTA DURACAO) | J137: PRESENCIAL | K137: FORMACAO PEDAGOGICA 2018/1 | L137: FORMACAO PEDAGOGICA 2018/1 | M137: IFRS - POA | N137: PUBLICA | O137: PORTO ALEGRE/RS | P137: 2018-02-26 | Q137: 8 | R137: TURMA FECHADA PARA O IFRS | S137: 0 | T137: 0 | U137: 0 | V137: 0 | W137: 0 | X137: 0 | Y137: NENHUM | Z137: NÃO | AA137: 23368.000111/2018-90 | AC137: CONCLUIDA
A138: ERECHIM | B138: ALINE MARIA CENCI | C138: ALINE MARIA CENCI | D138: 2333069 | E138: DOCENTE | F138: NENHUM | G138: DEPARTAMENTO DE ENSINO | H138: CAPACITACAO DE CURTA DURACAO NO BRASIL | I138: CURSO APERFEICOAMENTO PROFISSIONAL (CURSO DE CURTA DURACAO) | J138: A DISTANCIA | K138: CAPACITAÇAO PARA OS MEMBROS DAS CISSPA DO IFRS 2018 | L138: CAPACITACAO PARA OS MEMBROS DAS CISSPA DO IFRS 2018 | M138: IFRS - REITORIA | N138: PUBLICA | O138: BENTO GONÇALVES | P138: 29/11/2018 A 23/12/2018 | Q138: 20 | R138: TURMA FECHADA PARA O IFRS | S138: 0 | T138: 0 | U138: 0 | V138: 0 | W138: 0 | X138: 0 | Y138: NENHUM | Z138: NÃO | AA138: 23419.000853/2018-72 | AB138: SIM | AC138: CONCLUIDA | AD138: CERTIFICADOS EMITIDOS PELA DGP
A139: PORTO ALEGRE | B139: ALINE MARTINS DISCONSI | C139: =UPPER(Acento(B139)) -> ALINE MARTINS DISCONSI | D139: 1680686 | E139: TECNICO-ADMINISTRATIVO | F139: NENHUM | G139: NAAC | H139: AFASTAMENTO INTEGRAL | I139: MESTRADO | J139: PRESENCIAL | K139: MESTRADO EM PSICANALISE: CLINICA E CULTURA | L139: MESTRADO EM PSICANALISE: CLINICA E CULTURA | M139: UFRGS | N139: PUBLICA | O139: PORTO ALEGRE/RS | P139: 01/06/2017 A 31/03/2019 | Q139: NAO INFORMADO | R139: TURMA ABERTA | S139: 0 | T139: 0 | U139: 0 | V139: 0 | W139: 0 | X139: =SUM(S139:W139) -> 0 | Y139: NENHUM | Z139: NÃO | AA139: 23368.000809.2017-24 | AB139: NÃO SE APLICA | AC139: EM TRAMITE | AD139: PORTARIA 867/2017
A140: CANOAS | B140: ALINE MARTINS MESQUITA | C140: ALINE MARTINS MESQUITA | D140: 2293548 | E140: TECNICO-ADMINISTRATIVO | F140: FG2 | G140: GESTAO DE PESSOAS | H140: CAPACITACAO DE CURTA DURACAO NO BRASIL | I140: CURSO APERFEICOAMENTO PROFISSIONAL (CURSO DE CURTA DURACAO) | J140: PRESENCIAL | K140: CAPACITACAO EM SIAPE E SIAPENET | L140: CAPACITACAO EM SIAPE E SIAPENET | M140: IFRS - REITORIA | N140: PUBLICA | O140: FARROUPILHA | P140: 2018-08-28 | Q140: 4 | R140: TURMA FECHADA PARA O IFRS | S140: 0 | T140: 0 | U140: 223.86 | V140: 0 | W140: 0 | X140: 223.86 | Y140: NENHUM | Z140: NÃO | AA140: 23419.000551/2018-02 | AB140: SIM | AC140: CONCLUIDA | AD140: CERTIFICADOS EMITIDOS PELA DGP
A141: VACARIA | B141: ALINE NONDILLO | C141: ALINE NONDILLO | D141: 3009187 | E141: DOCENTE | F141: FUC1 | G141: COORDENADORIA DO CURSO SUPERIORM DE LICENCIATURA EM CIÊNCIAS BIOLÓGICAS | H141: CAPACITACAO DE CURTA DURACAO NO BRASIL | I141: CURSO APERFEICOAMENTO PROFISSIONAL (CURSO DE CURTA DURACAO) | J141: PRESENCIAL | K141: 2º ENCONTRO DE PESQUISADORES E EXTENSIONISTAS | L141: 2º ENCONTRO DE PESQUISADORES E EXTENSIONISTAS | M141: IFRS - REITORIA | N141: PUBLICA | O141: BENTO GONÇALVES | P141: 13/08/2018 A 14/08/2018 | Q141: 16 | R141: TURMA FECHADA PARA O IFRS | S141: 273.33 | T141: 0 | U141: 0 | V141: 0 | W141: 0 | X141: 273.33 | Y141: 4572 | Z141: SIM | AA141: 23419.000366/2018-18 | AB141: SIM | AC141: CONCLUIDA | AD141: CERTIFICADOS EMITIDOS PELA DGP
A142: VACARIA | B142: ALINE NONDILLO | C142: ALINE NONDILLO | D142: 3009187 | E142: DOCENTE | F142: FUC1 | G142: COORDENADORIA DO CURSO SUPERIORM DE LICENCIATURA EM CIÊNCIAS BIOLÓGICAS | H142: CAPACITACAO DE CURTA DURACAO NO BRASIL | I142: CURSO APERFEICOAMENTO PROFISSIONAL (CURSO DE CURTA DURACAO) | J142: PRESENCIAL | K142: EAD NOS CAMPI | L142: EAD NOS CAMPI | M142: IFRS - REITORIA | N142: PUBLICA | O142: VACARIA | P142: 2018-08-14 | Q142: 4 | R142: TURMA FECHADA PARA O IFRS | S142: 4.35 | T142: 0 | U142: 0 | V142: 0 | W142: 0 | X142: 4.35 | Y142: 20RL | Z142: SIM | AA142: 23419.000750/2018-11 | AB142: SIM | AC142: CONCLUIDA | AD142: CERTIFICADO EMITITIDO PELA DGP
A143: VACARIA | B143: ALINE NONDILLO | C143: ALINE NONDILLO | D143: 3009187 | E143: DOCENTE | F143: FUC1 | G143: COORDENADORIA DO CURSO SUPERIORM DE LICENCIATURA EM CIÊNCIAS BIOLÓGICAS | H143: CAPACITACAO DE CURTA DURACAO NO BRASIL | I143: CURSO APERFEICOAMENTO PROFISSIONAL (CURSO DE CURTA DURACAO) | J143: PRESENCIAL | K143: V ENCONTRO DE AVALIACAO INSTITUCIONAL | L143: V ENCONTRO DE AVALIACAO INSTITUCIONAL | M143: IFRS - REITORIA | N143: PUBLICA | O143: BENTO GONÇALVES | P143: 2018-09-26 | Q143: 8 | R143: TURMA FECHADA PARA O IFRS | S143: 28.33 | T143: 0 | U143: 0 | V143: 0 | W143: 0 | X143: 28.33 | Y143: 4572 | Z143: NÃO | AA143: 23419.000867/2018-96 | AB143: SIM | AC143: CONCLUIDA | AD143: CERTIFICADOS EMITIDOS PELA DGP
A144: BENTO GONCALVES | B144: ALINE SANTOS DE OLIVEIRA | C144: ALINE SANTOS DE OLIVEIRA | D144: 2279727 | E144: DOCENTE | F144: NENHUM | G144: DEN | H144: CAPACITACAO DE CURTA DURACAO NO BRASIL | I144: CURSO APERFEICOAMENTO PROFISSIONAL (CURSO DE CURTA DURACAO) | J144: PRESENCIAL | K144: FORMAÇÃO PEDAGÓGICA 01/2018 | L144: FORMACAO PEDAGOGICA 01/2018 | M144: IFRS-CAMPUS BENTO GONÇALVES | N144: PUBLICA | O144: BENTO GONÇALVES | P144: 15/02 A 16/02 | Q144: 16 | R144: TURMA FECHADA PARA O IFRS | S144: 0 | T144: 0 | U144: 0 | V144: 0 | W144: 0 | X144: 0 | Y144: 4572 | Z144: SIM | AA144: 23360.000026/2018-00 | AB144: NÃO SE APLICA | AC144: CONCLUIDA | AD144: VALOR TOTAL INVESTIDO PELO CAMPUS: R$ 2.760,00
A145: RIO GRANDE | B145: ALINE SIMÕES MENEZES | C145: ALINE SIMOES MENEZES | D145: 1697666 | E145: TECNICO-ADMINISTRATIVO | F145: NENHUM | G145: COORDENAÇÃO DE ASSISTENCIA ESTUDANTIL | H145: CAPACITACAO DE CURTA DURACAO NO BRASIL | I145: CURSO APERFEICOAMENTO PROFISSIONAL (CURSO DE CURTA DURACAO) | J145: PRESENCIAL | K145: CAPACITAÇÃO DAS EQUIPES DE ASSISTÊNCIA ESTUDANTIL | L145: CAPACITACAO DAS EQUIPES DE ASSISTENCIA ESTUDANTIL | M145: IFRS - REITORIA | N145: PUBLICA | O145: BENTO GONÇALVES | P145: 2018-09-27 | R145: TURMA FECHADA PARA O IFRS | S145: 0 | T145: 0 | U145: 0 | V145: 0 | W145: 0 | X145: 0 | Y145: NENHUM | Z145: SIM | AA145: 23419.000873/2018-43 | AB145: NÃO | AC145: CANCELADA
A146: IBIRUBA | B146: ALINE SIRLEI POERSCH | C146: ALINE SIRLEI POERSCH | D146: 3005318 | E146: TECNICO-ADMINISTRATIVO | F146: NENHUM | G146: COORD. DE LICIT. E CONTRATOS | H146: CAPACITACAO DE CURTA DURACAO NO BRASIL | I146: CURSO APERFEICOAMENTO PROFISSIONAL (CURSO DE CURTA DURACAO) | J146: PRESENCIAL | K146: GESTÃO E FISCALIZAÇÃO DE CONTRATOS - 59ª EDIÇÃO | L146: GESTAO E FISCALIZACAO DE CONTRATOS - 59ª EDICAO | M146: ESAF | N146: PRIVADA | O146: PORTO ALEGRE | P146: 25/04/2018 A 27/04/2018 | Q146: 24 | R146: TURMA ABERTA | S146: 0 | T146: 0 | U146: 755.12 | V146: 187.8 | W146: 0 | X146: =SUM(S146:W146) -> 942.92 | Y146: 4572 | Z146: SIM | AA146: 23366.000177/2018-08 | AB146: SIM | AC146: CONCLUIDA
A147: IBIRUBA | B147: ALINE SIRLEI POERSCH | C147: ALINE SIRLEI POERSCH | D147: 3005318 | E147: TECNICO-ADMINISTRATIVO | F147: NENHUM | G147: COORDENADORIA DE LICITAÇÕES E CONTRATOS | H147: CAPACITACAO DE CURTA DURACAO NO BRASIL | I147: CURSO APERFEICOAMENTO PROFISSIONAL (CURSO DE CURTA DURACAO) | J147: PRESENCIAL | K147: REAJUSTE, REPACTUAÇÃO, PLANILHA DE CUSTOS- 3º EDIÇÃO | L147: REAJUSTE, REPACTUACAO, PLANILHA DE CUSTOS- 3º EDICAO | M147: ESAF- RS | N147: PUBLICA | O147: PORTO ALEGRE- RS | P147: 13 A 17/08 | Q147: 30 | R147: TURMA ABERTA | T147: 0 | U147: 925.06 | V147: 190 | W147: 0 | X147: =SUM(S147:W147) -> 1115.06 | Y147: 4572 | Z147: NÃO | AA147: 23366.000367/2018-17 | AB147: SIM | AC147: CONCLUIDA
A148: ROLANTE | B148: ALINE TERRA SILVEIRA | C148: ALINE TERRA SILVEIRA | D148: 1802216 | E148: TECNICO-ADMINISTRATIVO | F148: FUC1 | G148: DIRETORIA DE ENSINO | H148: CAPACITACAO DE CURTA DURACAO NO BRASIL | I148: CURSO APERFEICOAMENTO PROFISSIONAL (CURSO DE CURTA DURACAO) | J148: PRESENCIAL | K148: CONCEITOS GERAIS DA PROPRIEDADE INTELECTUAL | L148: CONCEITOS GERAIS DA PROPRIEDADE INTELECTUAL | M148: IFRS - REITORIA | N148: PUBLICA | O148: PORTO ALEGRE/RS | P148: 2018-11-13 | Q148: 8 | R148: TURMA FECHADA PARA O IFRS | S148: 0 | T148: 0 | U148: 0 | V148: 0 | W148: 0 | X148: =SUM(S148:W148) -> 0 | Y148: NENHUM | Z148: SIM | AA148: 23419.000924/2018-37 | AB148: SIM | AC148: CONCLUIDA | AD148: CERTIFICADO EMITITIDO PELA DGP
A149: ROLANTE | B149: ALINE TERRA SILVEIRA | C149: ALINE TERRA SILVEIRA | D149: 1802216 | E149: TECNICO-ADMINISTRATIVO | F149: NENHUM | H149: CAPACITACAO DE CURTA DURACAO NO BRASIL | I149: CURSO APERFEICOAMENTO PROFISSIONAL (CURSO DE CURTA DURACAO) | J149: PRESENCIAL | K149: PROCESSO ADMINISTRATIVO DISCIPLINAR- PAD 22º EDIÇÃO | L149: PROCESSO ADMINISTRATIVO DISCIPLINAR- PAD 22º EDICAO | M149: ESAF | N149: PUBLICA | O149: PORTO ALEGRE/RS | P149: 01 A 05/10/2018 | Q149: 40 | R149: TURMA FECHADA PARA O IFRS | S149: 0 | T149: 0 | U149: 946.7 | V149: 0 | W149: 0 | X149: =315.74+946.7 -> 1262.44 | Y149: 4572 | AA149: 23368.002328/2018-34 | AB149: SIM | AC149: CONCLUIDA | AD149: CAPACITACAO DESENVOLVIDA PELO CAMPUS PORTO ALEGRE. DIÁRIAS CUSTEADAS PELO CAMPUS ROLANTE
A150: ROLANTE | B150: ALINE TERRA SILVEIRA | C150: ALINE TERRA SILVEIRA | D150: 1802216 | E150: TECNICO-ADMINISTRATIVO | F150: FUC1 | G150: DIRETORIA DE ENSINO | H150: CAPACITACAO DE CURTA DURACAO NO BRASIL | I150: CURSO APERFEICOAMENTO PROFISSIONAL (CURSO DE CURTA DURACAO) | J150: PRESENCIAL | K150: V ENCONTRO DE AVALIACAO INSTITUCIONAL | L150: V ENCONTRO DE AVALIACAO INSTITUCIONAL | M150: IFRS - REITORIA | N150: PUBLICA | O150: BENTO GONÇALVES | P150: 2018-09-26 | Q150: 8 | R150: TURMA FECHADA PARA O IFRS | S150: 28.33 | T150: 0 | U150: 0 | V150: 0 | W150: 0 | X150: =SUM(S150:W150) -> 28.33 | Y150: 4572 | Z150: NÃO | AA150: 23419.000867/2018-96 | AB150: SIM | AC150: CONCLUIDA | AD150: CERTIFICADOS EMITIDOS PELA DGP
A151: SERTAO | B151: ALINE VALQUIRIA PRESTES PIETROBON | C151: ALINE VALQUIRIA PRESTES PIETROBON | D151: 2860868 | E151: TECNICO-ADMINISTRATIVO | F151: NENHUM | G151: CRA | H151: BOLSA DE ESTUDOS | I151: GRADUACAO | J151: PRESENCIAL | K151: LICENCIATURA EM PEDAGOGIA | L151: LICENCIATURA EM PEDAGOGIA | M151: IDEAU | N151: PRIVADA | O151: GETÚLIO VARGAS | P151: 03/2018 A 12/20201 | R151: TURMA ABERTA | S151: 0 | T151: 0 | U151: 0 | V151: 0 | W151: 5185.02 | X151: 5185.02 | Y151: 4572 | Z151: SIM | AA151: 23371000651/2018-14 | AC151: EM TRAMITE | AD151: EDITAL 57/2018
A152: CANOAS | B152: ALINE VIERO KOWALSKI | C152: ALINE VIERO KOWALSKI | D152: 1445744 | E152: TECNICO-ADMINISTRATIVO | F152: FG2 | G152: ASSISTENCIA ESTUDANTIL | H152: CAPACITACAO DE CURTA DURACAO NO BRASIL | I152: CURSO APERFEICOAMENTO PROFISSIONAL (CURSO DE CURTA DURACAO) | J152: PRESENCIAL | K152: CAPACITACAO DAS EQUIPES DE ASSISTENCIA ESTUDANTIL | L152: CAPACITACAO DAS EQUIPES DE ASSISTENCIA ESTUDANTIL | M152: IFRS - REITORIA | N152: PUBLICA | O152: BENTO GONÇALVES | P152: 2018-09-27 | Q152: 8 | R152: TURMA FECHADA PARA O IFRS | S152: 61.9 | T152: 0 | U152: 223.86 | V152: 0 | W152: 0 | X152: 285.76 | Y152: 4572 | Z152: SIM | AA152: 23419.000873/2018-43 | AB152: SIM | AC152: CONCLUIDA | AD152: CERTIFICADOS EMITIDOS PELA DGP
A153: CANOAS | B153: ALINE VIERO KOWALSKI | C153: ALINE VIERO KOWALSKI | D153: 1445744 | E153: TECNICO-ADMINISTRATIVO | F153: FG2 | G153: ASSISTENCIA ESTUDANTIL | H153: CAPACITACAO DE CURTA DURACAO NO BRASIL | I153: CURSO APERFEICOAMENTO PROFISSIONAL (CURSO DE CURTA DURACAO) | J153: PRESENCIAL | K153: II FORUM DE ASSISTENCIA ESTUDANTIL E I SEMINARIO DE PERMANENCIA E EXITO | L153: II FORUM DE ASSISTENCIA ESTUDANTIL E I SEMINARIO DE PERMANENCIA E EXITO | M153: IFRS - REITORIA | N153: PUBLICA | O153: BENTO GONÇALVES | P153: 2018-09-28 | Q153: 8 | R153: TURMA FECHADA PARA O IFRS | S153: 54.21 | T153: 0 | U153: 223.86 | V153: 0 | W153: 0 | X153: 278.07 | Y153: 4572 | Z153: SIM | AA153: 23419.000872/2018-07 | AB153: SIM | AC153: CONCLUIDA | AD153: CERTIFICADO EMITIDO PELA DGP
A154: CANOAS | B154: ALINE VIERO KOWALSKI | C154: ALINE VIERO KOWALSKI | D154: 1445744 | E154: TECNICO-ADMINISTRATIVO | F154: FG2 | G154: ASSISTENCIA ESTUDANTIL | H154: LICENCA CAPACITACAO | I154: CURSO APERFEICOAMENTO PROFISSIONAL (CURSO DE CURTA DURACAO) | J154: PRESENCIAL | K154: INGLES GERAL (NIVEL INICIANTE) E PENSAMENTO LOGICO E CRITICO | L154: INGLES GERAL (NIVEL INICIANTE) E PENSAMENTO LOGICO E CRITICO | M154: INTERACTIVE ENGLISH LANGUAGE SCHOOL LTDA | N154: PRIVADA | O154: BRIGHTON/INGLATERRA | P154: 02/04/2018 A 30/06/2018 | Q154: 157 | R154: TURMA ABERTA | S154: 0 | T154: 0 | U154: 0 | V154: 0 | W154: 0 | X154: 0 | Y154: NENHUM | Z154: NÃO | AA154: 23361.000108.2018-36 | AB154: NÃO | AC154: CONCLUIDA | AD154: LICENCA CAPACITACAO NO EXTERIOR
A155: RESTINGA | B155: ALINI GOMES FERREIRA | C155: ALINI GOMES FERREIRA | D155: 1829395 | E155: TECNICO-ADMINISTRATIVO | F155: FG2 | H155: CAPACITACAO DE CURTA DURACAO NO BRASIL | I155: CURSO APERFEICOAMENTO PROFISSIONAL (CURSO DE CURTA DURACAO) | J155: PRESENCIAL | K155: CAPACITACAO DOS PRESIDENTES DAS COMISSOES DE HETEROIDENTIFICACAO | L155: CAPACITACAO DOS PRESIDENTES DAS COMISSOES DE HETEROIDENTIFICACAO | M155: IFRS - REITORIA | N155: PUBLICA | O155: PORTO ALEGRE | P155: 2018-12-11 | Q155: 8 | R155: TURMA FECHADA PARA O IFRS | S155: 0 | T155: 0 | U155: 0 | V155: 0 | W155: 0 | X155: 0 | Y155: NENHUM | Z155: NÃO | AA155: 23419.001103/2018-18 | AB155: SIM | AC155: CONCLUIDA | AD155: CERTIFICADO EMITITIDO PELA DGP
A156: RESTINGA | B156: ALINI GOMES FERREIRA | C156: ALINI GOMES FERREIRA | D156: 1829395 | E156: TECNICO-ADMINISTRATIVO | F156: FG2 | H156: CAPACITACAO DE CURTA DURACAO NO BRASIL | I156: CURSO APERFEICOAMENTO PROFISSIONAL (CURSO DE CURTA DURACAO) | J156: PRESENCIAL | K156: CAPACITACAO MEMBROS DAS COMISSOES DE HETEROIDENTIFICACAO | L156: CAPACITACAO MEMBROS DAS COMISSOES DE HETEROIDENTIFICACAO | M156: IFRS - REITORIA | N156: PUBLICA | O156: PORTO ALEGRE | P156: 2018-12-10 | Q156: 8 | R156: TURMA FECHADA PARA O IFRS | S156: 56.4 | T156: 0 | U156: 0 | V156: 0 | W156: 0 | X156: 56.4 | Y156: 4572 | Z156: NÃO | AA156: 23419.001102/2018-73 | AB156: SIM | AC156: CONCLUIDA | AD156: CERTIFICADO EMITITIDO PELA DGP
A157: RESTINGA | B157: ALINI GOMES FERREIRA | C157: ALINI GOMES FERREIRA | D157: 1829395 | E157: TECNICO-ADMINISTRATIVO | F157: FG2 | G157: DAP | H157: CAPACITACAO DE CURTA DURACAO NO BRASIL | I157: CURSO APERFEICOAMENTO PROFISSIONAL (CURSO DE CURTA DURACAO) | J157: PRESENCIAL | K157: XV SEMANA DE ADMINISTRAÇÃO ORÇAMENTÁRIA | L157: XV SEMANA DE ADMINISTRACAO ORCAMENTARIA | M157: ESAF | N157: PUBLICA | O157: BRASÍLIA | P157: 27/11/2018 A 30/11/2018 | Q157: 32 | R157: TURMA ABERTA | S157: 0 | T157: 0 | U157: 980.99 | V157: 1458.15 | W157: 0 | X157: 2439.14 | Y157: 4572 | Z157: SIM | AA157: 23369.000404/2018-67 | AB157: SIM | AC157: CONCLUIDA
A158: REITORIA | B158: ALISSON PAESE | C158: ALISSON PAESE | D158: 1987175 | E158: TECNICO-ADMINISTRATIVO | F158: FG2 | G158: DGP | H158: CAPACITACAO DE CURTA DURACAO NO BRASIL | I158: CURSO APERFEICOAMENTO PROFISSIONAL (CURSO DE CURTA DURACAO) | J158: PRESENCIAL | K158: REDAÇAO OFICIAL, NOVO ACORDO ORTOGRAFICO E ATENDIMENTO AO PUBLICO | L158: REDACAO OFICIAL, NOVO ACORDO ORTOGRAFICO E ATENDIMENTO AO PUBLICO | M158: IFRS - REITORIA | N158: PUBLICA | O158: BENTO GONÇALVES | P158: 04 E 05 DE SETEMBRO DE 2018 | Q158: 10 | R158: TURMA FECHADA PARA O IFRS | S158: 33.83 | T158: 0 | U158: 0 | V158: 0 | W158: 0 | X158: =SUM(S158:W158) -> 33.83 | Y158: 4572 | Z158: SIM | AA158: 23419.000491/2018-10 | AB158: SIM | AC158: CONCLUIDA | AD158: CERTIFICADOS EMITIDOS PELA DGP
A159: REITORIA | B159: ALISSON PAESE | C159: ALISSON PAESE | D159: 1987175 | E159: TECNICO-ADMINISTRATIVO | F159: FG2 | G159: DGP | H159: CAPACITACAO DE CURTA DURACAO NO BRASIL | I159: CURSO APERFEICOAMENTO PROFISSIONAL (CURSO DE CURTA DURACAO) | J159: PRESENCIAL | K159: 4ª SEMANA DE INOVAÇAO: SERVIÇO PUBLICO PARA O FUTURO | L159: 4ª SEMANA DE INOVACAO: SERVICO PUBLICO PARA O FUTURO | M159: TCU | N159: PUBLICA | O159: BRASILIA | P159: 26/11/2018 A 29/11/2018 | Q159: 36 | R159: TURMA ABERTA | S159: 0 | T159: 0 | U159: 999.8 | V159: 3339.36 | W159: 0 | X159: 4339.16 | Y159: 4572 | Z159: NÃO | AA159: 23419.001112/2018-17 | AB159: SIM | AC159: CONCLUIDA
A160: REITORIA | B160: ALISSON PAESE | C160: ALISSON PAESE | D160: 1987175 | E160: TECNICO-ADMINISTRATIVO | F160: FG2 | G160: DGP | H160: CAPACITACAO DE CURTA DURACAO NO BRASIL | I160: CURSO APERFEICOAMENTO PROFISSIONAL (CURSO DE CURTA DURACAO) | J160: PRESENCIAL | K160: APLICACAO DO BSC PARA GESTAO ESTRATEGICA DOS IFS | L160: APLICACAO DO BSC PARA GESTAO ESTRATEGICA DOS IFS | M160: IFRS - REITORIA | N160: PUBLICA | O160: BENTO GONÇALVES | P160: 20/03/2018 a 21/03/2018 | Q160: 13 | R160: TURMA FECHADA PARA O IFRS | S160: 12.24 | T160: 0 | U160: 0 | V160: 0 | W160: 0 | X160: 12.24 | Y160: 4572 | Z160: SIM | AA160: 23419.000116/2018-70 | AB160: SIM | AC160: CONCLUIDA
A161: REITORIA | B161: ALISSON PAESE | C161: ALISSON PAESE | D161: 1987175 | E161: TECNICO-ADMINISTRATIVO | F161: FG2 | G161: DGP | H161: CAPACITACAO DE CURTA DURACAO NO BRASIL | I161: CURSO APERFEICOAMENTO PROFISSIONAL (CURSO DE CURTA DURACAO) | J161: PRESENCIAL | K161: CAPACITAÇÃO EM EXCEL | L161: CAPACITACAO EM EXCEL | M161: IFRS - REITORIA | N161: PUBLICA | O161: BENTO GONÇALVES | P161: 03/09 A 28/09/2018 | Q161: 40 | R161: TURMA FECHADA PARA O IFRS | S161: 252.56 | T161: 0 | U161: 0 | V161: 0 | W161: 0 | X161: 252.56 | Y161: 4572 | Z161: SIM | AA161: 23419.000724/2018-84 | AB161: SIM | AC161: CONCLUIDA
A162: REITORIA | B162: ALISSON PAESE | C162: ALISSON PAESE | D162: 1987175 | E162: TECNICO-ADMINISTRATIVO | F162: FG2 | G162: DGP | H162: CAPACITACAO DE CURTA DURACAO NO BRASIL | I162: CURSO APERFEICOAMENTO PROFISSIONAL (CURSO DE CURTA DURACAO) | J162: PRESENCIAL | K162: I SEMINARIO NACIONAL DE EDUCACAO PROFISSIONAL E TECNOLOGICA | L162: I SEMINARIO NACIONAL DE EDUCACAO PROFISSIONAL E TECNOLOGICA | M162: IFSUL | N162: PUBLICA | O162: CHARQUEADAS | P162: 26 A 27/10/2018 | Q162: 16 | R162: TURMA ABERTA | S162: 0 | T162: 0 | U162: 0 | V162: 0 | W162: 0 | X162: 0 | Y162: 4572 | Z162: NÃO | AA162: 23419.000891/2018-25 | AB162: SIM | AC162: CONCLUIDA | AD162: PROCESSO FINALIZADO
A163: REITORIA | B163: ALISSON PAESE | C163: ALISSON PAESE | D163: 1987175 | E163: TECNICO-ADMINISTRATIVO | F163: FG2 | G163: DGP | H163: LIBERACAO DE CARGA HORARIA (TAE) | I163: MESTRADO | J163: SEMI-PRESENCIAL | K163: MESTRADO PROFISSIONAL EM EDUCAÇÃO PROFISSIONAL E TECNOLOGICA | L163: MESTRADO PROFISSIONAL EM EDUCACAO PROFISSIONAL E TECNOLOGICA | M163: IFRS | N163: PUBLICA | O163: PORTO ALEGRE | P163: 2018 | R163: TURMA ABERTA | S163: 0 | T163: 0 | U163: 0 | V163: 0 | W163: 0 | X163: 0 | Y163: NENHUM | Z163: SIM | AA163: 23419.001005.2017-08 | AB163: NÃO SE APLICA | AC163: CONCLUIDA | AD163: PORTARIA 290/2018 - ATÉ PRIMEIRO SEMESTRE LETIVO DE 2018
A164: REITORIA | B164: ALISSON PAESE | C164: ALISSON PAESE | D164: 1987175 | E164: TECNICO-ADMINISTRATIVO | F164: FG2 | G164: DGP | H164: CAPACITACAO DE CURTA DURACAO NO BRASIL | I164: CURSO APERFEICOAMENTO PROFISSIONAL (CURSO DE CURTA DURACAO) | J164: A DISTANCIA | K164: Inglês 1 - Turma 2018B | L164: INGLES 1 - TURMA 2018B | M164: IFRS - EAD | N164: PUBLICA | O164: A DISTÂNCIA | P164: 23/07/2018 a 17/12/2018 | Q164: 30 | R164: TURMA ABERTA | S164: 0 | T164: 0 | U164: 0 | V164: 0 | W164: 0 | X164: 0 | Y164: NENHUM | Z164: SIM | AA164: SEM PROCESSO | AB164: SIM | AC164: CONCLUIDA | AD164: INFORMAÇÃO REPASSADA PELA PROEN EAD
A165: OSORIO | B165: ALLAN ALVES DE SOUZA | C165: ALLAN ALVES DE SOUZA | D165: 2199772 | E165: TECNICO-ADMINISTRATIVO | F165: NENHUM | H165: CAPACITACAO DE CURTA DURACAO NO BRASIL | I165: CURSO APERFEICOAMENTO PROFISSIONAL (CURSO DE CURTA DURACAO) | J165: PRESENCIAL | K165: PROCESSO ADMINISTRATIVO DISCIPLINAR- PAD 22º EDIÇÃO | L165: PROCESSO ADMINISTRATIVO DISCIPLINAR- PAD 22º EDICAO | M165: ESAF | N165: PUBLICA | O165: PORTO ALEGRE/RS | P165: 01 A 05/10/2018 | Q165: 40 | R165: TURMA FECHADA PARA O IFRS | S165: 0 | T165: 0 | U165: 851 | V165: 0 | W165: 0 | X165: =315.74+851 -> 1166.74 | Y165: 4572 | AA165: 23368.002328/2018-34 | AB165: SIM | AC165: CONCLUIDA | AD165: CAPACITACAO DESENVOLVIDA PELO CAMPUS PORTO ALEGRE. DIÁRIAS CUSTEADAS PELO CAMPUS OSORIO
A166: CAXIAS DO SUL | B166: AMANDA SOUZA SANTOS | C166: AMANDA SOUZA SANTOS | D166: 2350530 | E166: TECNICO-ADMINISTRATIVO | F166: NENHUM | G166: Departamento de Ensino | H166: CAPACITACAO DE CURTA DURACAO NO BRASIL | I166: CURSO APERFEICOAMENTO PROFISSIONAL (CURSO DE CURTA DURACAO) | J166: PRESENCIAL | K166: II FORUM DE ASSISTENCIA ESTUDANTIL E I SEMINARIO DE PERMANENCIA E EXITO | L166: II FORUM DE ASSISTENCIA ESTUDANTIL E I SEMINARIO DE PERMANENCIA E EXITO | M166: IFRS - REITORIA | N166: PUBLICA | O166: BENTO GONÇALVES | P166: 2018-09-28 | Q166: 8 | R166: TURMA FECHADA PARA O IFRS | S166: 54.21 | T166: 0 | U166: 0 | V166: 0 | W166: 0 | X166: =SUM(S166:W166) -> 54.21 | Y166: 4572 | Z166: SIM | AA166: 23419.000872/2018-07 | AB166: SIM | AC166: CONCLUIDA | AD166: CERTIFICADO EMITIDO PELA DGP
A167: CAXIAS DO SUL | B167: AMANDA SOUZA SANTOS | C167: AMANDA SOUZA SANTOS | D167: 2350530 | E167: TECNICO-ADMINISTRATIVO | F167: NENHUM | G167: Departamento de Ensino | H167: CAPACITACAO DE CURTA DURACAO NO BRASIL | I167: CURSO APERFEICOAMENTO PROFISSIONAL (CURSO DE CURTA DURACAO) | J167: PRESENCIAL | K167: II FORUM EMI E IV ENCONTRO PROEJA IFRS | L167: II FORUM EMI E IV ENCONTRO PROEJA IFRS | M167: IFRS - REITORIA | N167: PUBLICA | O167: PORTO ALEGRE | P167: 16 E 17 DE AGOSTO DE 2018 | Q167: 12 | R167: TURMA FECHADA PARA O IFRS | S167: 286.05 | T167: 0 | U167: 0 | V167: 0 | W167: 0 | X167: 286.05 | Y167: 4572 | Z167: NÃO | AA167: 23419.000742/2018-66 | AB167: SIM | AC167: CONCLUIDA | AD167: CAMPUS RECEBEU R$ 1000,00 EM DESCENTRALIZAÇÃO ORÇAMENTÁRIA PARA AUXILIAR NAS DESPESAS DE DIÁRIAS E PASSAGENS - CERTIFICADOS EMITIDOS PELA DGP
A168: CAXIAS DO SUL | B168: AMANDA SOUZA SANTOS | C168: AMANDA SOUZA SANTOS | D168: 2350530 | E168: TECNICO-ADMINISTRATIVO | F168: NENHUM | G168: Departamento de Ensino | H168: CAPACITACAO DE CURTA DURACAO NO BRASIL | I168: CURSO APERFEICOAMENTO PROFISSIONAL (CURSO DE CURTA DURACAO) | J168: PRESENCIAL | K168: TREINAMENTO SIGAA | L168: TREINAMENTO SIGAA | M168: IFRS - REITORIA | N168: PUBLICA | O168: FARROUPILHA | P168: 2018-09-27 | Q168: 5 | R168: TURMA FECHADA PARA O IFRS | S168: 2.18 | T168: 0 | U168: 0 | V168: 0 | W168: 0 | X168: 2.18 | Y168: 4572 | Z168: NÃO | AA168: 23419.000798/2018-11 | AB168: SIM | AC168: CONCLUIDA | AD168: CERTIFICADOS EMITIDOS PELA DGP
A169: CAXIAS DO SUL | B169: AMARO DE AZEVEDO | C169: =UPPER(Acento(B169)) -> AMARO DE AZEVEDO | D169: 2327221 | E169: DOCENTE | F169: NENHUM | H169: AFASTAMENTO INTEGRAL | I169: DOUTORADO | J169: PRESENCIAL | K169: DOUTORADO EM QUIMICA TECNOLOGICA E AMBEINTAL | L169: DOUTORADO EM QUIMICA TECNOLOGICA E AMBEINTAL | M169: FURG | N169: PUBLICA | O169: RIO GRANDE | P169: 01/03/2017 A 28/02/2020 | R169: TURMA ABERTA | X169: 0 | Y169: NENHUM | Z169: SIM | AA169: 23362.000017/2017-18 | AC169: EM TRAMITE | AD169: PORTARIA 205/2017
A170: ALVORADA | B170: AMILTON DE MOURA FIGUEIREDO | C170: =UPPER(Acento(B170)) -> AMILTON DE MOURA FIGUEIREDO | D170: 1495949 | E170: DOCENTE | F170: NENHUM | G170: ENSINO | H170: AFASTAMENTO INTEGRAL | I170: DOUTORADO | J170: PRESENCIAL | K170: DOUTORADO EM EDUCAÇÃO | L170: =UPPER(Acento(K170)) -> DOUTORADO EM EDUCACAO | M170: UNISINOS | N170: PRIVADA | O170: SÃO LEOPOLDO | P170: 03/07/2017 A 31/07/2019 | R170: TURMA ABERTA | X170: 0 | Y170: NENHUM | Z170: NÃO | AA170: 23739.000054/2017-01 | AB170: NÃO SE APLICA | AC170: CONCLUIDA
A171: REITORIA | B171: AMILTON DE MOURA FIGUEIREDO | C171: AMILTON DE MOURA FIGUEIREDO | D171: 1495949 | E171: DOCENTE | F171: CD2 | G171: PRODI | H171: BOLSA DE ESTUDOS | I171: DOUTORADO | J171: PRESENCIAL | K171: EM EDUCACAO | L171: EM EDUCACAO | M171: UNISINOS | N171: PRIVADA | O171: SAO LEOPOLDO | P171: 2015/2019 | R171: TURMA ABERTA | S171: 0 | T171: 0 | U171: 0 | V171: 0 | W171: 7000 | X171: 7000 | Y171: 4572 | Z171: SIM | AA171: 23419.001182/2015-14 | AB171: NÃO SE APLICA | AC171: EM TRAMITE | AD171: EDITAL 40/2018 - NOVA CONCESSÃO
A172: PORTO ALEGRE | B172: ANA CAROLINA COLLA | C172: ANA CAROLINA COLLA | D172: 1949020 | E172: TECNICO-ADMINISTRATIVO | F172: NENHUM | G172: DIRETORIA DE GESTAO DE PESSOAS | H172: CAPACITACAO DE CURTA DURACAO NO BRASIL | I172: CURSO APERFEICOAMENTO PROFISSIONAL (CURSO DE CURTA DURACAO) | J172: PRESENCIAL | K172: CAPACITAÇÃO EM SIAPE E SIAPENET | L172: CAPACITACAO EM SIAPE E SIAPENET | M172: IFRS - REITORIA | N172: PUBLICA | O172: FARROUPILHA/RS | P172: 2018-08-28 | Q172: 4 | R172: TURMA FECHADA PARA O IFRS | S172: 0 | T172: 0 | U172: 0 | V172: 0 | W172: 0 | X172: 0 | Y172: NENHUM | Z172: NÃO | AA172: 23419.000551/2018-02 | AB172: SIM | AC172: CONCLUIDA | AD172: CERTIFICADOS EMITIDOS PELA DGP
A173: RESTINGA | B173: ANA CÉLIA SANTOS DOS ANJOS | C173: ANA CELIA SANTOS DOS ANJOS | D173: 1727738 | E173: DOCENTE | F173: NENHUM | G173: ENSINO | H173: CAPACITACAO DE CURTA DURACAO NO BRASIL | I173: CURSO APERFEICOAMENTO PROFISSIONAL (CURSO DE CURTA DURACAO) | J173: PRESENCIAL | K173: VII CONGRESSO NORDESTINO DE ESPANHOL | L173: VII CONGRESSO NORDESTINO DE ESPANHOL | M173: IFRN | N173: PUBLICA | O173: NATAL | P173: 22/05/2018 A 25/05/2018 | R173: TURMA ABERTA | S173: 0 | T173: 0 | U173: 798.6 | V173: 0 | W173: 0 | X173: 0 | Z173: NÃO | AA173: 23369.000160/2018-12 | AB173: SIM | AC173: CONCLUIDA
A174: BENTO GONCALVES | B174: ANA CLAUDIA KIRCHHOF | C174: ANA CLAUDIA KIRCHHOF | D174: 16763327 | E174: TECNICO-ADMINISTRATIVO | F174: NENHUM | G174: DEN | H174: CAPACITACAO DE CURTA DURACAO NO BRASIL | I174: CURSO APERFEICOAMENTO PROFISSIONAL (CURSO DE CURTA DURACAO) | J174: PRESENCIAL | K174: CAPACITACAO DAS EQUIPES DA ASSITENCIA ESTUDANTIL | L174: CAPACITACAO DAS EQUIPES DA ASSITENCIA ESTUDANTIL | M174: IFRS - REITORIA | N174: PUBLICA | O174: BENTO GONCALVES | P174: 2018-09-27 | Q174: 8 | R174: TURMA FECHADA PARA O IFRS | S174: 61.9 | T174: 0 | U174: 0 | V174: 0 | W174: 0 | X174: =SUM(S174:W174) -> 61.9 | Y174: 4572 | Z174: SIM | AA174: 23419.000873/2018-43 | AB174: SIM | AC174: CONCLUIDA | AD174: CERTIFICADO EMITIDO PELA REITORIA
A175: BENTO GONCALVES | B175: ANA CLAUDIA KIRCHHOF | C175: ANA CLAUDIA KIRCHHOF | D175: 16763327 | E175: TECNICO-ADMINISTRATIVO | F175: NENHUM | G175: DEN | H175: CAPACITACAO DE CURTA DURACAO NO BRASIL | I175: CURSO APERFEICOAMENTO PROFISSIONAL (CURSO DE CURTA DURACAO) | J175: PRESENCIAL | K175: FORMAÇÃO PEDAGÓGICA 01/2018 | L175: FORMACAO PEDAGOGICA 01/2018 | M175: IFRS-CAMPUS BENTO GONÇALVES | N175: PUBLICA | O175: BENTO GONÇALVES | P175: 15/02 A 16/02 | Q175: 16 | R175: TURMA FECHADA PARA O IFRS | S175: 0 | T175: 0 | U175: 0 | V175: 0 | W175: 0 | X175: 0 | Y175: 4572 | Z175: SIM | AA175: 23360.000026/2018-00 | AB175: NÃO SE APLICA | AC175: CONCLUIDA | AD175: VALOR TOTAL INVESTIDO PELO CAMPUS: R$ 2.760,00
A176: BENTO GONCALVES | B176: ANA CLAUDIA KIRCHHOF | C176: ANA CLAUDIA KIRCHHOF | D176: 16763327 | E176: TECNICO-ADMINISTRATIVO | F176: CD4 | H176: CAPACITACAO DE CURTA DURACAO NO BRASIL | I176: CURSO APERFEICOAMENTO PROFISSIONAL (CURSO DE CURTA DURACAO) | J176: PRESENCIAL | K176: II FORUM DE ASSISTENCIA ESTUDANTIL E I SEMINARIO DE PERMANENCIA E EXITO | L176: II FORUM DE ASSISTENCIA ESTUDANTIL E I SEMINARIO DE PERMANENCIA E EXITO | M176: IFRS - REITORIA | N176: PUBLICA | O176: BENTO GONÇALVES | P176: 2018-09-28 | Q176: 8 | R176: TURMA FECHADA PARA O IFRS | S176: 54.21 | T176: 0 | U176: 0 | V176: 0 | W176: 0 | X176: 54.21 | Y176: 4572 | Z176: SIM | AA176: 23419.000872/2018-07 | AB176: SIM | AC176: CONCLUIDA | AD176: CERTIFICADO EMITIDO PELA DGP
A177: IBIRUBA | B177: ANA DIONEIA WOUTERS | C177: ANA DIONEIA WOUTERS | D177: 1984476 | E177: DOCENTE | F177: NENHUM | G177: SALA DOS PROFESSORES- PRÉDIO CENTRAL | H177: CAPACITACAO DE CURTA DURACAO NO BRASIL | I177: CURSO APERFEICOAMENTO PROFISSIONAL (CURSO DE CURTA DURACAO) | J177: PRESENCIAL | K177: 2º ENCONTRO DE PESQUISADORES E EXTENSIONISTAS | L177: 2º ENCONTRO DE PESQUISADORES E EXTENSIONISTAS | M177: IFRS - REITORIA | N177: PUBLICA | O177: BENTO GONÇALVES | P177: 13/08/2018 A 14/08/2018 | Q177: 16 | R177: TURMA FECHADA PARA O IFRS | S177: 273.33 | T177: 0 | U177: 0 | V177: 0 | W177: 0 | X177: 273.33 | Y177: 4572 | Z177: SIM | AA177: 23419.000366/2018-18 | AB177: SIM | AC177: CONCLUIDA | AD177: CERTIFICADOS EMITIDOS PELA DGP
A178: PORTO ALEGRE | B178: ANA LUCIA BARBIERI | C178: ANA LUCIA BARBIERI | D178: 1827570 | E178: TECNICO-ADMINISTRATIVO | F178: NENHUM | G178: DIRETORIA DE GESTAO DE PESSOAS | H178: CAPACITACAO DE CURTA DURACAO NO BRASIL | I178: CURSO APERFEICOAMENTO PROFISSIONAL (CURSO DE CURTA DURACAO) | J178: PRESENCIAL | K178: CURSO DE GESTAO PUBLICA | L178: CURSO DE GESTAO PUBLICA | M178: ESAF | N178: PUBLICA | O178: PORTO ALEGRE/RS | P178: 11 A 13/09/2018 | Q178: 24 | S178: 0 | T178: 0 | U178: 0 | V178: 0 | W178: 0 | X178: 0 | Y178: NENHUM | Z178: SIM | AA178: 23368.002605/2018-17 | AB178: SIM
A179: PORTO ALEGRE | B179: ANA LUCIA BARBIERI | C179: ANA LUCIA BARBIERI | D179: 1827570 | E179: TECNICO-ADMINISTRATIVO | F179: NENHUM | G179: COORDENADORIA DE ADMINISTRACAO DE PESSOAL | H179: CAPACITACAO DE CURTA DURACAO NO BRASIL | I179: CURSO APERFEICOAMENTO PROFISSIONAL (CURSO DE CURTA DURACAO) | J179: PRESENCIAL | K179: FORMACAO PEDAGOGICA 2018/1 | L179: FORMACAO PEDAGOGICA 2018/1 | M179: IFRS - POA | N179: PUBLICA | O179: PORTO ALEGRE/RS | P179: 2018-02-26 | Q179: 8 | R179: TURMA FECHADA PARA O IFRS | S179: 0 | T179: 0 | U179: 0 | V179: 0 | W179: 0 | X179: 0 | Y179: NENHUM | Z179: NÃO | AA179: 23368.000111/2018-90 | AC179: CONCLUIDA
A180: PORTO ALEGRE | B180: ANA LUCIA BARBIERI | C180: ANA LUCIA BARBIERI | D180: 1827570 | E180: TECNICO-ADMINISTRATIVO | F180: NENHUM | G180: DIRETORIA DE GESTAO DE PESSOAS | H180: LICENCA CAPACITACAO | I180: CURSO APERFEICOAMENTO PROFISSIONAL (CURSO DE CURTA DURACAO) | J180: A DISTANCIA | K180: LINGUA PORTUGUESA SEM COMPLICAÇÕES E OUTROS | L180: LINGUA PORTUGUESA SEM COMPLICACOES E OUTROS | M180: FUNDAÇÃO BRADESCO | N180: PRIVADA | O180: SAO PAULO/SP | P180: 13/04/2018 a 12/05/2018 | Q180: 80 | R180: TURMA ABERTA | S180: 0 | T180: 0 | U180: 0 | V180: 0 | W180: 0 | X180: 0 | Y180: NENHUM | Z180: NÃO | AA180: 23368.000492/2018-15 | AB180: SIM | AC180: CONCLUIDA | AD180: RETORNOU EM 14/05/2018; PORTARIA 401/2018
A181: ALVORADA | B181: ANA LUCIA HOEVELER | C181: ANA LUCIA HOEVELER | D181: 2264140 | E181: TECNICO-ADMINISTRATIVO | F181: NENHUM | G181: GESTAO DE PESSOAS | H181: LIBERACAO DE CARGA HORARIA (TAE) | I181: GRADUACAO | J181: A DISTANCIA | K181: GESTAO DE RECURSOS HUMANOS | L181: GESTAO DE RECURSOS HUMANOS | M181: ESTACIO | N181: PRIVADA | O181: PORTO ALEGRE | P181: 03/2017 A 12/2018 | Q181: 2024 | R181: TURMA ABERTA | X181: 0 | Z181: NÃO | AA181: 23739.000060/2017-50 | AB181: NÃO SE APLICA | AC181: EM TRAMITE
A182: ALVORADA | B182: ANA LUCIA HOEVELER | C182: ANA LUCIA HOEVELER | D182: 2264140 | E182: TECNICO-ADMINISTRATIVO | F182: NENHUM | G182: GABINETE | H182: BOLSA DE ESTUDOS | I182: GRADUACAO | J182: A DISTANCIA | K182: TECNOLOGIA EM GESTAO DE RECURSOS HUMANOS | L182: TECNOLOGIA EM GESTAO DE RECURSOS HUMANOS | M182: CENTRO UNIVERSITARIO ESTACIO DE RIBEIRAO PRETO | N182: PRIVADA | O182: PORTO ALEGRE | P182: 10/03/2017 A 14/12/2018 | Q182: 2530 | R182: TURMA ABERTA | W182: 2893.26 | X182: 2893.26 | Y182: 4572 | Z182: SIM | AA182: 23739.000232/2018-76 | AB182: SIM | AC182: CONCLUIDA
A183: OSORIO | B183: ANA LUCIA OLEGARIO SARAIVA | C183: ANA LUCIA OLEGARIO SARAIVA | D183: 1796181 | E183: DOCENTE | F183: NENHUM | G183: ENSINO | H183: CAPACITACAO DE CURTA DURACAO NO BRASIL | I183: CURSO APERFEICOAMENTO PROFISSIONAL (CURSO DE CURTA DURACAO) | J183: PRESENCIAL | K183: EAD NOS CAMPI | L183: EAD NOS CAMPI | M183: IFRS - REITORIA | N183: PUBLICA | O183: OSORIO | P183: 2018-08-10 | Q183: 4 | R183: TURMA FECHADA PARA O IFRS | S183: 4.35 | T183: 0 | U183: 0 | V183: 0 | W183: 0 | X183: 4.35 | Y183: 20RL | Z183: SIM | AA183: 23419.000750/2018-11 | AB183: SIM | AC183: CONCLUIDA | AD183: CERTIFICADOS EMITIDOS PELA DGP
A184: OSORIO | B184: ANA LUCIA OLEGARIO SARAIVA | C184: ANA LUCIA OLEGARIO SARAIVA | D184: 1796181 | E184: DOCENTE | F184: NENHUM | G184: ENSINO | H184: CAPACITACAO DE CURTA DURACAO NO EXTERIOR (AFASTAMENTO PARA EVENTO NO EXTERIOR) | I184: CURSO APERFEICOAMENTO PROFISSIONAL (CURSO DE CURTA DURACAO) | J184: PRESENCIAL | K184: XII CONGRESSO INTERNACIONAL DE LA AMIT | L184: XII CONGRESSO INTERNACIONAL DE LA AMIT | O184: CANCUN/ MEXICO | P184: 25/10/2018 A 03/11/2018 | R184: TURMA ABERTA | S184: 0 | T184: 0 | U184: 0 | V184: 0 | W184: 0 | X184: 0 | Y184: NENHUM | Z184: NÃO | AA184: 23367.000320/2018-43 | AB184: SIM | AC184: CONCLUIDA | AD184: PORTARIA 1286/2018
A185: BENTO GONCALVES | B185: ANA LUCIA PAULA DA CONCEIÇÃO | C185: ANA LUCIA PAULA DA CONCEICAO | D185: 1398415 | E185: DOCENTE | F185: NENHUM | G185: DEN | H185: CAPACITACAO DE CURTA DURACAO NO BRASIL | I185: CURSO APERFEICOAMENTO PROFISSIONAL (CURSO DE CURTA DURACAO) | J185: PRESENCIAL | K185: 2º ENCONTRO DE PESQUISADORES E EXTENSIONISTAS | L185: 2º ENCONTRO DE PESQUISADORES E EXTENSIONISTAS | M185: IFRS - REITORIA | N185: PUBLICA | O185: BENTO GONÇALVES | P185: 13/08/2018 A 14/08/2018 | Q185: 16 | R185: TURMA FECHADA PARA O IFRS | S185: 273.33 | T185: 0 | X185: 273.33 | Y185: 4572 | Z185: SIM | AA185: 23419.000366/2018-18 | AB185: SIM | AC185: CONCLUIDA | AD185: CERTIFICADOS EMITIDOS PELA DGP
A186: BENTO GONCALVES | B186: ANA LUCIA PAULA DA CONCEIÇÃO | C186: ANA LUCIA PAULA DA CONCEICAO | D186: 1398415 | E186: DOCENTE | F186: NENHUM | G186: DEN | H186: CAPACITACAO DE CURTA DURACAO NO BRASIL | I186: CURSO APERFEICOAMENTO PROFISSIONAL (CURSO DE CURTA DURACAO) | J186: PRESENCIAL | K186: FORMAÇÃO PEDAGÓGICA 01/2018 | L186: FORMACAO PEDAGOGICA 01/2018 | M186: IFRS-CAMPUS BENTO GONÇALVES | N186: PUBLICA | O186: BENTO GONÇALVES | P186: 15/02 A 16/02 | Q186: 16 | R186: TURMA FECHADA PARA O IFRS | S186: 0 | T186: 0 | U186: 0 | V186: 0 | W186: 0 | X186: 0 | Y186: 4572 | Z186: SIM | AA186: 23360.000026/2018-00 | AB186: NÃO SE APLICA | AC186: CONCLUIDA | AD186: VALOR TOTAL INVESTIDO PELO CAMPUS: R$ 2.760,00
A187: BENTO GONCALVES | B187: ANA LUCIA PAULA DA CONCEIÇÃO | C187: ANA LUCIA PAULA DA CONCEICAO | D187: 1398415 | E187: DOCENTE | F187: NENHUM | G187: DEN | H187: CAPACITACAO DE CURTA DURACAO NO BRASIL | I187: CURSO APERFEICOAMENTO PROFISSIONAL (CURSO DE CURTA DURACAO) | J187: PRESENCIAL | K187: II ENCONTRO INTERNACIONAL DE PESQUISAS EM CIÊNCIAS HUMANAS | L187: II ENCONTRO INTERNACIONAL DE PESQUISAS EM CIENCIAS HUMANAS | M187: IFRS - REITORIA | N187: PUBLICA | O187: BENTO GONÇALVES | P187: 04A 06/09/2018 | Q187: 24 | R187: TURMA ABERTA | S187: 0 | T187: 0 | U187: 442.2 | X187: 442.2 | Y187: 4572 | Z187: SIM | AA187: 23419.000366/2018-18 | AB187: SIM | AC187: CONCLUIDA | AD187: CERTIFICADOS EMITIDOS PELA DGP
A188: BENTO GONCALVES | B188: ANA LUCIA PAULA DA CONCEIÇÃO | C188: ANA LUCIA PAULA DA CONCEICAO | D188: 1398415 | E188: DOCENTE | F188: NENHUM | G188: DEN | H188: CAPACITACAO DE CURTA DURACAO NO BRASIL | I188: CURSO APERFEICOAMENTO PROFISSIONAL (CURSO DE CURTA DURACAO) | J188: PRESENCIAL | K188: V Congresso Nacional de Educação | L188: V CONGRESSO NACIONAL DE EDUCACAO | M188: UFPEL | N188: pública | O188: OLINDA | P188: 2018-10-20 | Q188: 40 | R188: TURMA ABERTA | S188: 0 | T188: 0 | U188: 1150.5 | W188: 1889.61 | X188: 3040.11 | Y188: 4572 | Z188: NÃO | AA188: 23360.000689/2018-16 | AB188: SIM | AC188: CONCLUIDA
A189: REITORIA | B189: ANA MARIA JUNG DE ANDRADE | C189: ANA MARIA JUNG DE ANDRADE | D189: 1768204 | E189: TECNICO-ADMINISTRATIVO | F189: NENHUM | G189: DGP | H189: CAPACITACAO DE CURTA DURACAO NO BRASIL | I189: CURSO APERFEICOAMENTO PROFISSIONAL (CURSO DE CURTA DURACAO) | J189: A DISTANCIA | K189: CAPACITAÇAO PARA OS MEMBROS DAS CISSPA DO IFRS 2018 | L189: CAPACITACAO PARA OS MEMBROS DAS CISSPA DO IFRS 2018 | M189: IFRS - REITORIA | N189: PUBLICA | O189: BENTO GONÇALVES | P189: 29/11/2018 A 23/12/2018 | Q189: 20 | R189: TURMA FECHADA PARA O IFRS | S189: 0 | T189: 0 | U189: 0 | V189: 0 | W189: 0 | X189: 0 | Y189: NENHUM | Z189: SIM | AA189: 23419.000853/2018-72 | AB189: SIM | AC189: CONCLUIDA
A190: REITORIA | B190: ANA MARIA JUNG DE ANDRADE | C190: ANA MARIA JUNG DE ANDRADE | D190: 1768204 | E190: TECNICO-ADMINISTRATIVO | F190: FG2 | G190: DGP | H190: CAPACITACAO DE CURTA DURACAO NO BRASIL | I190: CURSO APERFEICOAMENTO PROFISSIONAL (CURSO DE CURTA DURACAO) | J190: PRESENCIAL | K190: CURSO QUALIDADE DE VIDA NO TRABALHO | L190: CURSO QUALIDADE DE VIDA NO TRABALHO | M190: ENAP | N190: PUBLICA | O190: BRASILIA | P190: 23 A 25/10/2018 | Q190: 24 | R190: TURMA ABERTA | S190: 0 | T190: 0 | U190: 1002.92 | V190: =SUM(1755.46+75.8) -> 1831.26 | W190: 0 | X190: 2834.18 | Y190: 4572 | Z190: SIM | AA190: 23419.000964/2018-89 | AB190: SIM | AC190: CONCLUIDA | AD190: FINALIZADO
A191: REITORIA | B191: ANA MARIA JUNG DE ANDRADE | C191: ANA MARIA JUNG DE ANDRADE | D191: 1768204 | E191: TECNICO-ADMINISTRATIVO | F191: FG2 | G191: DGP | H191: CAPACITACAO DE CURTA DURACAO NO BRASIL | I191: CURSO APERFEICOAMENTO PROFISSIONAL (CURSO DE CURTA DURACAO) | J191: PRESENCIAL | K191: I SEMINARIO NACIONAL DE DIVERSIDADE NO SERVICO PUBLICO: SAUDE, SEGURANÇA E QUALIDADE DE VIDA NO TRABALHO | L191: I SEMINARIO NACIONAL DE DIVERSIDADE NO SERVICO PUBLICO: SAUDE, SEGURANCA E QUALIDADE DE VIDA NO TRABALHO | M191: ENAP | N191: PUBLICA | O191: BRASILIA | P191: 14/08/2018 a 16/08/2018 | Q191: 24 | R191: TURMA ABERTA | S191: 0 | T191: 0 | U191: 999.8 | V191: 2108.31 | W191: 0 | X191: 3108.11 | Y191: 4572 | Z191: SIM | AA191: 23419.000791/2018-07 | AB191: SIM | AC191: CONCLUIDA
A192: REITORIA | B192: ANA MARIA JUNG DE ANDRADE | C192: ANA MARIA JUNG DE ANDRADE | D192: 1768204 | E192: TECNICO-ADMINISTRATIVO | F192: FG2 | G192: DGP | H192: CAPACITACAO DE CURTA DURACAO NO BRASIL | I192: CURSO APERFEICOAMENTO PROFISSIONAL (CURSO DE CURTA DURACAO) | J192: PRESENCIAL | K192: III JORNADA ESTADUAL SOBRE ACESSIBILIDADE E INCLUSAO DE PESSOA COM DEFICIÊNCIA E DA PESSOA COM ALTAS HABILIDADES | L192: III JORNADA ESTADUAL SOBRE ACESSIBILIDADE E INCLUSAO DE PESSOA COM DEFICIENCIA E DA PESSOA COM ALTAS HABILIDADES | M192: FADEB | N192: PUBLICA | O192: PORTO ALEGRE | P192: 2018-10-19 | Q192: 7 | R192: TURMA ABERTA | S192: 0 | T192: 0 | U192: 85.38 | V192: 41.85 | W192: 0 | X192: 127.23 | Y192: 4572 | Z192: SIM | AA192: 23419.000965/2018-23 | AB192: SIM | AC192: CONCLUIDA | AD192: FINALIZADO
A193: REITORIA | B193: ANA MARIA JUNG DE ANDRADE | C193: ANA MARIA JUNG DE ANDRADE | D193: 1768204 | E193: TECNICO-ADMINISTRATIVO | F193: FG2 | G193: DGP | H193: CAPACITACAO DE CURTA DURACAO NO BRASIL | I193: CURSO APERFEICOAMENTO PROFISSIONAL (CURSO DE CURTA DURACAO) | J193: A DISTANCIA | K193: LA DISCAPACIDAD EN EL ENTORNO LABORAL | L193: LA DISCAPACIDAD EN EL ENTORNO LABORAL | M193: INSTITUTO NACIONAL DE ADMINISTRAÇAO PUBLICA - ESPANHA | N193: PUBLICA | O193: EAD | P193: 14/05/2018 A 05/06/2018 | Q193: 15 | R193: TURMA ABERTA | S193: 0 | T193: 0 | U193: 0 | V193: 0 | W193: 0 | X193: 0 | Y193: NENHUM | Z193: SIM | AA193: 23419.000528/208-18 | AB193: SIM | AC193: CONCLUIDA
A194: ROLANTE | B194: ANA MARIA MRAS | C194: =UPPER(Acento(B194)) -> ANA MARIA MRAS | D194: 1279088 | E194: DOCENTE | F194: FUC1 | G194: COORDENAÇÃO DO CURSO TECNICO ADMINISTRAÇÃO | H194: CAPACITACAO DE CURTA DURACAO NO BRASIL | I194: CURSO APERFEICOAMENTO PROFISSIONAL (CURSO DE CURTA DURACAO) | J194: PRESENCIAL | K194: TREINAMENTO SIGAA | L194: =UPPER(Acento(K194)) -> TREINAMENTO SIGAA | M194: IFRS - REITORIA | N194: PUBLICA | O194: FARROUPILHA | P194: 2018-09-27 | Q194: 5 | R194: TURMA FECHADA PARA O IFRS | S194: 2.18 | T194: 0 | U194: 0 | V194: 0 | W194: 0 | X194: 2.18 | Y194: 4572 | Z194: NÃO | AA194: 23419.000798/2018-11 | AB194: SIM | AC194: CONCLUIDA | AD194: CERTIFICADOS EMITIDOS PELA DGP
A195: IBIRUBA | B195: ANA PAULA DE ALMEIDA | C195: ANA PAULA DE ALMEIDA | D195: 1800168 | E195: TECNICO-ADMINISTRATIVO | F195: NENHUM | G195: ASSISTÊNCIA ESTUDANTIL | H195: CAPACITACAO DE CURTA DURACAO NO BRASIL | I195: CURSO APERFEICOAMENTO PROFISSIONAL (CURSO DE CURTA DURACAO) | J195: PRESENCIAL | K195: CAPACITACAO DAS EQUIPES DE ASSISTENCIA ESTUDANTIL | L195: CAPACITACAO DAS EQUIPES DE ASSISTENCIA ESTUDANTIL | M195: IFRS - REITORIA | N195: PUBLICA | O195: BENTO GONÇALVES | P195: 2018-09-27 | Q195: 8 | R195: TURMA FECHADA PARA O IFRS | S195: 61.9 | T195: 0 | U195: 0 | V195: 0 | W195: 0 | X195: 61.9 | Y195: 4572 | Z195: SIM | AA195: 23419.000873/2018-43 | AB195: SIM | AC195: CONCLUIDA | AD195: CERTIFICADOS EMITIDOS PELA DGP
A196: IBIRUBA | B196: ANA PAULA DE ALMEIDA | C196: ANA PAULA DE ALMEIDA | D196: 1800168 | E196: TECNICO-ADMINISTRATIVO | F196: NENHUM | G196: ASSISTÊNCIA ESTUDANTIL | H196: CAPACITACAO DE CURTA DURACAO NO BRASIL | I196: CURSO APERFEICOAMENTO PROFISSIONAL (CURSO DE CURTA DURACAO) | J196: PRESENCIAL | K196: II FORUM DE ASSISTENCIA ESTUDANTIL E I SEMINARIO DE PERMANENCIA E EXITO | L196: II FORUM DE ASSISTENCIA ESTUDANTIL E I SEMINARIO DE PERMANENCIA E EXITO | M196: IFRS - REITORIA | N196: PUBLICA | O196: BENTO GONÇALVES | P196: 2018-09-28 | Q196: 8 | R196: TURMA FECHADA PARA O IFRS | S196: 54.21 | T196: 0 | U196: 0 | V196: 0 | W196: 0 | X196: 54.21 | Y196: 4572 | Z196: SIM | AA196: 23419.000872/2018-07 | AB196: SIM | AC196: CONCLUIDA | AD196: CERTIFICADO EMITIDO PELA DGP
A197: IBIRUBA | B197: ANA PAULA DE ALMEIDA | C197: ANA PAULA DE ALMEIDA | D197: 1800168 | E197: TECNICO-ADMINISTRATIVO | F197: NENHUM | G197: ASSISTÊNCIA ESTUDANTIL | H197: LIBERACAO DE CARGA HORARIA (TAE) | I197: MESTRADO | J197: PRESENCIAL | K197: MESTRADO EM EDUCAÇÃO PROFISSIONAL E TECNOLÓGICA | L197: MESTRADO EM EDUCACAO PROFISSIONAL E TECNOLOGICA | M197: UFSM | N197: PUBLICA | O197: SANTA MARIA | P197: 08/2017 A 08/2019 | R197: TURMA ABERTA | S197: 0 | T197: 0 | U197: 0 | V197: 0 | W197: 0 | X197: 0 | Y197: NENHUM | Z197: SIM | AA197: 23366.000339/2017-19 | AB197: NÃO SE APLICA | AC197: EM TRAMITE
A198: VACARIA | B198: ANA PAULA DE SOUZA FORTALEZA PARDO | C198: ANA PAULA DE SOUZA FORTALEZA PARDO | D198: 2384375 | E198: DOCENTE | F198: FG1 | G198: COORDENADORIA DE ENSINO | H198: CAPACITACAO DE CURTA DURACAO NO BRASIL | I198: CURSO APERFEICOAMENTO PROFISSIONAL (CURSO DE CURTA DURACAO) | J198: PRESENCIAL | K198: II FORUM EMI E IV ENCONTRO PROEJA IFRS | L198: II FORUM EMI E IV ENCONTRO PROEJA IFRS | M198: IFRS - REITORIA | N198: PUBLICA | O198: PORTO ALEGRE | P198: 16 E 17 DE AGOSTO DE 2018 | Q198: 12 | R198: TURMA FECHADA PARA O IFRS | S198: 286.05 | T198: 0 | U198: 468.54 | V198: 0 | W198: 0 | X198: 754.59 | Y198: 4572 | Z198: NÃO | AA198: 23419.000742/2018-66 | AB198: SIM | AC198: CONCLUIDA | AD198: CAMPUS RECEBEU R$ 1000,00 EM DESCENTRALIZAÇÃO ORÇAMENTÁRIA PARA AUXILIAR NAS DESPESAS DE DIÁRIAS E PASSAGENS - CERTIFICADOS EMITIDOS PELA DGP
A199: VACARIA | B199: ANA PAULA DE SOUZA FORTALEZA PARDO | C199: ANA PAULA DE SOUZA FORTALEZA PARDO | D199: 2384375 | E199: DOCENTE | F199: FG1 | G199: COORDENADORIA DE ENSINO | H199: CAPACITACAO DE CURTA DURACAO NO BRASIL | I199: CURSO APERFEICOAMENTO PROFISSIONAL (CURSO DE CURTA DURACAO) | J199: PRESENCIAL | K199: TREINAMENTO SIGAA | L199: TREINAMENTO SIGAA | M199: IFRS - REITORIA | N199: PUBLICA | O199: FARROUPILHA | P199: 2018-09-27 | Q199: 5 | R199: TURMA FECHADA PARA O IFRS | S199: 2.18 | T199: 0 | U199: 0 | V199: 0 | W199: 0 | X199: 2.18 | Y199: 4572 | Z199: NÃO | AA199: 23419.000798/2018-11 | AB199: SIM | AC199: CONCLUIDA | AD199: CERTIFICADOS EMITIDOS PELA DGP
A200: ALVORADA | B200: ANA PAULA GEMELLI | C200: ANA PAULA GEMELLI | D200: 2309437 | E200: TECNICO-ADMINISTRATIVO | F200: NENHUM | G200: DESENVOLVIMENTO INSTITUCIONAL | H200: LIBERACAO DE CARGA HORARIA (TAE) | I200: MESTRADO | J200: PRESENCIAL | K200: PROMOCAO DA SAUDE, DESENVOLVIMENTO HUMANO E SOCIEDADE | L200: PROMOCAO DA SAUDE, DESENVOLVIMENTO HUMANO E SOCIEDADE | M200: ULBRA | N200: PRIVADA | O200: CANOAS | P200: 04/2018 A 01/2019 | Q200: 680 | R200: TURMA ABERTA | X200: 0 | Z200: NÃO | AA200: 23739.000091/2018-91 | AB200: NÃO SE APLICA | AC200: EM TRAMITE
... 2798 more rows
